Workbook

Sheet Notes
A1: StochMacdOscillator.xlsm; Traders Tip spreadsheet created for the November 2019 Issue
A2: Coded beginning 2019-September-12 by Ronald McAllister (rpmac_xltt@sprynet.com)
A4: This Workbook demonstrates an EXCEL version of the ideas presented
A5: by Vitali Apirine in an article titled "The Stochastic MACD Oscillator"
A6: which originally appeared in the November 2019 issue of
A7: "Technical Analysis of Stocks and Commodities" magazine.
A9: How to replicate charts found in this article:
A10: Here is how to replicate the charts found in the article.
A11: All of these Symbols can be found on the "Follow" tab.
A12: To initiate data retrieval, go to the "Follow" tab and simply double click on the desired symbol.
A13: Once things stabilize to the CalculationsAndCharts tab. You may set the "From" and "To" dates
A14: into cells B26 and B27. Then Click on the "I Would Like to Chart These Dates" button
A15: which occupies cells A25:C25.
D16: Date Range
A17: Fig. # | C17: Symbol | D17: From | E17: To
A18: 2 | C18: DJIA | D18: 2010-01-06 | E18: 2010-08-19 | F18: Dow Jones
A19: 3 | C19: ^MID | D19: 2008-07-29 | E19: 2009-08-31 | F19: S&P 400
A20: 4 | C20: ^OEX | D20: 2006-08-14 | E20: 2008-09-30 | F20: S&P 100
A21: 5 | C21: ^GSPC | D21: 2018-08-23 | E21: 2019-03-29 | F21: S&P 500
A22: 6 | C22: ^RUT | D22: 2015-04-20 | E22: 2016-07-01 | F22: Russell 2000
A25: Bug Fix 6/14/2019
A26: On or about Saturday, June 08, 2019, Yahoo Finance introduced web page changes that
A27: removed the "crumbstore" from the surface of all pages retrieved when using a
A28: Windows Internet Explorer 11 "User-Agent" string.
A30: By trial and error, today I determined that requests using a Windows Chrome "User-Agent' string will retrieve pages
A31: containing the expected crumb store and, oh by the way, one additional crumb store with a different crumb value.
A33: Using a Windows Chrome user agent string can get my recent spread sheets back on the air, at least temporarily.
A35: I say temporarily as I believe that the folks at Yahoo Finance will be propogating similar changes
A36: to all of the supported browser types over time.
A38: The following bug fix instructions are applicable to spreadsheets as old as "WeeklyDailyStochastics.xlsm",
A39: the September of 2018 traders tip, where I first introduced the “DataViaWinHTTP” module.
A41: For spreadsheets older than September of 2018 replacing the User-Agent string "may" turn out to be helpful.
A42: I have tried this successfully with a few of the earlier 2018 spreadsheets. But I make no guarantees as to earlier spreadsheets.
A43: You will most likely only find one instance of the User-Agent" spec, in a different module, instead of the 4 instances described below.
A45: How to apply this bug fix to your copy of these older spreadsheets.
A47: You will need to get into the VBA editor (ALT-F11) and then open a FIND (Ctrl-F) dialog box.
A49: Make sure the "Current Project" radio button is selected in the Search box.
A51: What you want to find: .SetRequestHeader statements with the "User-Agent", specification.
A53: There should be 4 occurrences, all in module “DataViaWinHTTP”.
A55: Replace each of these user-agent statements with the one provided below
A57: .SetRequestHeader _
A58: "User-Agent", _
A59: "Mozilla/5.0 (Windows NT 10.0; Win64; x64) " & _
A60: "AppleWebKit/537.36 (KHTML, like Gecko) Chrome/60.0.3112.90 Safari/537.36"
A62: General Construction Notes
A64: One can replicate the chart in Figure 1 of the article by retrieving data for symbol SPY.
A65: Next, on the CalculationsAndCharts tab, set cell B26 to 01/03/2018 and cell B27 to 03/08/2019.
A66: Then Click on the "I would like to chart these dates" button.
A69: Development Notes:
C70: This workbook contains and uses VBA macros and may use VBA Class structures.
C71: Input Data
C72: The data in this workbook is sorted date descending (most recent date at the top). All formulas and
C73: VBA routines are built accordingly.
A75: 2019-06-04 Set price chart vertical axis to show tick marks and labels at each 1/10th of the vertical price spread
A77: 2019-04-04 Finally came up with a mechanism to align the left location and overall length of the cursor scroll bar so that the left most and right most
A78: scroll bar thumb positions visually align reasonably well with the left and right ends of the price chart horizontal axis.
A79: Makes it a little easier to visually align the Thumb and thus the cursor with points of interest on the charts.
A81: Older:
B82: My sincere apologies to our Macintosh based readers: Neither MSXML nor WinHttpRequest are supported in your environment. So as it stands this version of the spreadsheet will not work for you.
B83: See "Why this approach does not work for Macintosh" below.
B84: I am investigating cURL as a non-Querytable based approach for the Macintosh environment.
A86: The new Yahoo Finance history download interface has changed rather radically. The biggest hurdle being a pseudo-security requirement of adding a
B87: crumb character string to any URL requesting any type of history download. That crumb must match up (by way of some sort of hash algorithm) with
B88: the Yahoo Finance cookie that must also be sent with any request to the new Yahoo History down load interface.
B90: A crumb value is returned, buried in the HTML for any of what I call the "entry level" Yahoo Finance web pages (no crumb security requirement for entry level pages).
B91: A crumb may come with other Yahoo Finance pages. A crumb may even accompany some of the secured pages as well. I have not checked.
B93: Entry level pages are the top level pages of the various Yahoo Finance dialogs and include: Quote Lookup, Stock Summary Quote, and any of the pages
B94: with links in the horizontal row with the "Summary" link on the quote summary page such as Options, Historical Data, and the rest.
B96: To date I have found no way to get at this crumb value using any native EXCEL capabilities.
B98: So this crumb requirement effectively shuts out any solution that attempts to exclusively use built-in facilities of EXCEL, which is to say a purely Querytables solution.
B100: The approach built for this Traders Tip spreadsheet uses a combination of MSXML and EXCEL Querytable calls to Load the InputPriceData worksheet.
B102: First I call MSXML to get the HTML text for the Yahoo Summary Quote page using the requested symbol. From this HTML text I extract the full company name,
B103: the market it trades, the market status and time stamp, and finally the associated crumb string. There is a bunch of other useful bits buried in this HTML
B104: text that do not necessarily appear on the web page your browser presents. Perhaps some day I will go after and build a worksheet with these other bits.
B106: Next I add the freshly extracted crumb string to the URLs I use in three separate Querytable calls to retrieve Price history, Split history, and Dividend history respectively.
B108: From there VBA code proceeds as in the past to fill in the cell formulas and formatting that make the "prettied up" InputPriceData sheet.
A110: Why this approach works for Windows:
B111: First, MSXML shares the permanent Internet Explorer web cache where cookies are maintained. Both IE and MSXML automatically
B112: update this cache when a "set cookie" header accompanies a web response. And they both automatically search this shared cache for
B113: cookies and add any "appropriate" cookies to the headers of any web requests they send out.
B114: This cookie handling automation means that even if the response to our MSXML call for the Summary web page includes a new version of
B115: the Yahoo Finance cookie, the imbedded Crumb value will always match the cookie newly installed in the cache!
B117: Second, in the Windows environment the EXCEL Querytable mechanism leans heavily on bits from Internet Explorer. This means that cookie
B118: handling is also automated from the shared cache for Querytable calls. We can count on any appropriate cookies being added to any Querytable call.
B119: We only need to do our part by adding the corresponding Crumb value to complete the security for the Querytable to access Yahoo History downloads.
A121: Why this approach does not work for Macintosh:
B122: For what it is worth, the Macintosh version of the MS Office suite of products do in fact maintain a special, shared amongst themselves only, cookie cache.
B123: They automate cookie handling into and from this cache JUST for the Office products and any Querytable activity they might originate.
B125: This cache is not tied to, nor shared with, any browser that might be installed on the MAC. And I have not found anything with HTTP capabilities similar to
B126: MSXML that can work with that Office product cookie cache.
B128: When working in the MAC EXCEL environment, without that MSXML like capability against the office shared cache, l have no mechanism
B129: to obtain a crumb value that would be a valid match to the Yahoo Finance cookie that will be automatically attached to a Querytable call.
B130: This missing facility pretty much eliminates the use of Mac environment Querytables to access the new Yahoo Finance history download interface.
A132: One very low probability potential "Gottcha" for any Querytables approach.
B133: Yahoo Finance cookies typically have an assigned expiration that is a year out (to the second) from the time they are issued.
B134: Further, these cookies are unique. Yours will not match mine.
B136: If for testing purposes, instead of MSXML, you use a fresh instance of Winhttp (Fresh instance = empty cache = no cookie to automatically send)
B137: every time you call an entry level page, the Yahoo server says "What? Entry level page? With no inbound cookie? Get them a cookie!!"
B138: and will send you a new, unique cookie and will imbed the matching crumb value in the response HTML text for each of these "no cookie attached" calls.
B140: The Gottcha: Lets say that the Yahoo Finance cookie presently in the IE cache has an expiration date and time that just happens
B141: to fall between our MSXML call to the summary page to fetch our crumb and our first (or second, or third) Querytable call.
B142: The Querytable call after the cookie expiration may fail with a cookie and crumb validation error.
B144: Querytable error reporting is atrocious. So we will not get any sort of helpful message here. Just a very generalized message like "failed to connect".
B146: The workaround is to simply go to the InputPriceData tab and click the download button.
B147: This second time through the retrieval process should not fail on a mismatch.
B148: After all, you now have a year before the new cookie that just got put into the cache expires!
A150: Calculation and Chart Worksheet Usage Comments:
C151: In General, Items in Bolded BLUE are items you may freely change to play what-if games.
C152: Be sure to have a backup copy of the spreadsheet before you alter anything else.
A154: Features carried forward from the June 2016 version of my T-Tips Template
A155: Added a pair of buttons near cell F12 that will allow the user to step the charting window forward or backward one bar for each click.
A156: I find this to be a good way to test my understanding of the author's ideas as I step through the evolution of the price behavior and the indicators.
B158: First: In the "Help! I would like to plot data" area.
B159: Added button to resolve #NA problems by locating the bar in the input data with a slightly more recent date than what the user actually requested.
B160: I find this particularly useful when I have a general idea of where I want to be date wise. Now I can pick a set of dates "out of the air".
B161: If either (or both) of my date specifications fall between dates that are available in the price history,
B162: this button will resolve them to the dates of the nearest, slightly more recent input bars.
B163: I can then refine my data interval search as necessary from there.
B164: Really great when working with Weekly or Monthly studies!
C165: 2016Jun11 - added logic to the "I would like to chart.." button to detect #N/A values and terminate
C166: gracefully with a message instead of blowing up in the charting logic.
B168: Second: In the "Price Chart Windowing Controls" area. (A11 and A12)
B169: When retrieving data for a new symbol or when changing from daily to weekly or monthly data, there was the possibility that the
B170: residual settings in A11 and A12 would fall outside of the number bars available on the input data tab after the new data retrieval.
B171: In certain combinations, this could create a serious error in the chart sizing logic and crash the spreadsheet.
B172: I have taken this opportunity to update the validity checking logic used in the chart sizing macros
B173: to adjust these values as necessary so that they fall within the boundaries of the newly retrieved input data.
A174: Features carried forward from the October 2015 Traders Tips Template
B175: Improved automation: changes to any of the following will automatically initiate calculations appropriate to reflect a change.
C176: Changing either of cells A11 (pan) or A12 (zoom) will automatically initiate the same chart sizing macros that the manual
C177: "Set Chart" button uses.

Sheet InputPriceData
A1: Russell 2000 (^RUT) -Chicago Options (Daily)
IJ2: 241.79
A3: Request Online Yahoo History for: | F3: Market State == > | G3: At close: | H3: 16:30:00 | I3: EDT
A4: Symbol | B4: ^RUT | D4: Valid | I4: =OFFSET(I4,-2,0,1,1) -> 0
A5: From | B5: 1950-01-01 | D5: Data | AD5: Trailing 12 Div return (Cur Close)
A6: To | B6: =NOW() -> 2019-09-17T20:46:07.880 | D6: Types | E6: =VLOOKUP(B7,D7:E10,2,FALSE) -> d
A7: Data Type | B7: Daily | D7: Daily | E7: d
A8: Crumb | B8: TCb5CHsNI2b | D8: Weekly | E8: w
A9: Available Data | D9: Monthly | E9: m
A10: Bar Count: | B10: 8068 | AD10: =OFFSET(AC15,1,0,1,1)/OFFSET(N15,1,0,1,1) -> 0
A11: From: | B11: =IF(B10<=0,"",OFFSET(B15,B10,IF(HistReqDataType="v",1,0),1,1)) -> 1987-09-10 | W11: Trailing 12 Month Dividend Returns
A12: To: | B12: =IF(B10<=0,"",IF(HistReqDataType="v",OFFSET(B15,2,1,1,1),OFFSET(B15,1,0,1,1))) -> 2019-09-13 | W12: Raw Close price on Dividend date | X12: Div Year and Month | Y12: Looking for year ago Div Year and Month | Z12: Year ago Div Date we found | AA12: row offset to year ago div Date | AB12: Same month flag | AC12: Trailing 12 Div Total | AD12: Trailing 12 Div return
Q13: Split History | S13: 0 | T13: Running | U13: Dividend History
B14: Raw Data Values | H14: Adjusted | I14: Price Adjust | J14: Vol Adjust | K14: Adjusted Values | P14: Last | Q14: Effective | R14: Shares | T14: Vol Adjust | V14: 0
A15: RelRow | B15: Date | C15: Open | D15: High | E15: Low | F15: Close | G15: Volume | H15: Close | I15: Factor | J15: Factor | K15: Open | L15: High | M15: Low | N15: Close | O15: Volume | P15: Trade | Q15: 43724 | R15: New | S15: Old | T15: 1 | U15: Date | V15: $ / Share
A16: 1 | B16: 2019-09-13 | C16: 1579.22998 | D16: 1589.449951 | E16: 1577.109985 | F16: 1578.140015 | G16: 35200600 | H16: 1578.140015 | I16: =IF(F16=0,1,H16/F16) -> 1 | J16: =INDEX(OFFSET($T$15,0,0,$S$13+1,1),MATCH(B16,OFFSET($Q$15,0,0,$S$13+1,1),-1)) -> 1 | K16: =ROUND($I16*C16,2) -> 1579.23 | L16: =ROUND($I16*D16,2) -> 1589.45 | M16: 1577.11 | N16: 1578.14 | O16: =G16*J16 -> 35200600
A17: 2 | B17: 2019-09-12 | C17: 1575.800049 | D17: 1580.719971 | E17: 1562.810059 | F17: 1575.069946 | G17: 37918600 | H17: 1575.069946 | I17: =IF(F17=0,1,H17/F17) -> 1 | J17: =INDEX(OFFSET($T$15,0,0,$S$13+1,1),MATCH(B17,OFFSET($Q$15,0,0,$S$13+1,1),-1)) -> 1 | K17: =ROUND($I17*C17,2) -> 1575.8 | L17: =ROUND($I17*D17,2) -> 1580.72 | M17: =ROUND($I17*E17,2) -> 1562.81 | N17: =ROUND($I17*F17,2) -> 1575.07 | O17: =G17*J17 -> 37918600
A18: 3 | B18: 2019-09-11 | C18: 1543.869995 | D18: 1575.829956 | E18: 1541.880005 | F18: 1575.709961 | G18: 39275500 | H18: 1575.709961 | I18: 1 | J18: 1 | K18: 1543.87 | L18: 1575.83 | M18: 1541.88 | N18: 1575.71 | O18: 39275500
A19: 4 | B19: 2019-09-10 | C19: 1523.569946 | D19: 1543.630005 | E19: 1516.560059 | F19: 1541.609985 | G19: 43907700 | H19: 1541.609985 | I19: 1 | J19: 1 | K19: 1523.57 | L19: 1543.63 | M19: 1516.56 | N19: 1541.61 | O19: 43907700
A20: 5 | B20: 2019-09-09 | C20: 1507.530029 | D20: 1526.099976 | E20: 1506.77002 | F20: 1524.22998 | G20: 40028900 | H20: 1524.22998 | I20: 1 | J20: 1 | K20: 1507.53 | L20: 1526.1 | M20: 1506.77 | N20: 1524.23 | O20: 40028900
A21: 6 | B21: 2019-09-06 | C21: 1511.51001 | D21: 1517.01001 | E21: 1504.910034 | F21: 1505.170044 | G21: 32082800 | H21: 1505.170044 | I21: 1 | J21: 1 | K21: 1511.51 | L21: 1517.01 | M21: 1504.91 | N21: 1505.17 | O21: 32082800
A22: 7 | B22: 2019-09-05 | C22: 1491.27002 | D22: 1521.790039 | E22: 1491.27002 | F22: 1510.75 | G22: 38907000 | H22: 1510.75 | I22: 1 | J22: 1 | K22: 1491.27 | L22: 1521.79 | M22: 1491.27 | N22: 1510.75 | O22: 38907000
A23: 8 | B23: 2019-09-04 | C23: 1475.359985 | D23: 1487.939941 | E23: 1475.359985 | F23: 1484.76001 | G23: 31632600 | H23: 1484.76001 | I23: 1 | J23: 1 | K23: 1475.36 | L23: 1487.94 | M23: 1475.36 | N23: 1484.76 | O23: 31632600
A24: 9 | B24: 2019-09-03 | C24: 1494.030029 | D24: 1494.030029 | E24: 1467.469971 | F24: 1472.280029 | G24: 34267900 | H24: 1472.280029 | I24: 1 | J24: 1 | K24: 1494.03 | L24: 1494.03 | M24: 1467.47 | N24: 1472.28 | O24: 34267900
A25: 10 | B25: 2019-08-30 | C25: 1499.069946 | D25: 1504.449951 | E25: 1488.339966 | F25: 1494.839966 | G25: 30084500 | H25: 1494.839966 | I25: 1 | J25: 1 | K25: 1499.07 | L25: 1504.45 | M25: 1488.34 | N25: 1494.84 | O25: 30084500
A26: 11 | B26: 2019-08-29 | C26: 1478.47998 | D26: 1498.780029 | E26: 1478.47998 | F26: 1496.719971 | G26: 31761900 | H26: 1496.719971 | I26: 1 | J26: 1 | K26: 1478.48 | L26: 1498.78 | M26: 1478.48 | N26: 1496.72 | O26: 31761900
A27: 12 | B27: 2019-08-28 | C27: 1455.900024 | D27: 1478.030029 | E27: 1450.319946 | F27: 1472.709961 | G27: 30974200 | H27: 1472.709961 | I27: 1 | J27: 1 | K27: 1455.9 | L27: 1478.03 | M27: 1450.32 | N27: 1472.71 | O27: 30974200
A28: 13 | B28: 2019-08-27 | C28: 1479.459961 | D28: 1485.670044 | E28: 1454.910034 | F28: 1456.040039 | G28: 35336300 | H28: 1456.040039 | I28: 1 | J28: 1 | K28: 1479.46 | L28: 1485.67 | M28: 1454.91 | N28: 1456.04 | O28: 35336300
A29: 14 | B29: 2019-08-26 | C29: 1461.589966 | D29: 1476.339966 | E29: 1461.589966 | F29: 1476 | G29: 28576000 | H29: 1476 | I29: 1 | J29: 1 | K29: 1461.59 | L29: 1476.34 | M29: 1461.59 | N29: 1476 | O29: 28576000
A30: 15 | B30: 2019-08-23 | C30: 1504.300049 | D30: 1505.680054 | E30: 1456.900024 | F30: 1459.48999 | G30: 39373000 | H30: 1459.48999 | I30: 1 | J30: 1 | K30: 1504.3 | L30: 1505.68 | M30: 1456.9 | N30: 1459.49 | O30: 39373000
A31: 16 | B31: 2019-08-22 | C31: 1510.800049 | D31: 1516.469971 | E31: 1500.369995 | F31: 1506 | G31: 28908800 | H31: 1506 | I31: 1 | J31: 1 | K31: 1510.8 | L31: 1516.47 | M31: 1500.37 | N31: 1506 | O31: 28908800
A32: 17 | B32: 2019-08-21 | C32: 1498.540039 | D32: 1512.079956 | E32: 1498.540039 | F32: 1509.849976 | G32: 30111900 | H32: 1509.849976 | I32: 1 | J32: 1 | K32: 1498.54 | L32: 1512.08 | M32: 1498.54 | N32: 1509.85 | O32: 30111900
A33: 18 | B33: 2019-08-20 | C33: 1508.630005 | D33: 1508.630005 | E33: 1497.77002 | F33: 1498.01001 | G33: 30663000 | H33: 1498.01001 | I33: 1 | J33: 1 | K33: 1508.63 | L33: 1508.63 | M33: 1497.77 | N33: 1498.01 | O33: 30663000
A34: 19 | B34: 2019-08-19 | C34: 1496.619995 | D34: 1515.339966 | E34: 1496.619995 | F34: 1508.849976 | G34: 32128800 | H34: 1508.849976 | I34: 1 | J34: 1 | K34: 1496.62 | L34: 1515.34 | M34: 1496.62 | N34: 1508.85 | O34: 32128800
A35: 20 | B35: 2019-08-16 | C35: 1462.130005 | D35: 1494.680054 | E35: 1462.130005 | F35: 1493.640015 | G35: 34981500 | H35: 1493.640015 | I35: 1 | J35: 1 | K35: 1462.13 | L35: 1494.68 | M35: 1462.13 | N35: 1493.64 | O35: 34981500
A36: 21 | B36: 2019-08-15 | C36: 1467.579956 | D36: 1470.939941 | E36: 1456.280029 | F36: 1461.650024 | G36: 40380000 | H36: 1461.650024 | I36: 1 | J36: 1 | K36: 1467.58 | L36: 1470.94 | M36: 1456.28 | N36: 1461.65 | O36: 40380000
A37: 22 | B37: 2019-08-14 | C37: 1509.579956 | D37: 1509.579956 | E37: 1465.459961 | F37: 1467.52002 | G37: 43125300 | H37: 1467.52002 | I37: 1 | J37: 1 | K37: 1509.58 | L37: 1509.58 | M37: 1465.46 | N37: 1467.52 | O37: 43125300
A38: 23 | B38: 2019-08-13 | C38: 1493.410034 | D38: 1522.77002 | E38: 1490 | F38: 1510.579956 | G38: 38536000 | H38: 1510.579956 | I38: 1 | J38: 1 | K38: 1493.41 | L38: 1522.77 | M38: 1490 | N38: 1510.58 | O38: 38536000
A39: 24 | B39: 2019-08-12 | C39: 1512.76001 | D39: 1512.76001 | E39: 1495.630005 | F39: 1495.900024 | G39: 28516300 | H39: 1495.900024 | I39: 1 | J39: 1 | K39: 1512.76 | L39: 1512.76 | M39: 1495.63 | N39: 1495.9 | O39: 28516300
A40: 25 | B40: 2019-08-09 | C40: 1530.959961 | D40: 1530.959961 | E40: 1509.959961 | F40: 1513.040039 | G40: 33506400 | H40: 1513.040039 | I40: 1 | J40: 1 | K40: 1530.96 | L40: 1530.96 | M40: 1509.96 | N40: 1513.04 | O40: 33506400
A41: 26 | B41: 2019-08-08 | C41: 1502.319946 | D41: 1533.5 | E41: 1502.319946 | F41: 1532.130005 | G41: 41063700 | H41: 1532.130005 | I41: 1 | J41: 1 | K41: 1502.32 | L41: 1533.5 | M41: 1502.32 | N41: 1532.13 | O41: 41063700
A42: 27 | B42: 2019-08-07 | C42: 1501.530029 | D42: 1504.589966 | E42: 1478.449951 | F42: 1500.689941 | G42: 44917500 | H42: 1500.689941 | I42: 1 | J42: 1 | K42: 1501.53 | L42: 1504.59 | M42: 1478.45 | N42: 1500.69 | O42: 44917500
A43: 28 | B43: 2019-08-06 | C43: 1487.680054 | D43: 1502.859985 | E43: 1483.400024 | F43: 1502.089966 | G43: 41542400 | H43: 1502.089966 | I43: 1 | J43: 1 | K43: 1487.68 | L43: 1502.86 | M43: 1483.4 | N43: 1502.09 | O43: 41542400
A44: 29 | B44: 2019-08-05 | C44: 1532.390015 | D44: 1532.390015 | E44: 1472.660034 | F44: 1487.410034 | G44: 45137300 | H44: 1487.410034 | I44: 1 | J44: 1 | K44: 1532.39 | L44: 1532.39 | M44: 1472.66 | N44: 1487.41 | O44: 45137300
A45: 30 | B45: 2019-08-02 | C45: 1550.459961 | D45: 1550.459961 | E45: 1522.369995 | F45: 1533.660034 | G45: 38746600 | H45: 1533.660034 | I45: 1 | J45: 1 | K45: 1550.46 | L45: 1550.46 | M45: 1522.37 | N45: 1533.66 | O45: 38746600
A46: 31 | B46: 2019-08-01 | C46: 1574.930054 | D46: 1587.810059 | E46: 1546.550049 | F46: 1550.76001 | G46: 47623000 | H46: 1550.76001 | I46: 1 | J46: 1 | K46: 1574.93 | L46: 1587.81 | M46: 1546.55 | N46: 1550.76 | O46: 47623000
A47: 32 | B47: 2019-07-31 | C47: 1586.76001 | D47: 1599.400024 | E47: 1568.400024 | F47: 1574.609985 | G47: 46234300 | H47: 1574.609985 | I47: 1 | J47: 1 | K47: 1586.76 | L47: 1599.4 | M47: 1568.4 | N47: 1574.61 | O47: 46234300
A48: 33 | B48: 2019-07-30 | C48: 1567.650024 | D48: 1586.319946 | E48: 1557.969971 | F48: 1585.599976 | G48: 36343300 | H48: 1585.599976 | I48: 1 | J48: 1 | K48: 1567.65 | L48: 1586.32 | M48: 1557.97 | N48: 1585.6 | O48: 36343300
A49: 34 | B49: 2019-07-29 | C49: 1578.900024 | D49: 1580.02002 | E49: 1565.630005 | F49: 1569.030029 | G49: 32037100 | H49: 1569.030029 | I49: 1 | J49: 1 | K49: 1578.9 | L49: 1580.02 | M49: 1565.63 | N49: 1569.03 | O49: 32037100
A50: 35 | B50: 2019-07-26 | C50: 1561.930054 | D50: 1581.530029 | E50: 1561.930054 | F50: 1578.969971 | G50: 32575900 | H50: 1578.969971 | I50: 1 | J50: 1 | K50: 1561.93 | L50: 1581.53 | M50: 1561.93 | N50: 1578.97 | O50: 32575900
A51: 36 | B51: 2019-07-25 | C51: 1580.209961 | D51: 1580.209961 | E51: 1560.650024 | F51: 1561.449951 | G51: 36452700 | H51: 1561.449951 | I51: 1 | J51: 1 | K51: 1580.21 | L51: 1580.21 | M51: 1560.65 | N51: 1561.45 | O51: 36452700
A52: 37 | B52: 2019-07-24 | C52: 1554.089966 | D52: 1581.630005 | E52: 1550.569946 | F52: 1580.420044 | G52: 34289800 | H52: 1580.420044 | I52: 1 | J52: 1 | K52: 1554.09 | L52: 1581.63 | M52: 1550.57 | N52: 1580.42 | O52: 34289800
A53: 38 | B53: 2019-07-23 | C53: 1546.119995 | D53: 1555.199951 | E53: 1544.76001 | F53: 1554.959961 | G53: 33136600 | H53: 1554.959961 | I53: 1 | J53: 1 | K53: 1546.12 | L53: 1555.2 | M53: 1544.76 | N53: 1554.96 | O53: 33136600
A54: 39 | B54: 2019-07-22 | C54: 1549.72998 | D54: 1554.290039 | E54: 1543.560059 | F54: 1544.780029 | G54: 30037200 | H54: 1544.780029 | I54: 1 | J54: 1 | K54: 1549.73 | L54: 1554.29 | M54: 1543.56 | N54: 1544.78 | O54: 30037200
A55: 40 | B55: 2019-07-19 | C55: 1554.920044 | D55: 1561.560059 | E55: 1547.640015 | F55: 1547.900024 | G55: 32603600 | H55: 1547.900024 | I55: 1 | J55: 1 | K55: 1554.92 | L55: 1561.56 | M55: 1547.64 | N55: 1547.9 | O55: 32603600
A56: 41 | B56: 2019-07-18 | C56: 1550.319946 | D56: 1557.400024 | E56: 1546.02002 | F56: 1555.619995 | G56: 32965800 | H56: 1555.619995 | I56: 1 | J56: 1 | K56: 1550.32 | L56: 1557.4 | M56: 1546.02 | N56: 1555.62 | O56: 32965800
A57: 42 | B57: 2019-07-17 | C57: 1561.75 | D57: 1561.75 | E57: 1547.76001 | F57: 1550.780029 | G57: 31816000 | H57: 1550.780029 | I57: 1 | J57: 1 | K57: 1561.75 | L57: 1561.75 | M57: 1547.76 | N57: 1550.78 | O57: 31816000
A58: 43 | B58: 2019-07-16 | C58: 1561.48999 | D58: 1569.619995 | E58: 1558.23999 | F58: 1562 | G58: 32906500 | H58: 1562 | I58: 1 | J58: 1 | K58: 1561.49 | L58: 1569.62 | M58: 1558.24 | N58: 1562 | O58: 32906500
A59: 44 | B59: 2019-07-15 | C59: 1570.72998 | D59: 1573.880005 | E59: 1558.780029 | F59: 1561.819946 | G59: 28749700 | H59: 1561.819946 | I59: 1 | J59: 1 | K59: 1570.73 | L59: 1573.88 | M59: 1558.78 | N59: 1561.82 | O59: 28749700
A60: 45 | B60: 2019-07-12 | C60: 1558.650024 | D60: 1574.47998 | E60: 1558.650024 | F60: 1570 | G60: 29749600 | H60: 1570 | I60: 1 | J60: 1 | K60: 1558.65 | L60: 1574.48 | M60: 1558.65 | N60: 1570 | O60: 29749600
A61: 46 | B61: 2019-07-11 | C61: 1565.459961 | D61: 1567.949951 | E61: 1552.400024 | F61: 1557.920044 | G61: 31546200 | H61: 1557.920044 | I61: 1 | J61: 1 | K61: 1565.46 | L61: 1567.95 | M61: 1552.4 | N61: 1557.92 | O61: 31546200
A62: 47 | B62: 2019-07-10 | C62: 1564.650024 | D62: 1572.819946 | E62: 1558.800049 | F62: 1565.050049 | G62: 31542400 | H62: 1565.050049 | I62: 1 | J62: 1 | K62: 1564.65 | L62: 1572.82 | M62: 1558.8 | N62: 1565.05 | O62: 31542400
A63: 48 | B63: 2019-07-09 | C63: 1559.01001 | D63: 1562.72998 | E63: 1554.119995 | F63: 1562.589966 | G63: 30282100 | H63: 1562.589966 | I63: 1 | J63: 1 | K63: 1559.01 | L63: 1562.73 | M63: 1554.12 | N63: 1562.59 | O63: 30282100
A64: 49 | B64: 2019-07-08 | C64: 1574.22998 | D64: 1574.22998 | E64: 1559.02002 | F64: 1561.390015 | G64: 29045500 | H64: 1561.390015 | I64: 1 | J64: 1 | K64: 1574.23 | L64: 1574.23 | M64: 1559.02 | N64: 1561.39 | O64: 29045500
A65: 50 | B65: 2019-07-05 | C65: 1571.109985 | D65: 1575.790039 | E65: 1559.579956 | F65: 1575.619995 | G65: 24342100 | H65: 1575.619995 | I65: 1 | J65: 1 | K65: 1571.11 | L65: 1575.79 | M65: 1559.58 | N65: 1575.62 | O65: 24342100
A66: 51 | B66: 2019-07-03 | C66: 1562.189941 | D66: 1572.119995 | E66: 1562.189941 | F66: 1572.119995 | G66: 19637200 | H66: 1572.119995 | I66: 1 | J66: 1 | K66: 1562.19 | L66: 1572.12 | M66: 1562.19 | N66: 1572.12 | O66: 19637200
A67: 52 | B67: 2019-07-02 | C67: 1569.530029 | D67: 1569.530029 | E67: 1552.930054 | F67: 1560.540039 | G67: 32068400 | H67: 1560.540039 | I67: 1 | J67: 1 | K67: 1569.53 | L67: 1569.53 | M67: 1552.93 | N67: 1560.54 | O67: 32068400
A68: 53 | B68: 2019-07-01 | C68: 1574.650024 | D68: 1586.77002 | E68: 1562.780029 | F68: 1566.569946 | G68: 35132700 | H68: 1566.569946 | I68: 1 | J68: 1 | K68: 1574.65 | L68: 1586.77 | M68: 1562.78 | N68: 1566.57 | O68: 35132700
A69: 54 | B69: 2019-06-28 | C69: 1548.119995 | D69: 1568.599976 | E69: 1548.119995 | F69: 1566.569946 | G69: 54207000 | H69: 1566.569946 | I69: 1 | J69: 1 | K69: 1548.12 | L69: 1568.6 | M69: 1548.12 | N69: 1566.57 | O69: 54207000
A70: 55 | B70: 2019-06-27 | C70: 1518.880005 | D70: 1546.550049 | E70: 1518.880005 | F70: 1546.550049 | G70: 31229200 | H70: 1546.550049 | I70: 1 | J70: 1 | K70: 1518.88 | L70: 1546.55 | M70: 1518.88 | N70: 1546.55 | O70: 31229200
A71: 56 | B71: 2019-06-26 | C71: 1523.26001 | D71: 1530.130005 | E71: 1520.040039 | F71: 1521.890015 | G71: 34781300 | H71: 1521.890015 | I71: 1 | J71: 1 | K71: 1523.26 | L71: 1530.13 | M71: 1520.04 | N71: 1521.89 | O71: 34781300
A72: 57 | B72: 2019-06-25 | C72: 1530.98999 | D72: 1533.23999 | E72: 1520.5 | F72: 1521.040039 | G72: 35780500 | H72: 1521.040039 | I72: 1 | J72: 1 | K72: 1530.99 | L72: 1533.24 | M72: 1520.5 | N72: 1521.04 | O72: 35780500
A73: 58 | B73: 2019-06-24 | C73: 1550.099976 | D73: 1551.650024 | E73: 1530.079956 | F73: 1530.079956 | G73: 31362500 | H73: 1530.079956 | I73: 1 | J73: 1 | K73: 1550.1 | L73: 1551.65 | M73: 1530.08 | N73: 1530.08 | O73: 31362500
A74: 59 | B74: 2019-06-21 | C74: 1561.880005 | D74: 1561.880005 | E74: 1546.130005 | F74: 1549.630005 | G74: 50001200 | H74: 1549.630005 | I74: 1 | J74: 1 | K74: 1561.88 | L74: 1561.88 | M74: 1546.13 | N74: 1549.63 | O74: 50001200
A75: 60 | B75: 2019-06-20 | C75: 1560.310059 | D75: 1570.73999 | E75: 1556.079956 | F75: 1563.48999 | G75: 39059400 | H75: 1563.48999 | I75: 1 | J75: 1 | K75: 1560.31 | L75: 1570.74 | M75: 1556.08 | N75: 1563.49 | O75: 39059400
A76: 61 | B76: 2019-06-19 | C76: 1550.459961 | D76: 1556.449951 | E76: 1547.589966 | F76: 1555.579956 | G76: 32878900 | H76: 1555.579956 | I76: 1 | J76: 1 | K76: 1550.46 | L76: 1556.45 | M76: 1547.59 | N76: 1555.58 | O76: 32878900
A77: 62 | B77: 2019-06-18 | C77: 1532.869995 | D77: 1560.180054 | E77: 1532.869995 | F77: 1550.22998 | G77: 34376200 | H77: 1550.22998 | I77: 1 | J77: 1 | K77: 1532.87 | L77: 1560.18 | M77: 1532.87 | N77: 1550.23 | O77: 34376200
A78: 63 | B78: 2019-06-17 | C78: 1523.25 | D78: 1538.579956 | E78: 1523.25 | F78: 1532.75 | G78: 28101400 | H78: 1532.75 | I78: 1 | J78: 1 | K78: 1523.25 | L78: 1538.58 | M78: 1523.25 | N78: 1532.75 | O78: 28101400
A79: 64 | B79: 2019-06-14 | C79: 1535.319946 | D79: 1535.319946 | E79: 1522.420044 | F79: 1522.5 | G79: 29223300 | H79: 1522.5 | I79: 1 | J79: 1 | K79: 1535.32 | L79: 1535.32 | M79: 1522.42 | N79: 1522.5 | O79: 29223300
A80: 65 | B80: 2019-06-13 | C80: 1520.52002 | D80: 1536.02002 | E80: 1520.52002 | F80: 1535.800049 | G80: 30698100 | H80: 1535.800049 | I80: 1 | J80: 1 | K80: 1520.52 | L80: 1536.02 | M80: 1520.52 | N80: 1535.8 | O80: 30698100
A81: 66 | B81: 2019-06-12 | C81: 1518.640015 | D81: 1522 | E81: 1512.400024 | F81: 1519.790039 | G81: 30341300 | H81: 1519.790039 | I81: =IF(F81=0,1,H81/F81) -> 1 | J81: =INDEX(OFFSET($T$15,0,0,$S$13+1,1),MATCH(B81,OFFSET($Q$15,0,0,$S$13+1,1),-1)) -> 1 | K81: =ROUND($I81*C81,2) -> 1518.64 | L81: =ROUND($I81*D81,2) -> 1522 | M81: =ROUND($I81*E81,2) -> 1512.4 | N81: =ROUND($I81*F81,2) -> 1519.79 | O81: =G81*J81 -> 30341300
A82: 67 | B82: 2019-06-11 | C82: 1525.030029 | D82: 1536.160034 | E82: 1513.209961 | F82: 1519.109985 | G82: 35484200 | H82: 1519.109985 | I82: 1 | J82: 1 | K82: 1525.03 | L82: 1536.16 | M82: 1513.21 | N82: 1519.11 | O82: 35484200
A83: 68 | B83: 2019-06-10 | C83: 1516.619995 | D83: 1535.640015 | E83: 1516.619995 | F83: 1523.560059 | G83: 32092100 | H83: 1523.560059 | I83: 1 | J83: 1 | K83: 1516.62 | L83: 1535.64 | M83: 1516.62 | N83: 1523.56 | O83: 32092100
A84: 69 | B84: 2019-06-07 | C84: 1504.680054 | D84: 1518.920044 | E84: 1504.680054 | F84: 1514.390015 | G84: 32202500 | H84: 1514.390015 | I84: 1 | J84: 1 | K84: 1504.68 | L84: 1518.92 | M84: 1504.68 | N84: 1514.39 | O84: 32202500
A85: 70 | B85: 2019-06-06 | C85: 1506.349976 | D85: 1508.540039 | E85: 1490.77002 | F85: 1499.290039 | G85: 33964100 | H85: 1499.290039 | I85: 1 | J85: 1 | K85: 1506.35 | L85: 1508.54 | M85: 1490.77 | N85: 1499.29 | O85: 33964100
A86: 71 | B86: 2019-06-05 | C86: 1510.099976 | D86: 1514.25 | E86: 1494.079956 | F86: 1506.790039 | G86: 35488300 | H86: 1506.790039 | I86: 1 | J86: 1 | K86: 1510.1 | L86: 1514.25 | M86: 1494.08 | N86: 1506.79 | O86: 35488300
A87: 72 | B87: 2019-06-04 | C87: 1475.319946 | D87: 1508.650024 | E87: 1475.319946 | F87: 1508.560059 | G87: 38104300 | H87: 1508.560059 | I87: 1 | J87: 1 | K87: 1475.32 | L87: 1508.65 | M87: 1475.32 | N87: 1508.56 | O87: 38104300
A88: 73 | B88: 2019-06-03 | C88: 1465.880005 | D88: 1476.849976 | E88: 1460.48999 | F88: 1469.97998 | G88: 39438100 | H88: 1469.97998 | I88: 1 | J88: 1 | K88: 1465.88 | L88: 1476.85 | M88: 1460.49 | N88: 1469.98 | O88: 39438100
A89: 74 | B89: 2019-05-31 | C89: 1478.530029 | D89: 1478.530029 | E89: 1461.469971 | F89: 1465.48999 | G89: 39810200 | H89: 1465.48999 | I89: 1 | J89: 1 | K89: 1478.53 | L89: 1478.53 | M89: 1461.47 | N89: 1465.49 | O89: 39810200
A90: 75 | B90: 2019-05-30 | C90: 1491.849976 | D90: 1500.630005 | E90: 1478 | F90: 1485.530029 | G90: 32737900 | H90: 1485.530029 | I90: 1 | J90: 1 | K90: 1491.85 | L90: 1500.63 | M90: 1478 | N90: 1485.53 | O90: 32737900
A91: 76 | B91: 2019-05-29 | C91: 1503.530029 | D91: 1503.530029 | E91: 1481.420044 | F91: 1489.949951 | G91: 37000500 | H91: 1489.949951 | I91: 1 | J91: 1 | K91: 1503.53 | L91: 1503.53 | M91: 1481.42 | N91: 1489.95 | O91: 37000500
A92: 77 | B92: 2019-05-28 | C92: 1514.98999 | D92: 1520.219971 | E92: 1503.810059 | F92: 1504.02002 | G92: 41214100 | H92: 1504.02002 | I92: 1 | J92: 1 | K92: 1514.99 | L92: 1520.22 | M92: 1503.81 | N92: 1504.02 | O92: 41214100
A93: 78 | B93: 2019-05-24 | C93: 1505.880005 | D93: 1516.660034 | E93: 1505.76001 | F93: 1514.109985 | G93: 28873900 | H93: 1514.109985 | I93: 1 | J93: 1 | K93: 1505.88 | L93: 1516.66 | M93: 1505.76 | N93: 1514.11 | O93: 28873900
A94: 79 | B94: 2019-05-23 | C94: 1525.069946 | D94: 1525.069946 | E94: 1493.47998 | F94: 1501.380005 | G94: 38919800 | H94: 1501.380005 | I94: 1 | J94: 1 | K94: 1525.07 | L94: 1525.07 | M94: 1493.48 | N94: 1501.38 | O94: 38919800
A95: 80 | B95: 2019-05-22 | C95: 1542.579956 | D95: 1542.579956 | E95: 1528.359985 | F95: 1531.630005 | G95: 31925100 | H95: 1531.630005 | I95: 1 | J95: 1 | K95: 1542.58 | L95: 1542.58 | M95: 1528.36 | N95: 1531.63 | O95: 31925100
A96: 81 | B96: 2019-05-21 | C96: 1529.819946 | D96: 1545.97998 | E96: 1529.819946 | F96: 1545.25 | G96: 32187000 | H96: 1545.25 | I96: 1 | J96: 1 | K96: 1529.82 | L96: 1545.98 | M96: 1529.82 | N96: 1545.25 | O96: 32187000
A97: 82 | B97: 2019-05-20 | C97: 1530.25 | D97: 1533.359985 | E97: 1521.630005 | F97: 1524.959961 | G97: 32888700 | H97: 1524.959961 | I97: 1 | J97: 1 | K97: 1530.25 | L97: 1533.36 | M97: 1521.63 | N97: 1524.96 | O97: 32888700
A98: 83 | B98: 2019-05-17 | C98: 1555.02002 | D98: 1557.550049 | E98: 1534.689941 | F98: 1535.76001 | G98: 32579500 | H98: 1535.76001 | I98: 1 | J98: 1 | K98: 1555.02 | L98: 1557.55 | M98: 1534.69 | N98: 1535.76 | O98: 32579500
A99: 84 | B99: 2019-05-16 | C99: 1548.27002 | D99: 1567.170044 | E99: 1548.27002 | F99: 1557.23999 | G99: 33380600 | H99: 1557.23999 | I99: 1 | J99: 1 | K99: 1548.27 | L99: 1567.17 | M99: 1548.27 | N99: 1557.24 | O99: 33380600
A100: 85 | B100: 2019-05-15 | C100: 1541.550049 | D100: 1550.02002 | E100: 1529.439941 | F100: 1548.27002 | G100: 31259500 | H100: 1548.27002 | I100: 1 | J100: 1 | K100: 1541.55 | L100: 1550.02 | M100: 1529.44 | N100: 1548.27 | O100: 31259500
A101: 86 | B101: 2019-05-14 | C101: 1523.810059 | D101: 1547.839966 | E101: 1523.810059 | F101: 1543.060059 | G101: 33227200 | H101: 1543.060059 | I101: 1 | J101: 1 | K101: 1523.81 | L101: 1547.84 | M101: 1523.81 | N101: 1543.06 | O101: 33227200
A102: 87 | B102: 2019-05-13 | C102: 1571.51001 | D102: 1571.51001 | E102: 1520.280029 | F102: 1523 | G102: 38940300 | H102: 1523 | I102: 1 | J102: 1 | K102: 1571.51 | L102: 1571.51 | M102: 1520.28 | N102: 1523 | O102: 38940300
A103: 88 | B103: 2019-05-10 | C103: 1570 | D103: 1575.079956 | E103: 1546.140015 | F103: 1572.98999 | G103: 35296000 | H103: 1572.98999 | I103: 1 | J103: 1 | K103: 1570 | L103: 1575.08 | M103: 1546.14 | N103: 1572.99 | O103: 35296000
A104: 89 | B104: 2019-05-09 | C104: 1573.339966 | D104: 1573.339966 | E104: 1546.849976 | F104: 1570.060059 | G104: 36388200 | H104: 1570.060059 | I104: 1 | J104: 1 | K104: 1573.34 | L104: 1573.34 | M104: 1546.85 | N104: 1570.06 | O104: 36388200
A105: 90 | B105: 2019-05-08 | C105: 1581.589966 | D105: 1587.349976 | E105: 1574.849976 | F105: 1574.969971 | G105: 34857900 | H105: 1574.969971 | I105: 1 | J105: 1 | K105: 1581.59 | L105: 1587.35 | M105: 1574.85 | N105: 1574.97 | O105: 34857900
A106: 91 | B106: 2019-05-07 | C106: 1611.469971 | D106: 1611.469971 | E106: 1571.48999 | F106: 1582.310059 | G106: 37671000 | H106: 1582.310059 | I106: 1 | J106: 1 | K106: 1611.47 | L106: 1611.47 | M106: 1571.49 | N106: 1582.31 | O106: 37671000
A107: 92 | B107: 2019-05-06 | C107: 1611.680054 | D107: 1618.369995 | E107: 1588.839966 | F107: 1614.97998 | G107: 31815200 | H107: 1614.97998 | I107: 1 | J107: 1 | K107: 1611.68 | L107: 1618.37 | M107: 1588.84 | N107: 1614.98 | O107: 31815200
A108: 93 | B108: 2019-05-03 | C108: 1584.01001 | D108: 1614.02002 | E108: 1584.01001 | F108: 1614.02002 | G108: 33381200 | H108: 1614.02002 | I108: 1 | J108: 1 | K108: 1584.01 | L108: 1614.02 | M108: 1584.01 | N108: 1614.02 | O108: 33381200
A109: 94 | B109: 2019-05-02 | C109: 1576 | D109: 1587.920044 | E109: 1566.459961 | F109: 1582.650024 | G109: 37788900 | H109: 1582.650024 | I109: 1 | J109: 1 | K109: 1576 | L109: 1587.92 | M109: 1566.46 | N109: 1582.65 | O109: 37788900
A110: 95 | B110: 2019-05-01 | C110: 1593.47998 | D110: 1595.849976 | E110: 1576.130005 | F110: 1576.380005 | G110: 36458500 | H110: 1576.380005 | I110: 1 | J110: 1 | K110: 1593.48 | L110: 1595.85 | M110: 1576.13 | N110: 1576.38 | O110: 36458500
A111: 96 | B111: 2019-04-30 | C111: 1598.550049 | D111: 1600.290039 | E111: 1580.900024 | F111: 1591.209961 | G111: 39193300 | H111: 1591.209961 | I111: 1 | J111: 1 | K111: 1598.55 | L111: 1600.29 | M111: 1580.9 | N111: 1591.21 | O111: 39193300
A112: 97 | B112: 2019-04-29 | C112: 1591.930054 | D112: 1603.079956 | E112: 1591.930054 | F112: 1598.359985 | G112: 31187800 | H112: 1598.359985 | I112: 1 | J112: 1 | K112: 1591.93 | L112: 1603.08 | M112: 1591.93 | N112: 1598.36 | O112: 31187800
A113: 98 | B113: 2019-04-26 | C113: 1575.660034 | D113: 1591.25 | E113: 1574.060059 | F113: 1589.900024 | G113: 32485000 | H113: 1589.900024 | I113: 1 | J113: 1 | K113: 1575.66 | L113: 1591.25 | M113: 1574.06 | N113: 1589.9 | O113: 32485000
A114: 99 | B114: 2019-04-25 | C114: 1587.050049 | D114: 1587.050049 | E114: 1565.459961 | F114: 1575.609985 | G114: 34252800 | H114: 1575.609985 | I114: 1 | J114: 1 | K114: 1587.05 | L114: 1587.05 | M114: 1565.46 | N114: 1575.61 | O114: 34252800
A115: 100 | B115: 2019-04-24 | C115: 1585.109985 | D115: 1594.030029 | E115: 1583.359985 | F115: 1588.130005 | G115: 34489600 | H115: 1588.130005 | I115: 1 | J115: 1 | K115: 1585.11 | L115: 1594.03 | M115: 1583.36 | N115: 1588.13 | O115: 34489600
A116: 101 | B116: 2019-04-23 | C116: 1560.530029 | D116: 1587.579956 | E116: 1560.530029 | F116: 1585.089966 | G116: 36350300 | H116: 1585.089966 | I116: 1 | J116: 1 | K116: 1560.53 | L116: 1587.58 | M116: 1560.53 | N116: 1585.09 | O116: 36350300
A117: 102 | B117: 2019-04-22 | C117: 1565.219971 | D117: 1565.219971 | E117: 1554.459961 | F117: 1560.040039 | G117: 29979500 | H117: 1560.040039 | I117: 1 | J117: 1 | K117: 1565.22 | L117: 1565.22 | M117: 1554.46 | N117: 1560.04 | O117: 29979500
A118: 103 | B118: 2019-04-18 | C118: 1567.089966 | D118: 1569.199951 | E118: 1556.109985 | F118: 1565.75 | G118: 35068500 | H118: 1565.75 | I118: 1 | J118: 1 | K118: 1567.09 | L118: 1569.2 | M118: 1556.11 | N118: 1565.75 | O118: 35068500
A119: 104 | B119: 2019-04-17 | C119: 1584.130005 | D119: 1588.599976 | E119: 1561.569946 | F119: 1567.599976 | G119: 36023000 | H119: 1567.599976 | I119: 1 | J119: 1 | K119: 1584.13 | L119: 1588.6 | M119: 1561.57 | N119: 1567.6 | O119: 36023000
A120: 105 | B120: 2019-04-16 | C120: 1580.26001 | D120: 1585.430054 | E120: 1579.48999 | F120: 1582.790039 | G120: 34022100 | H120: 1582.790039 | I120: 1 | J120: 1 | K120: 1580.26 | L120: 1585.43 | M120: 1579.49 | N120: 1582.79 | O120: 34022100
A121: 106 | B121: 2019-04-15 | C121: 1585.170044 | D121: 1587.97998 | E121: 1574.72998 | F121: 1579.170044 | G121: 30883300 | H121: 1579.170044 | I121: 1 | J121: 1 | K121: 1585.17 | L121: 1587.98 | M121: 1574.73 | N121: 1579.17 | O121: 30883300
A122: 107 | B122: 2019-04-12 | C122: 1581.380005 | D122: 1589.72998 | E122: 1580.22998 | F122: 1584.800049 | G122: 36884900 | H122: 1584.800049 | I122: 1 | J122: 1 | K122: 1581.38 | L122: 1589.73 | M122: 1580.23 | N122: 1584.8 | O122: 36884900
A123: 108 | B123: 2019-04-11 | C123: 1581.930054 | D123: 1583.72998 | E123: 1577.369995 | F123: 1579.140015 | G123: 29385400 | H123: 1579.140015 | I123: 1 | J123: 1 | K123: 1581.93 | L123: 1583.73 | M123: 1577.37 | N123: 1579.14 | O123: 29385400
A124: 109 | B124: 2019-04-10 | C124: 1560.02002 | D124: 1581.650024 | E124: 1560.02002 | F124: 1581.550049 | G124: 30623800 | H124: 1581.550049 | I124: 1 | J124: 1 | K124: 1560.02 | L124: 1581.65 | M124: 1560.02 | N124: 1581.55 | O124: 30623800
A125: 110 | B125: 2019-04-09 | C125: 1577.51001 | D125: 1577.51001 | E125: 1558.390015 | F125: 1559.680054 | G125: 30079800 | H125: 1559.680054 | I125: 1 | J125: 1 | K125: 1577.51 | L125: 1577.51 | M125: 1558.39 | N125: 1559.68 | O125: 30079800
A126: 111 | B126: 2019-04-08 | C126: 1581.349976 | D126: 1581.349976 | E126: 1571.209961 | F126: 1579 | G126: 30540300 | H126: 1579 | I126: 1 | J126: 1 | K126: 1581.35 | L126: 1581.35 | M126: 1571.21 | N126: 1579 | O126: 30540300
A127: 112 | B127: 2019-04-05 | C127: 1568.22998 | D127: 1582.609985 | E127: 1568.22998 | F127: 1582.560059 | G127: 31468200 | H127: 1582.560059 | I127: 1 | J127: 1 | K127: 1568.23 | L127: 1582.61 | M127: 1568.23 | N127: 1582.56 | O127: 31468200
A128: 113 | B128: 2019-04-04 | C128: 1561.069946 | D128: 1567.5 | E128: 1558.359985 | F128: 1567.48999 | G128: 30151800 | H128: 1567.48999 | I128: 1 | J128: 1 | K128: 1561.07 | L128: 1567.5 | M128: 1558.36 | N128: 1567.49 | O128: 30151800
A129: 114 | B129: 2019-04-03 | C129: 1554.880005 | D129: 1568.400024 | E129: 1554.880005 | F129: 1560.910034 | G129: 35502400 | H129: 1560.910034 | I129: 1 | J129: 1 | K129: 1554.88 | L129: 1568.4 | M129: 1554.88 | N129: 1560.91 | O129: 35502400
A130: 115 | B130: 2019-04-02 | C130: 1556.079956 | D130: 1556.130005 | E130: 1545.550049 | F130: 1553.319946 | G130: 32469000 | H130: 1553.319946 | I130: 1 | J130: 1 | K130: 1556.08 | L130: 1556.13 | M130: 1545.55 | N130: 1553.32 | O130: 32469000
A131: 116 | B131: 2019-04-01 | C131: 1542.890015 | D131: 1556.400024 | E131: 1542.890015 | F131: 1556.060059 | G131: 35007600 | H131: 1556.060059 | I131: 1 | J131: 1 | K131: 1542.89 | L131: 1556.4 | M131: 1542.89 | N131: 1556.06 | O131: 35007600
A132: 117 | B132: 2019-03-29 | C132: 1536.609985 | D132: 1546.97998 | E132: 1532.22998 | F132: 1539.73999 | G132: 37407000 | H132: 1539.73999 | I132: 1 | J132: 1 | K132: 1536.61 | L132: 1546.98 | M132: 1532.23 | N132: 1539.74 | O132: 37407000
A133: 118 | B133: 2019-03-28 | C133: 1522.890015 | D133: 1536.439941 | E133: 1520.119995 | F133: 1535.099976 | G133: 31581700 | H133: 1535.099976 | I133: 1 | J133: 1 | K133: 1522.89 | L133: 1536.44 | M133: 1520.12 | N133: 1535.1 | O133: 31581700
A134: 119 | B134: 2019-03-27 | C134: 1527.969971 | D134: 1530.050049 | E134: 1505.76001 | F134: 1522.22998 | G134: 33729300 | H134: 1522.22998 | I134: 1 | J134: 1 | K134: 1527.97 | L134: 1530.05 | M134: 1505.76 | N134: 1522.23 | O134: 33729300
A135: 120 | B135: 2019-03-26 | C135: 1513.76001 | D135: 1535.869995 | E135: 1513.76001 | F135: 1528.170044 | G135: 32660500 | H135: 1528.170044 | I135: 1 | J135: 1 | K135: 1513.76 | L135: 1535.87 | M135: 1513.76 | N135: 1528.17 | O135: 32660500
A136: 121 | B136: 2019-03-25 | C136: 1505.869995 | D136: 1520.48999 | E136: 1494.98999 | F136: 1512.859985 | G136: 33765800 | H136: 1512.859985 | I136: 1 | J136: 1 | K136: 1505.87 | L136: 1520.49 | M136: 1494.99 | N136: 1512.86 | O136: 33765800
A137: 122 | B137: 2019-03-22 | C137: 1561.969971 | D137: 1561.969971 | E137: 1505.880005 | F137: 1505.920044 | G137: 42372000 | H137: 1505.920044 | I137: 1 | J137: 1 | K137: 1561.97 | L137: 1561.97 | M137: 1505.88 | N137: 1505.92 | O137: 42372000
A138: 123 | B138: 2019-03-21 | C138: 1541.829956 | D138: 1569.349976 | E138: 1538.359985 | F138: 1562.410034 | G138: 35468000 | H138: 1562.410034 | I138: 1 | J138: 1 | K138: 1541.83 | L138: 1569.35 | M138: 1538.36 | N138: 1562.41 | O138: 35468000
A139: 124 | B139: 2019-03-20 | C139: 1554.719971 | D139: 1561.73999 | E139: 1535.410034 | F139: 1543.160034 | G139: 37712000 | H139: 1543.160034 | I139: 1 | J139: 1 | K139: 1554.72 | L139: 1561.74 | M139: 1535.41 | N139: 1543.16 | O139: 37712000
A140: 125 | B140: 2019-03-19 | C140: 1565.530029 | D140: 1570.890015 | E140: 1552.660034 | F140: 1554.98999 | G140: 36202200 | H140: 1554.98999 | I140: 1 | J140: 1 | K140: 1565.53 | L140: 1570.89 | M140: 1552.66 | N140: 1554.99 | O140: 36202200
A141: 126 | B141: 2019-03-18 | C141: 1553.660034 | D141: 1569.060059 | E141: 1552.680054 | F141: 1563.930054 | G141: 35521900 | H141: 1563.930054 | I141: 1 | J141: 1 | K141: 1553.66 | L141: 1569.06 | M141: 1552.68 | N141: 1563.93 | O141: 35521900
A142: 127 | B142: 2019-03-15 | C142: 1550.5 | D142: 1563.589966 | E142: 1550.130005 | F142: 1553.540039 | G142: 59627300 | H142: 1553.540039 | I142: 1 | J142: 1 | K142: 1550.5 | L142: 1563.59 | M142: 1550.13 | N142: 1553.54 | O142: 59627300
A143: 128 | B143: 2019-03-14 | C143: 1555.869995 | D143: 1555.869995 | E143: 1549.209961 | F143: 1549.640015 | G143: 34697300 | H143: 1549.640015 | I143: 1 | J143: 1 | K143: 1555.87 | L143: 1555.87 | M143: 1549.21 | N143: 1549.64 | O143: 34697300
A144: 129 | B144: 2019-03-13 | C144: 1550.27002 | D144: 1562.670044 | E144: 1550.27002 | F144: 1555.880005 | G144: 37661500 | H144: 1555.880005 | I144: 1 | J144: 1 | K144: 1550.27 | L144: 1562.67 | M144: 1550.27 | N144: 1555.88 | O144: 37661500
A145: 130 | B145: 2019-03-12 | C145: 1549.030029 | D145: 1555.300049 | E145: 1545.51001 | F145: 1549.829956 | G145: 34142300 | H145: 1549.829956 | I145: =IF(F145=0,1,H145/F145) -> 1 | J145: =INDEX(OFFSET($T$15,0,0,$S$13+1,1),MATCH(B145,OFFSET($Q$15,0,0,$S$13+1,1),-1)) -> 1 | K145: =ROUND($I145*C145,2) -> 1549.03 | L145: =ROUND($I145*D145,2) -> 1555.3 | M145: =ROUND($I145*E145,2) -> 1545.51 | N145: =ROUND($I145*F145,2) -> 1549.83 | O145: =G145*J145 -> 34142300
A146: 131 | B146: 2019-03-11 | C146: 1522.800049 | D146: 1548.930054 | E146: 1522.800049 | F146: 1548.880005 | G146: 37260900 | H146: 1548.880005 | I146: 1 | J146: 1 | K146: 1522.8 | L146: 1548.93 | M146: 1522.8 | N146: 1548.88 | O146: 37260900
A147: 132 | B147: 2019-03-08 | C147: 1522.530029 | D147: 1523.23999 | E147: 1510.650024 | F147: 1521.880005 | G147: 34231300 | H147: 1521.880005 | I147: 1 | J147: 1 | K147: 1522.53 | L147: 1523.24 | M147: 1510.65 | N147: 1521.88 | O147: 34231300
A148: 133 | B148: 2019-03-07 | C148: 1536.76001 | D148: 1536.969971 | E148: 1521.609985 | F148: 1523.630005 | G148: 39048600 | H148: 1523.630005 | I148: 1 | J148: 1 | K148: 1536.76 | L148: 1536.97 | M148: 1521.61 | N148: 1523.63 | O148: 39048600
A149: 134 | B149: 2019-03-06 | C149: 1568.310059 | D149: 1568.439941 | E149: 1536.819946 | F149: 1536.819946 | G149: 37866000 | H149: 1536.819946 | I149: 1 | J149: 1 | K149: 1568.31 | L149: 1568.44 | M149: 1536.82 | N149: 1536.82 | O149: 37866000
A150: 135 | B150: 2019-03-05 | C150: 1575.689941 | D150: 1575.849976 | E150: 1567.670044 | F150: 1568.280029 | G150: 35856900 | H150: 1568.280029 | I150: 1 | J150: 1 | K150: 1575.69 | L150: 1575.85 | M150: 1567.67 | N150: 1568.28 | O150: 35856900
A151: 136 | B151: 2019-03-04 | C151: 1590.150024 | D151: 1594.23999 | E151: 1564.47998 | F151: 1575.439941 | G151: 39198100 | H151: 1575.439941 | I151: 1 | J151: 1 | K151: 1590.15 | L151: 1594.24 | M151: 1564.48 | N151: 1575.44 | O151: 39198100
A152: 137 | B152: 2019-03-01 | C152: 1577.5 | D152: 1590.290039 | E152: 1576.130005 | F152: 1589.640015 | G152: 39722800 | H152: 1589.640015 | I152: 1 | J152: 1 | K152: 1577.5 | L152: 1590.29 | M152: 1576.13 | N152: 1589.64 | O152: 39722800
A153: 138 | B153: 2019-02-28 | C153: 1580.76001 | D153: 1581.98999 | E153: 1571.310059 | F153: 1575.550049 | G153: 43969300 | H153: 1575.550049 | I153: 1 | J153: 1 | K153: 1580.76 | L153: 1581.99 | M153: 1571.31 | N153: 1575.55 | O153: 43969300
A154: 139 | B154: 2019-02-27 | C154: 1577.199951 | D154: 1582.060059 | E154: 1570.599976 | F154: 1581.050049 | G154: 37671300 | H154: 1581.050049 | I154: 1 | J154: 1 | K154: 1577.2 | L154: 1582.06 | M154: 1570.6 | N154: 1581.05 | O154: 37671300
A155: 140 | B155: 2019-02-26 | C155: 1588.560059 | D155: 1589.26001 | E155: 1577.430054 | F155: 1577.47998 | G155: 36456800 | H155: 1577.47998 | I155: 1 | J155: 1 | K155: 1588.56 | L155: 1589.26 | M155: 1577.43 | N155: 1577.48 | O155: 36456800
A156: 141 | B156: 2019-02-25 | C156: 1591.619995 | D156: 1602.099976 | E156: 1588.810059 | F156: 1588.810059 | G156: 38043800 | H156: 1588.810059 | I156: 1 | J156: 1 | K156: 1591.62 | L156: 1602.1 | M156: 1588.81 | N156: 1588.81 | O156: 38043800
A157: 142 | B157: 2019-02-22 | C157: 1576.310059 | D157: 1590.099976 | E157: 1576.310059 | F157: 1590.060059 | G157: 34278100 | H157: 1590.060059 | I157: 1 | J157: 1 | K157: 1576.31 | L157: 1590.1 | M157: 1576.31 | N157: 1590.06 | O157: 34278100
A158: 143 | B158: 2019-02-21 | C158: 1581.310059 | D158: 1581.310059 | E158: 1569.420044 | F158: 1575.550049 | G158: 35597100 | H158: 1575.550049 | I158: 1 | J158: 1 | K158: 1581.31 | L158: 1581.31 | M158: 1569.42 | N158: 1575.55 | O158: 35597100
A159: 144 | B159: 2019-02-20 | C159: 1574.550049 | D159: 1583.339966 | E159: 1573.959961 | F159: 1581.660034 | G159: 38354500 | H159: 1581.660034 | I159: 1 | J159: 1 | K159: 1574.55 | L159: 1583.34 | M159: 1573.96 | N159: 1581.66 | O159: 38354500
A160: 145 | B160: 2019-02-19 | C160: 1568.540039 | D160: 1578.22998 | E160: 1564.849976 | F160: 1574.469971 | G160: 35337100 | H160: 1574.469971 | I160: 1 | J160: 1 | K160: 1568.54 | L160: 1578.23 | M160: 1564.85 | N160: 1574.47 | O160: 35337100
A161: 146 | B161: 2019-02-15 | C161: 1547.119995 | D161: 1570.160034 | E161: 1547.119995 | F161: 1569.25 | G161: 36413700 | H161: 1569.25 | I161: 1 | J161: 1 | K161: 1547.12 | L161: 1570.16 | M161: 1547.12 | N161: 1569.25 | O161: 36413700
A162: 147 | B162: 2019-02-14 | C162: 1540.98999 | D162: 1551.390015 | E162: 1534.589966 | F162: 1545.109985 | G162: 38367000 | H162: 1545.109985 | I162: 1 | J162: 1 | K162: 1540.99 | L162: 1551.39 | M162: 1534.59 | N162: 1545.11 | O162: 38367000
A163: 148 | B163: 2019-02-13 | C163: 1538.290039 | D163: 1545.73999 | E163: 1536.25 | F163: 1542.939941 | G163: 36707700 | H163: 1542.939941 | I163: 1 | J163: 1 | K163: 1538.29 | L163: 1545.74 | M163: 1536.25 | N163: 1542.94 | O163: 36707700
A164: 149 | B164: 2019-02-12 | C164: 1520.140015 | D164: 1538.890015 | E164: 1520.140015 | F164: 1538.22998 | G164: 38277700 | H164: 1538.22998 | I164: 1 | J164: 1 | K164: 1520.14 | L164: 1538.89 | M164: 1520.14 | N164: 1538.23 | O164: 38277700
A165: 150 | B165: 2019-02-11 | C165: 1506.819946 | D165: 1519.209961 | E165: 1505.670044 | F165: 1518.97998 | G165: 33619700 | H165: 1518.97998 | I165: 1 | J165: 1 | K165: 1506.82 | L165: 1519.21 | M165: 1505.67 | N165: 1518.98 | O165: 33619700
A166: 151 | B166: 2019-02-08 | C166: 1504.170044 | D166: 1506.599976 | E166: 1495.119995 | F166: 1506.390015 | G166: 36223300 | H166: 1506.390015 | I166: 1 | J166: 1 | K166: 1504.17 | L166: 1506.6 | M166: 1495.12 | N166: 1506.39 | O166: 36223300
A167: 152 | B167: 2019-02-07 | C167: 1516.699951 | D167: 1516.699951 | E167: 1494.369995 | F167: 1505.630005 | G167: 40994900 | H167: 1505.630005 | I167: 1 | J167: 1 | K167: 1516.7 | L167: 1516.7 | M167: 1494.37 | N167: 1505.63 | O167: 40994900
A168: 153 | B168: 2019-02-06 | C168: 1520.170044 | D168: 1520.890015 | E168: 1511.180054 | F168: 1518.02002 | G168: 34726900 | H168: 1518.02002 | I168: 1 | J168: 1 | K168: 1520.17 | L168: 1520.89 | M168: 1511.18 | N168: 1518.02 | O168: 34726900
A169: 154 | B169: 2019-02-05 | C169: 1517.920044 | D169: 1524.209961 | E169: 1512.719971 | F169: 1520.22998 | G169: 35604300 | H169: 1520.22998 | I169: 1 | J169: 1 | K169: 1517.92 | L169: 1524.21 | M169: 1512.72 | N169: 1520.23 | O169: 35604300
A170: 155 | B170: 2019-02-04 | C170: 1501.969971 | D170: 1517.550049 | E170: 1500.130005 | F170: 1517.540039 | G170: 33598400 | H170: 1517.540039 | I170: 1 | J170: 1 | K170: 1501.97 | L170: 1517.55 | M170: 1500.13 | N170: 1517.54 | O170: 33598400
A171: 156 | B171: 2019-02-01 | C171: 1499.530029 | D171: 1504.51001 | E171: 1495.469971 | F171: 1502.050049 | G171: 37592700 | H171: 1502.050049 | I171: 1 | J171: 1 | K171: 1499.53 | L171: 1504.51 | M171: 1495.47 | N171: 1502.05 | O171: 37592700
A172: 157 | B172: 2019-01-31 | C172: 1486.640015 | D172: 1500.73999 | E172: 1484.819946 | F172: 1499.420044 | G172: 49176500 | H172: 1499.420044 | I172: 1 | J172: 1 | K172: 1486.64 | L172: 1500.74 | M172: 1484.82 | N172: 1499.42 | O172: 49176500
A173: 158 | B173: 2019-01-30 | C173: 1473.380005 | D173: 1490.51001 | E173: 1467.569946 | F173: 1486.939941 | G173: 38578100 | H173: 1486.939941 | I173: 1 | J173: 1 | K173: 1473.38 | L173: 1490.51 | M173: 1467.57 | N173: 1486.94 | O173: 38578100
A174: 159 | B174: 2019-01-29 | C174: 1473.540039 | D174: 1477.01001 | E174: 1469.310059 | F174: 1471.449951 | G174: 35042000 | H174: 1471.449951 | I174: 1 | J174: 1 | K174: 1473.54 | L174: 1477.01 | M174: 1469.31 | N174: 1471.45 | O174: 35042000
A175: 160 | B175: 2019-01-28 | C175: 1480.280029 | D175: 1480.280029 | E175: 1464.77002 | F175: 1473.540039 | G175: 36128100 | H175: 1473.540039 | I175: 1 | J175: 1 | K175: 1480.28 | L175: 1480.28 | M175: 1464.77 | N175: 1473.54 | O175: 36128100
A176: 161 | B176: 2019-01-25 | C176: 1466.790039 | D176: 1484.599976 | E176: 1466.790039 | F176: 1482.849976 | G176: 38140800 | H176: 1482.849976 | I176: 1 | J176: 1 | K176: 1466.79 | L176: 1484.6 | M176: 1466.79 | N176: 1482.85 | O176: 38140800
A177: 162 | B177: 2019-01-24 | C177: 1454.22998 | D177: 1465.339966 | E177: 1453.72998 | F177: 1464.410034 | G177: 34332500 | H177: 1464.410034 | I177: 1 | J177: 1 | K177: 1454.23 | L177: 1465.34 | M177: 1453.73 | N177: 1464.41 | O177: 34332500
A178: 163 | B178: 2019-01-23 | C178: 1457.72998 | D178: 1468.47998 | E178: 1444.969971 | F178: 1454.26001 | G178: 33356100 | H178: 1454.26001 | I178: 1 | J178: 1 | K178: 1457.73 | L178: 1468.48 | M178: 1444.97 | N178: 1454.26 | O178: 33356100
A179: 164 | B179: 2019-01-22 | C179: 1479.819946 | D179: 1479.819946 | E179: 1451.01001 | F179: 1457.449951 | G179: 38980300 | H179: 1457.449951 | I179: 1 | J179: 1 | K179: 1479.82 | L179: 1479.82 | M179: 1451.01 | N179: 1457.45 | O179: 38980300
A180: 165 | B180: 2019-01-18 | C180: 1466.689941 | D180: 1487.209961 | E180: 1466.689941 | F180: 1482.5 | G180: 39867300 | H180: 1482.5 | I180: 1 | J180: 1 | K180: 1466.69 | L180: 1487.21 | M180: 1466.69 | N180: 1482.5 | O180: 39867300
A181: 166 | B181: 2019-01-17 | C181: 1453.829956 | D181: 1470.839966 | E181: 1448.550049 | F181: 1467.25 | G181: 37722700 | H181: 1467.25 | I181: 1 | J181: 1 | K181: 1453.83 | L181: 1470.84 | M181: 1448.55 | N181: 1467.25 | O181: 37722700
A182: 167 | B182: 2019-01-16 | C182: 1445.910034 | D182: 1460.310059 | E182: 1445.910034 | F182: 1454.699951 | G182: 38637700 | H182: 1454.699951 | I182: 1 | J182: 1 | K182: 1445.91 | L182: 1460.31 | M182: 1445.91 | N182: 1454.7 | O182: 38637700
A183: 168 | B183: 2019-01-15 | C183: 1432.849976 | D183: 1445.219971 | E183: 1432.130005 | F183: 1445.219971 | G183: 35723300 | H183: 1445.219971 | I183: 1 | J183: 1 | K183: 1432.85 | L183: 1445.22 | M183: 1432.13 | N183: 1445.22 | O183: 35723300
A184: 169 | B184: 2019-01-14 | C184: 1446.5 | D184: 1446.5 | E184: 1431.310059 | F184: 1432.810059 | G184: 36644500 | H184: 1432.810059 | I184: 1 | J184: 1 | K184: 1446.5 | L184: 1446.5 | M184: 1431.31 | N184: 1432.81 | O184: 36644500
A185: 170 | B185: 2019-01-11 | C185: 1444.439941 | D185: 1448.280029 | E185: 1437.449951 | F185: 1447.380005 | G185: 34344900 | H185: 1447.380005 | I185: 1 | J185: 1 | K185: 1444.44 | L185: 1448.28 | M185: 1437.45 | N185: 1447.38 | O185: 34344900
A186: 171 | B186: 2019-01-10 | C186: 1436.97998 | D186: 1445.780029 | E186: 1424.540039 | F186: 1445.430054 | G186: 37045000 | H186: 1445.430054 | I186: 1 | J186: 1 | K186: 1436.98 | L186: 1445.78 | M186: 1424.54 | N186: 1445.43 | O186: 37045000
A187: 172 | B187: 2019-01-09 | C187: 1427 | D187: 1442.420044 | E187: 1427 | F187: 1438.810059 | G187: 40524800 | H187: 1438.810059 | I187: 1 | J187: 1 | K187: 1427 | L187: 1442.42 | M187: 1427 | N187: 1438.81 | O187: 40524800
A188: 173 | B188: 2019-01-08 | C188: 1405.869995 | D188: 1426.550049 | E188: 1404.01001 | F188: 1426.550049 | G188: 40810300 | H188: 1426.550049 | I188: 1 | J188: 1 | K188: 1405.87 | L188: 1426.55 | M188: 1404.01 | N188: 1426.55 | O188: 40810300
A189: 174 | B189: 2019-01-07 | C189: 1380.839966 | D189: 1411.900024 | E189: 1380.839966 | F189: 1405.369995 | G189: 41047100 | H189: 1405.369995 | I189: 1 | J189: 1 | K189: 1380.84 | L189: 1411.9 | M189: 1380.84 | N189: 1405.37 | O189: 41047100
A190: 175 | B190: 2019-01-04 | C190: 1333.099976 | D190: 1383.160034 | E190: 1333.099976 | F190: 1380.75 | G190: 42134100 | H190: 1380.75 | I190: 1 | J190: 1 | K190: 1333.1 | L190: 1383.16 | M190: 1333.1 | N190: 1380.75 | O190: 42134100
A191: 176 | B191: 2019-01-03 | C191: 1355.02002 | D191: 1355.02002 | E191: 1328 | F191: 1330.829956 | G191: 38228600 | H191: 1330.829956 | I191: 1 | J191: 1 | K191: 1355.02 | L191: 1355.02 | M191: 1328 | N191: 1330.83 | O191: 38228600
A192: 177 | B192: 2019-01-02 | C192: 1346.109985 | D192: 1357.77002 | E192: 1325.180054 | F192: 1355.910034 | G192: 37331600 | H192: 1355.910034 | I192: 1 | J192: 1 | K192: 1346.11 | L192: 1357.77 | M192: 1325.18 | N192: 1355.91 | O192: 37331600
A193: 178 | B193: 2018-12-31 | C193: 1338.52002 | D193: 1348.560059 | E193: 1329.170044 | F193: 1348.560059 | G193: 34428700 | H193: 1348.560059 | I193: 1 | J193: 1 | K193: 1338.52 | L193: 1348.56 | M193: 1329.17 | N193: 1348.56 | O193: 34428700
A194: 179 | B194: 2018-12-28 | C194: 1332.060059 | D194: 1356.22998 | E194: 1326.439941 | F194: 1337.920044 | G194: 37026200 | H194: 1337.920044 | I194: 1 | J194: 1 | K194: 1332.06 | L194: 1356.23 | M194: 1326.44 | N194: 1337.92 | O194: 37026200
A195: 180 | B195: 2018-12-27 | C195: 1329.790039 | D195: 1331.97998 | E195: 1289.319946 | F195: 1331.819946 | G195: 40966100 | H195: 1331.819946 | I195: 1 | J195: 1 | K195: 1329.79 | L195: 1331.98 | M195: 1289.32 | N195: 1331.82 | O195: 40966100
A196: 181 | B196: 2018-12-26 | C196: 1268.189941 | D196: 1330.420044 | E196: 1268.189941 | F196: 1329.810059 | G196: 42229900 | H196: 1329.810059 | I196: 1 | J196: 1 | K196: 1268.19 | L196: 1330.42 | M196: 1268.19 | N196: 1329.81 | O196: 42229900
A197: 182 | B197: 2018-12-24 | C197: 1290.540039 | D197: 1290.920044 | E197: 1266.920044 | F197: 1266.920044 | G197: 26139300 | H197: 1266.920044 | I197: 1 | J197: 1 | K197: 1290.54 | L197: 1290.92 | M197: 1266.92 | N197: 1266.92 | O197: 26139300
A198: 183 | B198: 2018-12-21 | C198: 1325.869995 | D198: 1334.76001 | E198: 1289.48999 | F198: 1292.089966 | G198: 76090100 | H198: 1292.089966 | I198: 1 | J198: 1 | K198: 1325.87 | L198: 1334.76 | M198: 1289.49 | N198: 1292.09 | O198: 76090100
A199: 184 | B199: 2018-12-20 | C199: 1348.650024 | D199: 1350.890015 | E199: 1313.02002 | F199: 1326 | G199: 55857800 | H199: 1326 | I199: 1 | J199: 1 | K199: 1348.65 | L199: 1350.89 | M199: 1313.02 | N199: 1326 | O199: 55857800
A200: 185 | B200: 2018-12-19 | C200: 1377.209961 | D200: 1392.920044 | E200: 1344.150024 | F200: 1349.22998 | G200: 51279400 | H200: 1349.22998 | I200: 1 | J200: 1 | K200: 1377.21 | L200: 1392.92 | M200: 1344.15 | N200: 1349.23 | O200: 51279400
... 4300 more rows

Sheet CalculationsAndCharts
A1: StochMacdOscillator.xlsm | R1: Price Chart Clutter
A2: =InputPriceData!A1 -> Russell 2000 (^RUT) -Chicago Options (Daily) | R2: TRUE
R3: TRUE
A4: User Charting Controls | E4: Click to Shift Chart One Bar: | R4: TRUE
A5: Data Control | C5: TRUE | R5: TRUE
A6: =InputPriceData!$B$10 -> 8068 | B6: Available Input Data Rows | E6: Earliest: | F6: =OFFSET(InputPriceData!B15,CalculationsAndCharts!A6,0,1,1) -> 1987-09-10
A7: =MAX(A33:A60000) -> 1132 | B7: Available Calculation Rows | E7: Latest: | F7: =OFFSET(InputPriceData!B15,1,0,1,1) -> 2019-09-13
A8: =MIN(AvailableInputRows-DataPanRows,A7) -> 1132 | B8: Logically Available for Calc / Plot | E8: $ Change: | F8: =G33-G34 -> 4.85
A10: Historical Price Windowing Specifications | F10: Click to Shift
A11: 805 | B11: Input Data Offset (Pan) | F11: Points to Plot
A12: 305 | B12: Data Points to Plot (Zoom)
B13: First: | C13: =OFFSET(B32,A12,0,1,1) -> 2015-04-20
B14: ="Last: " & IF(OFFSET(InputPriceData!P15,1+A11,0,1,1)="","",TEXT(OFFSET(InputPriceData!P15,1+A11,0,1,1),"H:MM AM/PM")) -> Last: | C14: =B33 -> 2016-07-01
A15: User Controls
A16: 45 | B16: HH & LL Period | C16: Alpha | D16: 1 - Alpha
A17: 12 | B17: Short EMA Period | C17: =2/(A17+1) -> 0.1538461538 | D17: =1-C17 -> 0.8461538462
A18: 26 | B18: Long EMA Period | C18: =2/(A18+1) -> 0.07407407407 | D18: =1-C18 -> 0.9259259259
A19: 9 | B19: Signal EMA Len | C19: =2/(A19+1) -> 0.2 | D19: =1-C19 -> 0.8
A20: 200 | B20: Long Trend EMA | C20: =2/(A20+1) -> 0.009950248756 | D20: =1-C20 -> 0.9900497512
A21: 10 | B21: Over Bought
A22: -10 | B22: Over Sold | AV22: =10^AV24 -> 75974500
AV24: =LOG10(AV32) -> 7.880667851
A25: Help! I would like to plot data
A26: From | B26: 2015-04-20 | C26: =OFFSET(InputPriceData!$A$15,MATCH(B26,OFFSET(InputPriceData!B15,1,0,InputPriceData!$B$10,1),0),0,1,1)-C27 -> 305 | E26: 253
A27: To | B27: 2016-07-01 | C27: =OFFSET(InputPriceData!$A$15,MATCH(B27,OFFSET(InputPriceData!$B$15,1,0,InputPriceData!$B$10,1),0),0,1,1)-1 -> 805 | E27: =$A$12-$E$26+1 -> 53
H28: @ Cursor => | I28: =OFFSET(A32,$E$27,0,1,1)&"(RR)" -> 53(RR) | J28: =OFFSET($B$32,E27,0,1,1) -> 2016-04-19 | K28: =TEXT(OFFSET(D32,$E$27,0,1,1),"#,##0.00")&"(o)" -> 1,139.83(o) | L28: =TEXT(OFFSET(E32,$E$27,0,1,1),"#,##0.00")&"(h)" -> 1,146.50(h) | M28: =TEXT(OFFSET(F32,$E$27,0,1,1),"#,##0.00")&"(l)" -> 1,135.85(l) | N28: =TEXT(OFFSET(G32,$E$27,0,1,1),"#,##0.00")&"(c)" -> 1,140.23(c) | V28: Charting Clutter Control Work Areas
E29: Cursor ==> | AU29: Work Area For Chart Cursors
A31: Rel Row | H31: ="HH(" & $A$16 & ")" -> HH(45) | I31: ="LL(" & $A$16 & ")" -> LL(45) | J31: HH-LL | K31: ="EMA("& $A$17 & ")" -> EMA(12) | L31: ="Stoch("&$A$17&")" -> Stoch(12) | M31: ="EMA("& $A$18 & ")" -> EMA(26) | N31: ="Stoch("& $A$18 & ")" -> Stoch(26) | O31: ="STMACD (" & A16 & "," & A17 & "," & A18 & ")" -> STMACD (45,12,26) | P31: ="STMACD (" & A16 & "," & A17 & "," & A18 & "," & A19 & ")" -> STMACD (45,12,26,9) | Q31: ="EMA(" & $A$20 & ")" -> EMA(200) | R31: ="Over Bought (" &$A$21 & ")" -> Over Bought (10) | S31: ="Over Sold (" & A22& ")" -> Over Sold (-10) | T31: ="MACD (" & A17 & ", " & A18 & ")" -> MACD (12, 26) | U31: ="MACD (" & A17 & "," & A18 & "," & A19 & ")" -> MACD (12,26,9) | V31: =H31 -> HH(45) | W31: =I31 -> LL(45) | X31: =K31 -> EMA(12) | Y31: =M31 -> EMA(26) | Z31: =Q31 -> EMA(200) | AP31: Used To Color Vol Bars
B32: Date | C32: Volume | D32: Open | E32: High | F32: Low | G32: Close | AP32: Up Vol | AQ32: Dn Vol | AU32: Volume Cursor | AV32: =MAX(OFFSET(C33,0,0,A12,1)) -> 75974500 | AW32: MACD Cursor | AY32: Price Chart Cursor | BA32: STMACD Cursor
A33: 1 | B33: =IF(A33>$A$8,"",OFFSET(InputPriceData!B$15,$A33+$A$11,0,1,1)) -> 2016-07-01 | C33: =IF(A33>$A$8,"",OFFSET(InputPriceData!G$15,CalculationsAndCharts!$A33+$A$11,IF($C$5,8,0),1,1)) -> 34588900 | D33: =IF(A33>$A$8,"",OFFSET(InputPriceData!C$15,CalculationsAndCharts!$A33+$A$11,IF($C$5,8,0),1,1)) -> 1151.75 | E33: =IF(A33>$A$8,"",OFFSET(InputPriceData!D$15,CalculationsAndCharts!$A33+$A$11,IF($C$5,8,0),1,1)) -> 1161.05 | F33: =IF(A33>$A$8,"",OFFSET(InputPriceData!E$15,CalculationsAndCharts!$A33+$A$11,IF($C$5,8,0),1,1)) -> 1151.25 | G33: =IF(A33>$A$8,"",OFFSET(InputPriceData!F$15,CalculationsAndCharts!$A33+$A$11,IF($C$5,8,0),1,1)) -> 1156.77 | H33: =MAX(OFFSET($E33,0,0,$A$16,1)) -> 1190.17 | I33: =MIN(OFFSET($F33,0,0,$A$16,1)) -> 1085.88 | J33: =H33-I33 -> 104.29 | K33: =$G33*$C$17+K34*$D$17 -> 1141.478334 | L33: =(K33-$I33)/$J33 -> 0.5331127989 | M33: =$G33*$C$18+M34*$D$18 -> 1142.685755 | N33: =(M33-$I33)/$J33 -> 0.544690339 | O33: =(L33-N33)*100 -> -1.157754008 | P33: =IFERROR($C$19*O33+$D$19*P34,0) -> 0.5172476284 | Q33: =G33*$C$20+Q34*$D$20 -> 1127.240534 | R33: =$A$21 -> 10 | S33: =$A$22 -> -10 | T33: =(K33-M33) -> -1.207421654 | U33: =T33*$C$19+$D$19*U34 -> 0.5113020488 | V33: =IF($R$2,H33,NA()) -> 1190.17 | W33: =IF($R$2,I33,NA()) -> 1085.88 | X33: =IF($R$3,K33,NA()) -> 1141.478334 | Y33: =IF($R$4,M33,NA()) -> 1142.685755 | Z33: =IF($R$5,Q33,NA()) -> 1127.240534 | AP33: =IF(G33>=D33,C33,NA()) -> 34588900 | AQ33: =IF(G33<D33,C33,NA()) ->  | AU33: =$E$27 -> 53 | AV33: 0 | AW33: =$E$27 -> 53 | AX33: -42 | AY33: =$E$27 -> 53 | AZ33: 919.5225 | BA33: =$E$27 -> 53 | BB33: -18
A34: 2 | B34: =IF(A34>$A$8,"",OFFSET(InputPriceData!B$15,$A34+$A$11,0,1,1)) -> 2016-06-30 | C34: =IF(A34>$A$8,"",OFFSET(InputPriceData!G$15,CalculationsAndCharts!$A34+$A$11,IF($C$5,8,0),1,1)) -> 46228200 | D34: =IF(A34>$A$8,"",OFFSET(InputPriceData!C$15,CalculationsAndCharts!$A34+$A$11,IF($C$5,8,0),1,1)) -> 1132.15 | E34: =IF(A34>$A$8,"",OFFSET(InputPriceData!D$15,CalculationsAndCharts!$A34+$A$11,IF($C$5,8,0),1,1)) -> 1152.03 | F34: =IF(A34>$A$8,"",OFFSET(InputPriceData!E$15,CalculationsAndCharts!$A34+$A$11,IF($C$5,8,0),1,1)) -> 1128.91 | G34: =IF(A34>$A$8,"",OFFSET(InputPriceData!F$15,CalculationsAndCharts!$A34+$A$11,IF($C$5,8,0),1,1)) -> 1151.92 | H34: =MAX(OFFSET($E34,0,0,$A$16,1)) -> 1190.17 | I34: =MIN(OFFSET($F34,0,0,$A$16,1)) -> 1085.88 | J34: =H34-I34 -> 104.29 | K34: =$G34*$C$17+K35*$D$17 -> 1138.698031 | L34: =(K34-$I34)/$J34 -> 0.5064534553 | M34: =$G34*$C$18+M35*$D$18 -> 1141.559016 | N34: =(M34-$I34)/$J34 -> 0.533886431 | O34: =(L34-N34)*100 -> -2.743297571 | P34: =IFERROR($C$19*O34+$D$19*P35,0) -> 0.9359980374 | Q34: 1126.943755 | R34: 10 | S34: -10 | T34: -2.860985036 | U34: 0.9409829746 | V34: 1190.17 | W34: 1085.88 | X34: 1138.698031 | Y34: 1141.559016 | Z34: 1126.943755 | AP34: =IF(G34>=D34,C34,NA()) -> 46228200 | AQ34: =IF(G34<D34,C34,NA()) ->  | AU34: =$E$27 -> 53 | AV34: =CEILING(AV32,10^INT(LOG10(AV32))/8) -> 76250000 | AW34: =$E$27 -> 53 | AX34: 42 | AY34: =$E$27 -> 53 | AZ34: 1328.4 | BA34: =$E$27 -> 53 | BB34: 18
A35: 3 | B35: =IF(A35>$A$8,"",OFFSET(InputPriceData!B$15,$A35+$A$11,0,1,1)) -> 2016-06-29 | C35: =IF(A35>$A$8,"",OFFSET(InputPriceData!G$15,CalculationsAndCharts!$A35+$A$11,IF($C$5,8,0),1,1)) -> 42417400 | D35: =IF(A35>$A$8,"",OFFSET(InputPriceData!C$15,CalculationsAndCharts!$A35+$A$11,IF($C$5,8,0),1,1)) -> 1110.79 | E35: =IF(A35>$A$8,"",OFFSET(InputPriceData!D$15,CalculationsAndCharts!$A35+$A$11,IF($C$5,8,0),1,1)) -> 1132.62 | F35: =IF(A35>$A$8,"",OFFSET(InputPriceData!E$15,CalculationsAndCharts!$A35+$A$11,IF($C$5,8,0),1,1)) -> 1110.79 | G35: =IF(A35>$A$8,"",OFFSET(InputPriceData!F$15,CalculationsAndCharts!$A35+$A$11,IF($C$5,8,0),1,1)) -> 1131.62 | H35: 1190.17 | I35: 1085.88 | J35: 104.29 | K35: 1136.294036 | L35: 0.4834024016 | M35: 1140.730137 | N35: 0.5259386054 | O35: -4.253620383 | P35: 1.855821939 | Q35: 1126.692738 | R35: 10 | S35: -10 | T35: -4.436100698 | U35: 1.891474977 | V35: 1190.17 | W35: 1085.88 | X35: 1136.294036 | Y35: 1140.730137 | Z35: 1126.692738 | AP35: =IF(G35>=D35,C35,NA()) -> 42417400 | AQ35: =IF(G35<D35,C35,NA()) -> 
A36: 4 | B36: =IF(A36>$A$8,"",OFFSET(InputPriceData!B$15,$A36+$A$11,0,1,1)) -> 2016-06-28 | C36: =IF(A36>$A$8,"",OFFSET(InputPriceData!G$15,CalculationsAndCharts!$A36+$A$11,IF($C$5,8,0),1,1)) -> 43858100 | D36: =IF(A36>$A$8,"",OFFSET(InputPriceData!C$15,CalculationsAndCharts!$A36+$A$11,IF($C$5,8,0),1,1)) -> 1092.17 | E36: =IF(A36>$A$8,"",OFFSET(InputPriceData!D$15,CalculationsAndCharts!$A36+$A$11,IF($C$5,8,0),1,1)) -> 1110.5 | F36: =IF(A36>$A$8,"",OFFSET(InputPriceData!E$15,CalculationsAndCharts!$A36+$A$11,IF($C$5,8,0),1,1)) -> 1092.17 | G36: =IF(A36>$A$8,"",OFFSET(InputPriceData!F$15,CalculationsAndCharts!$A36+$A$11,IF($C$5,8,0),1,1)) -> 1107.3 | H36: 1190.17 | I36: 1085.88 | J36: 104.29 | K36: 1137.143861 | L36: 0.4915510718 | M36: 1141.458948 | N36: 0.5329269166 | O36: -4.137584485 | P36: 3.38318252 | Q36: 1126.643217 | R36: 10 | S36: -10 | T36: -4.315086859 | U36: 3.473368896 | V36: 1190.17 | W36: 1085.88 | X36: 1137.143861 | Y36: 1141.458948 | Z36: 1126.643217 | AP36: =IF(G36>=D36,C36,NA()) -> 43858100 | AQ36: =IF(G36<D36,C36,NA()) -> 
A37: 5 | B37: =IF(A37>$A$8,"",OFFSET(InputPriceData!B$15,$A37+$A$11,0,1,1)) -> 2016-06-27 | C37: =IF(A37>$A$8,"",OFFSET(InputPriceData!G$15,CalculationsAndCharts!$A37+$A$11,IF($C$5,8,0),1,1)) -> 54312200 | D37: =IF(A37>$A$8,"",OFFSET(InputPriceData!C$15,CalculationsAndCharts!$A37+$A$11,IF($C$5,8,0),1,1)) -> 1123.81 | E37: =IF(A37>$A$8,"",OFFSET(InputPriceData!D$15,CalculationsAndCharts!$A37+$A$11,IF($C$5,8,0),1,1)) -> 1123.81 | F37: =IF(A37>$A$8,"",OFFSET(InputPriceData!E$15,CalculationsAndCharts!$A37+$A$11,IF($C$5,8,0),1,1)) -> 1085.88 | G37: =IF(A37>$A$8,"",OFFSET(InputPriceData!F$15,CalculationsAndCharts!$A37+$A$11,IF($C$5,8,0),1,1)) -> 1089.65 | H37: 1190.17 | I37: 1085.88 | J37: 104.29 | K37: 1142.570018 | L37: 0.5435805722 | M37: 1144.191664 | N37: 0.5591299644 | O37: -1.554939222 | P37: 5.263374271 | Q37: 1126.837622 | R37: 10 | S37: -10 | T37: -1.621646114 | U37: 5.420482835 | V37: 1190.17 | W37: 1085.88 | X37: 1142.570018 | Y37: 1144.191664 | Z37: 1126.837622 | AQ37: 54312200
A38: 6 | B38: =IF(A38>$A$8,"",OFFSET(InputPriceData!B$15,$A38+$A$11,0,1,1)) -> 2016-06-24 | C38: =IF(A38>$A$8,"",OFFSET(InputPriceData!G$15,CalculationsAndCharts!$A38+$A$11,IF($C$5,8,0),1,1)) -> 75974500 | D38: =IF(A38>$A$8,"",OFFSET(InputPriceData!C$15,CalculationsAndCharts!$A38+$A$11,IF($C$5,8,0),1,1)) -> 1162.92 | E38: =IF(A38>$A$8,"",OFFSET(InputPriceData!D$15,CalculationsAndCharts!$A38+$A$11,IF($C$5,8,0),1,1)) -> 1162.92 | F38: =IF(A38>$A$8,"",OFFSET(InputPriceData!E$15,CalculationsAndCharts!$A38+$A$11,IF($C$5,8,0),1,1)) -> 1123.49 | G38: =IF(A38>$A$8,"",OFFSET(InputPriceData!F$15,CalculationsAndCharts!$A38+$A$11,IF($C$5,8,0),1,1)) -> 1127.54 | H38: 1190.17 | I38: 1085.94 | J38: 104.23 | K38: 1152.191839 | L38: 0.6356311935 | M38: 1148.554997 | N38: 0.6007387231 | O38: 3.489247048 | P38: 6.967952645 | Q38: 1127.211367 | R38: 10 | S38: -10 | T38: 3.636842198 | U38: 7.181015072 | V38: 1190.17 | W38: 1085.94 | X38: 1152.191839 | Y38: 1148.554997 | Z38: 1127.211367 | AQ38: 75974500
A39: 7 | B39: =IF(A39>$A$8,"",OFFSET(InputPriceData!B$15,$A39+$A$11,0,1,1)) -> 2016-06-23 | C39: =IF(A39>$A$8,"",OFFSET(InputPriceData!G$15,CalculationsAndCharts!$A39+$A$11,IF($C$5,8,0),1,1)) -> 32979400 | D39: =IF(A39>$A$8,"",OFFSET(InputPriceData!C$15,CalculationsAndCharts!$A39+$A$11,IF($C$5,8,0),1,1)) -> 1151.51 | E39: =IF(A39>$A$8,"",OFFSET(InputPriceData!D$15,CalculationsAndCharts!$A39+$A$11,IF($C$5,8,0),1,1)) -> 1172.22 | F39: =IF(A39>$A$8,"",OFFSET(InputPriceData!E$15,CalculationsAndCharts!$A39+$A$11,IF($C$5,8,0),1,1)) -> 1151.51 | G39: =IF(A39>$A$8,"",OFFSET(InputPriceData!F$15,CalculationsAndCharts!$A39+$A$11,IF($C$5,8,0),1,1)) -> 1172.22 | H39: 1190.17 | I39: 1085.94 | J39: 104.23 | K39: 1156.673992 | L39: 0.678633713 | M39: 1150.236197 | N39: 0.616868434 | O39: 6.1765279 | P39: 7.837629044 | Q39: 1127.208064 | R39: 10 | S39: -10 | T39: 6.43779503 | U39: 8.067058291 | V39: 1190.17 | W39: 1085.94 | X39: 1156.673992 | Y39: 1150.236197 | Z39: 1127.208064 | AP39: 32979400
A40: 8 | B40: =IF(A40>$A$8,"",OFFSET(InputPriceData!B$15,$A40+$A$11,0,1,1)) -> 2016-06-22 | C40: =IF(A40>$A$8,"",OFFSET(InputPriceData!G$15,CalculationsAndCharts!$A40+$A$11,IF($C$5,8,0),1,1)) -> 31681600 | D40: =IF(A40>$A$8,"",OFFSET(InputPriceData!C$15,CalculationsAndCharts!$A40+$A$11,IF($C$5,8,0),1,1)) -> 1154.15 | E40: =IF(A40>$A$8,"",OFFSET(InputPriceData!D$15,CalculationsAndCharts!$A40+$A$11,IF($C$5,8,0),1,1)) -> 1161.28 | F40: =IF(A40>$A$8,"",OFFSET(InputPriceData!E$15,CalculationsAndCharts!$A40+$A$11,IF($C$5,8,0),1,1)) -> 1148.7 | G40: =IF(A40>$A$8,"",OFFSET(InputPriceData!F$15,CalculationsAndCharts!$A40+$A$11,IF($C$5,8,0),1,1)) -> 1148.97 | H40: 1190.17 | I40: 1085.94 | J40: 104.23 | K40: 1153.847445 | L40: 0.6515153504 | M40: 1148.477493 | N40: 0.5999951321 | O40: 5.15202183 | P40: 8.25290433 | Q40: 1126.755682 | R40: 10 | S40: -10 | T40: 5.369952353 | U40: 8.474374106 | V40: 1190.17 | W40: 1085.94 | X40: 1153.847445 | Y40: 1148.477493 | Z40: 1126.755682 | AQ40: 31681600
A41: 9 | B41: =IF(A41>$A$8,"",OFFSET(InputPriceData!B$15,$A41+$A$11,0,1,1)) -> 2016-06-21 | C41: =IF(A41>$A$8,"",OFFSET(InputPriceData!G$15,CalculationsAndCharts!$A41+$A$11,IF($C$5,8,0),1,1)) -> 32328800 | D41: =IF(A41>$A$8,"",OFFSET(InputPriceData!C$15,CalculationsAndCharts!$A41+$A$11,IF($C$5,8,0),1,1)) -> 1158.12 | E41: =IF(A41>$A$8,"",OFFSET(InputPriceData!D$15,CalculationsAndCharts!$A41+$A$11,IF($C$5,8,0),1,1)) -> 1158.85 | F41: =IF(A41>$A$8,"",OFFSET(InputPriceData!E$15,CalculationsAndCharts!$A41+$A$11,IF($C$5,8,0),1,1)) -> 1147.77 | G41: =IF(A41>$A$8,"",OFFSET(InputPriceData!F$15,CalculationsAndCharts!$A41+$A$11,IF($C$5,8,0),1,1)) -> 1153.87 | H41: 1190.17 | I41: 1085.94 | J41: 104.23 | K41: 1154.734253 | L41: 0.660023536 | M41: 1148.438092 | N41: 0.5996171163 | O41: 6.040641965 | P41: 9.028124955 | Q41: 1126.532423 | R41: 10 | S41: -10 | T41: 6.296161121 | U41: 9.250479545 | V41: 1190.17 | W41: 1085.94 | X41: 1154.734253 | Y41: 1148.438092 | Z41: 1126.532423 | AQ41: 32328800
A42: 10 | B42: =IF(A42>$A$8,"",OFFSET(InputPriceData!B$15,$A42+$A$11,0,1,1)) -> 2016-06-20 | C42: =IF(A42>$A$8,"",OFFSET(InputPriceData!G$15,CalculationsAndCharts!$A42+$A$11,IF($C$5,8,0),1,1)) -> 34674400 | D42: =IF(A42>$A$8,"",OFFSET(InputPriceData!C$15,CalculationsAndCharts!$A42+$A$11,IF($C$5,8,0),1,1)) -> 1146.39 | E42: =IF(A42>$A$8,"",OFFSET(InputPriceData!D$15,CalculationsAndCharts!$A42+$A$11,IF($C$5,8,0),1,1)) -> 1167.12 | F42: =IF(A42>$A$8,"",OFFSET(InputPriceData!E$15,CalculationsAndCharts!$A42+$A$11,IF($C$5,8,0),1,1)) -> 1146.39 | G42: =IF(A42>$A$8,"",OFFSET(InputPriceData!F$15,CalculationsAndCharts!$A42+$A$11,IF($C$5,8,0),1,1)) -> 1157.7 | H42: 1190.17 | I42: 1085.94 | J42: 104.23 | K42: 1154.89139 | L42: 0.6615311339 | M42: 1148.003539 | N42: 0.5954479458 | O42: 6.608318809 | P42: 9.774995702 | Q42: 1126.257673 | R42: 10 | S42: -10 | T42: 6.887850695 | U42: 9.989059151 | V42: 1190.17 | W42: 1085.94 | X42: 1154.89139 | Y42: 1148.003539 | Z42: 1126.257673 | AP42: 34674400
A43: 11 | B43: =IF(A43>$A$8,"",OFFSET(InputPriceData!B$15,$A43+$A$11,0,1,1)) -> 2016-06-17 | C43: =IF(A43>$A$8,"",OFFSET(InputPriceData!G$15,CalculationsAndCharts!$A43+$A$11,IF($C$5,8,0),1,1)) -> 49026300 | D43: =IF(A43>$A$8,"",OFFSET(InputPriceData!C$15,CalculationsAndCharts!$A43+$A$11,IF($C$5,8,0),1,1)) -> 1148.96 | E43: =IF(A43>$A$8,"",OFFSET(InputPriceData!D$15,CalculationsAndCharts!$A43+$A$11,IF($C$5,8,0),1,1)) -> 1151.69 | F43: =IF(A43>$A$8,"",OFFSET(InputPriceData!E$15,CalculationsAndCharts!$A43+$A$11,IF($C$5,8,0),1,1)) -> 1141.49 | G43: =IF(A43>$A$8,"",OFFSET(InputPriceData!F$15,CalculationsAndCharts!$A43+$A$11,IF($C$5,8,0),1,1)) -> 1144.7 | H43: 1190.17 | I43: 1085.94 | J43: 104.23 | K43: 1154.380734 | L43: 0.6566318118 | M43: 1147.227823 | N43: 0.588005589 | O43: 6.862622274 | P43: 10.56666493 | Q43: 1125.94167 | R43: 10 | S43: -10 | T43: 7.152911196 | U43: 10.76436126 | V43: 1190.17 | W43: 1085.94 | X43: 1154.380734 | Y43: 1147.227823 | Z43: 1125.94167 | AQ43: 49026300
A44: 12 | B44: =IF(A44>$A$8,"",OFFSET(InputPriceData!B$15,$A44+$A$11,0,1,1)) -> 2016-06-16 | C44: =IF(A44>$A$8,"",OFFSET(InputPriceData!G$15,CalculationsAndCharts!$A44+$A$11,IF($C$5,8,0),1,1)) -> 36282800 | D44: =IF(A44>$A$8,"",OFFSET(InputPriceData!C$15,CalculationsAndCharts!$A44+$A$11,IF($C$5,8,0),1,1)) -> 1147.86 | E44: =IF(A44>$A$8,"",OFFSET(InputPriceData!D$15,CalculationsAndCharts!$A44+$A$11,IF($C$5,8,0),1,1)) -> 1148.86 | F44: =IF(A44>$A$8,"",OFFSET(InputPriceData!E$15,CalculationsAndCharts!$A44+$A$11,IF($C$5,8,0),1,1)) -> 1133.1 | G44: =IF(A44>$A$8,"",OFFSET(InputPriceData!F$15,CalculationsAndCharts!$A44+$A$11,IF($C$5,8,0),1,1)) -> 1148.19 | H44: 1190.17 | I44: 1085.94 | J44: 104.23 | K44: 1156.140867 | L44: 0.6735188252 | M44: 1147.430048 | N44: 0.5899457771 | O44: 8.357304806 | P44: 11.49267559 | Q44: 1125.753144 | R44: 10 | S44: -10 | T44: 8.7108188 | U44: 11.66722378 | V44: 1190.17 | W44: 1085.94 | X44: 1156.140867 | Y44: 1147.430048 | Z44: 1125.753144 | AP44: 36282800
A45: 13 | B45: =IF(A45>$A$8,"",OFFSET(InputPriceData!B$15,$A45+$A$11,0,1,1)) -> 2016-06-15 | C45: =IF(A45>$A$8,"",OFFSET(InputPriceData!G$15,CalculationsAndCharts!$A45+$A$11,IF($C$5,8,0),1,1)) -> 35447200 | D45: =IF(A45>$A$8,"",OFFSET(InputPriceData!C$15,CalculationsAndCharts!$A45+$A$11,IF($C$5,8,0),1,1)) -> 1148.09 | E45: =IF(A45>$A$8,"",OFFSET(InputPriceData!D$15,CalculationsAndCharts!$A45+$A$11,IF($C$5,8,0),1,1)) -> 1157.96 | F45: =IF(A45>$A$8,"",OFFSET(InputPriceData!E$15,CalculationsAndCharts!$A45+$A$11,IF($C$5,8,0),1,1)) -> 1148.09 | G45: =IF(A45>$A$8,"",OFFSET(InputPriceData!F$15,CalculationsAndCharts!$A45+$A$11,IF($C$5,8,0),1,1)) -> 1149.3 | H45: 1190.17 | I45: 1085.94 | J45: 104.23 | K45: 1157.586479 | L45: 0.6873882698 | M45: 1147.369252 | N45: 0.5893624889 | O45: 9.802578087 | P45: 12.27651828 | Q45: 1125.527648 | R45: 10 | S45: -10 | T45: 10.21722714 | U45: 12.40632503 | V45: 1190.17 | W45: 1085.94 | X45: 1157.586479 | Y45: 1147.369252 | Z45: 1125.527648 | AP45: 35447200
A46: 14 | B46: =IF(A46>$A$8,"",OFFSET(InputPriceData!B$15,$A46+$A$11,0,1,1)) -> 2016-06-14 | C46: =IF(A46>$A$8,"",OFFSET(InputPriceData!G$15,CalculationsAndCharts!$A46+$A$11,IF($C$5,8,0),1,1)) -> 37597700 | D46: =IF(A46>$A$8,"",OFFSET(InputPriceData!C$15,CalculationsAndCharts!$A46+$A$11,IF($C$5,8,0),1,1)) -> 1149.59 | E46: =IF(A46>$A$8,"",OFFSET(InputPriceData!D$15,CalculationsAndCharts!$A46+$A$11,IF($C$5,8,0),1,1)) -> 1153.22 | F46: =IF(A46>$A$8,"",OFFSET(InputPriceData!E$15,CalculationsAndCharts!$A46+$A$11,IF($C$5,8,0),1,1)) -> 1141.23 | G46: =IF(A46>$A$8,"",OFFSET(InputPriceData!F$15,CalculationsAndCharts!$A46+$A$11,IF($C$5,8,0),1,1)) -> 1147.82 | H46: 1190.17 | I46: 1085.94 | J46: 104.23 | K46: 1159.093112 | L46: 0.7018431543 | M46: 1147.214792 | N46: 0.5878805756 | O46: 11.39625787 | P46: 12.89500333 | Q46: 1125.28873 | R46: 10 | S46: -10 | T46: 11.87831957 | U46: 12.9535995 | V46: 1190.17 | W46: 1085.94 | X46: 1159.093112 | Y46: 1147.214792 | Z46: 1125.28873 | AQ46: 37597700
A47: 15 | B47: =IF(A47>$A$8,"",OFFSET(InputPriceData!B$15,$A47+$A$11,0,1,1)) -> 2016-06-13 | C47: =IF(A47>$A$8,"",OFFSET(InputPriceData!G$15,CalculationsAndCharts!$A47+$A$11,IF($C$5,8,0),1,1)) -> 33920300 | D47: =IF(A47>$A$8,"",OFFSET(InputPriceData!C$15,CalculationsAndCharts!$A47+$A$11,IF($C$5,8,0),1,1)) -> 1162.53 | E47: =IF(A47>$A$8,"",OFFSET(InputPriceData!D$15,CalculationsAndCharts!$A47+$A$11,IF($C$5,8,0),1,1)) -> 1164.9 | F47: =IF(A47>$A$8,"",OFFSET(InputPriceData!E$15,CalculationsAndCharts!$A47+$A$11,IF($C$5,8,0),1,1)) -> 1149.48 | G47: =IF(A47>$A$8,"",OFFSET(InputPriceData!F$15,CalculationsAndCharts!$A47+$A$11,IF($C$5,8,0),1,1)) -> 1150.7 | H47: 1190.17 | I47: 1085.94 | J47: 104.23 | K47: 1161.142769 | L47: 0.7215079026 | M47: 1147.166376 | N47: 0.5874160586 | O47: 13.4091844 | P47: 13.2696897 | Q47: 1125.062285 | R47: 10 | S47: -10 | T47: 13.9763929 | U47: 13.22241948 | V47: 1190.17 | W47: 1085.94 | X47: 1161.142769 | Y47: 1147.166376 | Z47: 1125.062285 | AQ47: 33920300
A48: 16 | B48: =IF(A48>$A$8,"",OFFSET(InputPriceData!B$15,$A48+$A$11,0,1,1)) -> 2016-06-10 | C48: =IF(A48>$A$8,"",OFFSET(InputPriceData!G$15,CalculationsAndCharts!$A48+$A$11,IF($C$5,8,0),1,1)) -> 35150100 | D48: =IF(A48>$A$8,"",OFFSET(InputPriceData!C$15,CalculationsAndCharts!$A48+$A$11,IF($C$5,8,0),1,1)) -> 1178.38 | E48: =IF(A48>$A$8,"",OFFSET(InputPriceData!D$15,CalculationsAndCharts!$A48+$A$11,IF($C$5,8,0),1,1)) -> 1178.38 | F48: =IF(A48>$A$8,"",OFFSET(InputPriceData!E$15,CalculationsAndCharts!$A48+$A$11,IF($C$5,8,0),1,1)) -> 1161.27 | G48: =IF(A48>$A$8,"",OFFSET(InputPriceData!F$15,CalculationsAndCharts!$A48+$A$11,IF($C$5,8,0),1,1)) -> 1163.93 | H48: 1190.17 | I48: 1085.94 | J48: 104.23 | K48: 1163.041454 | L48: 0.7397242052 | M48: 1146.883686 | N48: 0.5847038842 | O48: 15.5020321 | P48: 13.23481602 | Q48: 1124.80462 | R48: 10 | S48: -10 | T48: 16.15776806 | U48: 13.03392612 | V48: 1190.17 | W48: 1085.94 | X48: 1163.041454 | Y48: 1146.883686 | Z48: 1124.80462 | AQ48: 35150100
A49: 17 | B49: =IF(A49>$A$8,"",OFFSET(InputPriceData!B$15,$A49+$A$11,0,1,1)) -> 2016-06-09 | C49: =IF(A49>$A$8,"",OFFSET(InputPriceData!G$15,CalculationsAndCharts!$A49+$A$11,IF($C$5,8,0),1,1)) -> 32903200 | D49: =IF(A49>$A$8,"",OFFSET(InputPriceData!C$15,CalculationsAndCharts!$A49+$A$11,IF($C$5,8,0),1,1)) -> 1188.23 | E49: =IF(A49>$A$8,"",OFFSET(InputPriceData!D$15,CalculationsAndCharts!$A49+$A$11,IF($C$5,8,0),1,1)) -> 1188.23 | F49: =IF(A49>$A$8,"",OFFSET(InputPriceData!E$15,CalculationsAndCharts!$A49+$A$11,IF($C$5,8,0),1,1)) -> 1177.86 | G49: =IF(A49>$A$8,"",OFFSET(InputPriceData!F$15,CalculationsAndCharts!$A49+$A$11,IF($C$5,8,0),1,1)) -> 1181.2 | H49: 1190.17 | I49: 1085.94 | J49: 104.23 | K49: 1162.8799 | L49: 0.7381742307 | M49: 1145.519981 | N49: 0.5716202698 | O49: 16.6553961 | P49: 12.668012 | Q49: 1124.4114 | R49: 10 | S49: -10 | T49: 17.35991935 | U49: 12.25296564 | V49: 1190.17 | W49: 1085.94 | X49: 1162.8799 | Y49: 1145.519981 | Z49: 1124.4114 | AQ49: 32903200
A50: 18 | B50: =IF(A50>$A$8,"",OFFSET(InputPriceData!B$15,$A50+$A$11,0,1,1)) -> 2016-06-08 | C50: =IF(A50>$A$8,"",OFFSET(InputPriceData!G$15,CalculationsAndCharts!$A50+$A$11,IF($C$5,8,0),1,1)) -> 35620600 | D50: =IF(A50>$A$8,"",OFFSET(InputPriceData!C$15,CalculationsAndCharts!$A50+$A$11,IF($C$5,8,0),1,1)) -> 1180.2 | E50: =IF(A50>$A$8,"",OFFSET(InputPriceData!D$15,CalculationsAndCharts!$A50+$A$11,IF($C$5,8,0),1,1)) -> 1190.17 | F50: =IF(A50>$A$8,"",OFFSET(InputPriceData!E$15,CalculationsAndCharts!$A50+$A$11,IF($C$5,8,0),1,1)) -> 1180.2 | G50: =IF(A50>$A$8,"",OFFSET(InputPriceData!F$15,CalculationsAndCharts!$A50+$A$11,IF($C$5,8,0),1,1)) -> 1188.95 | H50: 1190.17 | I50: 1085.94 | J50: 104.23 | K50: 1159.548973 | L50: 0.7062167592 | M50: 1142.665579 | N50: 0.5442346654 | O50: 16.19820938 | P50: 11.67116598 | Q50: 1123.84066 | R50: 10 | S50: -10 | T50: 16.88339364 | U50: 10.97622721 | V50: 1190.17 | W50: 1085.94 | X50: 1159.548973 | Y50: 1142.665579 | Z50: 1123.84066 | AP50: 35620600
A51: 19 | B51: =IF(A51>$A$8,"",OFFSET(InputPriceData!B$15,$A51+$A$11,0,1,1)) -> 2016-06-07 | C51: =IF(A51>$A$8,"",OFFSET(InputPriceData!G$15,CalculationsAndCharts!$A51+$A$11,IF($C$5,8,0),1,1)) -> 35347300 | D51: =IF(A51>$A$8,"",OFFSET(InputPriceData!C$15,CalculationsAndCharts!$A51+$A$11,IF($C$5,8,0),1,1)) -> 1177.19 | E51: =IF(A51>$A$8,"",OFFSET(InputPriceData!D$15,CalculationsAndCharts!$A51+$A$11,IF($C$5,8,0),1,1)) -> 1183.75 | F51: =IF(A51>$A$8,"",OFFSET(InputPriceData!E$15,CalculationsAndCharts!$A51+$A$11,IF($C$5,8,0),1,1)) -> 1175.05 | G51: =IF(A51>$A$8,"",OFFSET(InputPriceData!F$15,CalculationsAndCharts!$A51+$A$11,IF($C$5,8,0),1,1)) -> 1179.97 | H51: 1183.75 | I51: 1085.94 | J51: 97.81 | K51: 1154.203332 | L51: 0.697917713 | M51: 1138.962826 | N51: 0.5421002506 | O51: 15.58174624 | P51: 10.53940513 | Q51: 1123.186295 | R51: 10 | S51: -10 | T51: 15.240506 | U51: 9.499435607 | V51: 1183.75 | W51: 1085.94 | X51: 1154.203332 | Y51: 1138.962826 | Z51: 1123.186295 | AP51: 35347300
A52: 20 | B52: =IF(A52>$A$8,"",OFFSET(InputPriceData!B$15,$A52+$A$11,0,1,1)) -> 2016-06-06 | C52: =IF(A52>$A$8,"",OFFSET(InputPriceData!G$15,CalculationsAndCharts!$A52+$A$11,IF($C$5,8,0),1,1)) -> 34420200 | D52: =IF(A52>$A$8,"",OFFSET(InputPriceData!C$15,CalculationsAndCharts!$A52+$A$11,IF($C$5,8,0),1,1)) -> 1164.26 | E52: =IF(A52>$A$8,"",OFFSET(InputPriceData!D$15,CalculationsAndCharts!$A52+$A$11,IF($C$5,8,0),1,1)) -> 1179.34 | F52: =IF(A52>$A$8,"",OFFSET(InputPriceData!E$15,CalculationsAndCharts!$A52+$A$11,IF($C$5,8,0),1,1)) -> 1163.68 | G52: =IF(A52>$A$8,"",OFFSET(InputPriceData!F$15,CalculationsAndCharts!$A52+$A$11,IF($C$5,8,0),1,1)) -> 1176.87 | H52: 1179.34 | I52: 1085.94 | J52: 93.4 | K52: 1149.518483 | L52: 0.6807118061 | M52: 1135.682252 | N52: 0.5325722864 | O52: 14.81395197 | P52: 9.278819855 | Q52: 1122.615604 | R52: 10 | S52: -10 | T52: 13.83623114 | U52: 8.06416801 | V52: 1179.34 | W52: 1085.94 | X52: 1149.518483 | Y52: 1135.682252 | Z52: 1122.615604 | AP52: 34420200
A53: 21 | B53: =IF(A53>$A$8,"",OFFSET(InputPriceData!B$15,$A53+$A$11,0,1,1)) -> 2016-06-03 | C53: =IF(A53>$A$8,"",OFFSET(InputPriceData!G$15,CalculationsAndCharts!$A53+$A$11,IF($C$5,8,0),1,1)) -> 36277800 | D53: =IF(A53>$A$8,"",OFFSET(InputPriceData!C$15,CalculationsAndCharts!$A53+$A$11,IF($C$5,8,0),1,1)) -> 1170.39 | E53: =IF(A53>$A$8,"",OFFSET(InputPriceData!D$15,CalculationsAndCharts!$A53+$A$11,IF($C$5,8,0),1,1)) -> 1170.39 | F53: =IF(A53>$A$8,"",OFFSET(InputPriceData!E$15,CalculationsAndCharts!$A53+$A$11,IF($C$5,8,0),1,1)) -> 1155.84 | G53: =IF(A53>$A$8,"",OFFSET(InputPriceData!F$15,CalculationsAndCharts!$A53+$A$11,IF($C$5,8,0),1,1)) -> 1164.13 | H53: 1170.77 | I53: 1085.94 | J53: 84.83 | K53: 1144.54548 | L53: 0.6908579458 | M53: 1132.387232 | N53: 0.5475330859 | O53: 14.33248599 | P53: 7.895036827 | Q53: 1122.070334 | R53: 10 | S53: -10 | T53: 12.15824787 | U53: 6.621152229 | V53: 1170.77 | W53: 1085.94 | X53: 1144.54548 | Y53: 1132.387232 | Z53: 1122.070334 | AQ53: 36277800
A54: 22 | B54: =IF(A54>$A$8,"",OFFSET(InputPriceData!B$15,$A54+$A$11,0,1,1)) -> 2016-06-02 | C54: =IF(A54>$A$8,"",OFFSET(InputPriceData!G$15,CalculationsAndCharts!$A54+$A$11,IF($C$5,8,0),1,1)) -> 36327200 | D54: =IF(A54>$A$8,"",OFFSET(InputPriceData!C$15,CalculationsAndCharts!$A54+$A$11,IF($C$5,8,0),1,1)) -> 1162.74 | E54: =IF(A54>$A$8,"",OFFSET(InputPriceData!D$15,CalculationsAndCharts!$A54+$A$11,IF($C$5,8,0),1,1)) -> 1170.77 | F54: =IF(A54>$A$8,"",OFFSET(InputPriceData!E$15,CalculationsAndCharts!$A54+$A$11,IF($C$5,8,0),1,1)) -> 1159.36 | G54: =IF(A54>$A$8,"",OFFSET(InputPriceData!F$15,CalculationsAndCharts!$A54+$A$11,IF($C$5,8,0),1,1)) -> 1170.58 | H54: 1170.77 | I54: 1085.94 | J54: 84.83 | K54: 1140.984658 | L54: 0.6488819714 | M54: 1129.84781 | N54: 0.5175976684 | O54: 13.12843031 | P54: 6.285674536 | Q54: 1121.647624 | R54: 10 | S54: -10 | T54: 11.13684743 | U54: 5.236878319 | V54: 1170.77 | W54: 1085.94 | X54: 1140.984658 | Y54: 1129.84781 | Z54: 1121.647624 | AP54: 36327200
A55: 23 | B55: =IF(A55>$A$8,"",OFFSET(InputPriceData!B$15,$A55+$A$11,0,1,1)) -> 2016-06-01 | C55: =IF(A55>$A$8,"",OFFSET(InputPriceData!G$15,CalculationsAndCharts!$A55+$A$11,IF($C$5,8,0),1,1)) -> 35251700 | D55: =IF(A55>$A$8,"",OFFSET(InputPriceData!C$15,CalculationsAndCharts!$A55+$A$11,IF($C$5,8,0),1,1)) -> 1154.51 | E55: =IF(A55>$A$8,"",OFFSET(InputPriceData!D$15,CalculationsAndCharts!$A55+$A$11,IF($C$5,8,0),1,1)) -> 1163.43 | F55: =IF(A55>$A$8,"",OFFSET(InputPriceData!E$15,CalculationsAndCharts!$A55+$A$11,IF($C$5,8,0),1,1)) -> 1148.6 | G55: =IF(A55>$A$8,"",OFFSET(InputPriceData!F$15,CalculationsAndCharts!$A55+$A$11,IF($C$5,8,0),1,1)) -> 1163.04 | H55: 1163.43 | I55: 1085.94 | J55: 77.49 | K55: 1135.603686 | L55: 0.640904456 | M55: 1126.589235 | N55: 0.5245739453 | O55: 11.63305107 | P55: 4.574985593 | Q55: 1121.155841 | R55: 10 | S55: -10 | T55: 9.014451274 | U55: 3.761886042 | V55: 1163.43 | W55: 1085.94 | X55: 1135.603686 | Y55: 1126.589235 | Z55: 1121.155841 | AP55: 35251700
A56: 24 | B56: =IF(A56>$A$8,"",OFFSET(InputPriceData!B$15,$A56+$A$11,0,1,1)) -> 2016-05-31 | C56: =IF(A56>$A$8,"",OFFSET(InputPriceData!G$15,CalculationsAndCharts!$A56+$A$11,IF($C$5,8,0),1,1)) -> 45144100 | D56: =IF(A56>$A$8,"",OFFSET(InputPriceData!C$15,CalculationsAndCharts!$A56+$A$11,IF($C$5,8,0),1,1)) -> 1150.6 | E56: =IF(A56>$A$8,"",OFFSET(InputPriceData!D$15,CalculationsAndCharts!$A56+$A$11,IF($C$5,8,0),1,1)) -> 1158.97 | F56: =IF(A56>$A$8,"",OFFSET(InputPriceData!E$15,CalculationsAndCharts!$A56+$A$11,IF($C$5,8,0),1,1)) -> 1150.34 | G56: =IF(A56>$A$8,"",OFFSET(InputPriceData!F$15,CalculationsAndCharts!$A56+$A$11,IF($C$5,8,0),1,1)) -> 1154.79 | H56: 1158.97 | I56: 1075.43 | J56: 83.54 | K56: 1130.615266 | L56: 0.6605849369 | M56: 1123.673174 | N56: 0.5774859208 | O56: 8.309901603 | P56: 2.810469224 | Q56: 1120.734895 | R56: 10 | S56: -10 | T56: 6.942091799 | U56: 2.448744734 | V56: 1158.97 | W56: 1075.43 | X56: 1130.615266 | Y56: 1123.673174 | Z56: 1120.734895 | AP56: 45144100
A57: 25 | B57: =IF(A57>$A$8,"",OFFSET(InputPriceData!B$15,$A57+$A$11,0,1,1)) -> 2016-05-27 | C57: =IF(A57>$A$8,"",OFFSET(InputPriceData!G$15,CalculationsAndCharts!$A57+$A$11,IF($C$5,8,0),1,1)) -> 30791500 | D57: =IF(A57>$A$8,"",OFFSET(InputPriceData!C$15,CalculationsAndCharts!$A57+$A$11,IF($C$5,8,0),1,1)) -> 1139.98 | E57: =IF(A57>$A$8,"",OFFSET(InputPriceData!D$15,CalculationsAndCharts!$A57+$A$11,IF($C$5,8,0),1,1)) -> 1150.45 | F57: =IF(A57>$A$8,"",OFFSET(InputPriceData!E$15,CalculationsAndCharts!$A57+$A$11,IF($C$5,8,0),1,1)) -> 1139.98 | G57: =IF(A57>$A$8,"",OFFSET(InputPriceData!F$15,CalculationsAndCharts!$A57+$A$11,IF($C$5,8,0),1,1)) -> 1150.45 | H57: 1156.07 | I57: 1073.46 | J57: 82.61 | K57: 1126.219859 | L57: 0.6386618978 | M57: 1121.183828 | N57: 0.577700372 | O57: 6.096152576 | P57: 1.435611129 | Q57: 1120.392632 | R57: 10 | S57: -10 | T57: 5.036031643 | U57: 1.325407967 | V57: 1156.07 | W57: 1073.46 | X57: 1126.219859 | Y57: 1121.183828 | Z57: 1120.392632 | AP57: 30791500
A58: 26 | B58: =IF(A58>$A$8,"",OFFSET(InputPriceData!B$15,$A58+$A$11,0,1,1)) -> 2016-05-26 | C58: =IF(A58>$A$8,"",OFFSET(InputPriceData!G$15,CalculationsAndCharts!$A58+$A$11,IF($C$5,8,0),1,1)) -> 32309900 | D58: =IF(A58>$A$8,"",OFFSET(InputPriceData!C$15,CalculationsAndCharts!$A58+$A$11,IF($C$5,8,0),1,1)) -> 1141.1 | E58: =IF(A58>$A$8,"",OFFSET(InputPriceData!D$15,CalculationsAndCharts!$A58+$A$11,IF($C$5,8,0),1,1)) -> 1143.19 | F58: =IF(A58>$A$8,"",OFFSET(InputPriceData!E$15,CalculationsAndCharts!$A58+$A$11,IF($C$5,8,0),1,1)) -> 1137.59 | G58: =IF(A58>$A$8,"",OFFSET(InputPriceData!F$15,CalculationsAndCharts!$A58+$A$11,IF($C$5,8,0),1,1)) -> 1139.75 | H58: 1156.07 | I58: 1065.62 | J58: 90.45 | K58: 1121.814379 | L58: 0.6212756137 | M58: 1118.842534 | N58: 0.5884193914 | O58: 3.285622234 | P58: 0.2704757677 | Q58: 1120.090548 | R58: 10 | S58: -10 | T58: 2.971845311 | U58: 0.3977520483 | V58: 1156.07 | W58: 1065.62 | X58: 1121.814379 | Y58: 1118.842534 | Z58: 1120.090548 | AQ58: 32309900
A59: 27 | B59: =IF(A59>$A$8,"",OFFSET(InputPriceData!B$15,$A59+$A$11,0,1,1)) -> 2016-05-25 | C59: =IF(A59>$A$8,"",OFFSET(InputPriceData!G$15,CalculationsAndCharts!$A59+$A$11,IF($C$5,8,0),1,1)) -> 38591600 | D59: =IF(A59>$A$8,"",OFFSET(InputPriceData!C$15,CalculationsAndCharts!$A59+$A$11,IF($C$5,8,0),1,1)) -> 1136.37 | E59: =IF(A59>$A$8,"",OFFSET(InputPriceData!D$15,CalculationsAndCharts!$A59+$A$11,IF($C$5,8,0),1,1)) -> 1142.85 | F59: =IF(A59>$A$8,"",OFFSET(InputPriceData!E$15,CalculationsAndCharts!$A59+$A$11,IF($C$5,8,0),1,1)) -> 1136.37 | G59: =IF(A59>$A$8,"",OFFSET(InputPriceData!F$15,CalculationsAndCharts!$A59+$A$11,IF($C$5,8,0),1,1)) -> 1141.02 | H59: 1156.07 | I59: 1065.62 | J59: 90.45 | K59: 1118.553357 | L59: 0.585222303 | M59: 1117.169937 | N59: 0.5699274369 | O59: 1.529486614 | P59: -0.483310849 | Q59: 1119.892966 | R59: 10 | S59: -10 | T59: 1.383420642 | U59: -0.2457712674 | V59: 1156.07 | W59: 1065.62 | X59: 1118.553357 | Y59: 1117.169937 | Z59: 1119.892966 | AP59: 38591600
A60: 28 | B60: =IF(A60>$A$8,"",OFFSET(InputPriceData!B$15,$A60+$A$11,0,1,1)) -> 2016-05-24 | C60: =IF(A60>$A$8,"",OFFSET(InputPriceData!G$15,CalculationsAndCharts!$A60+$A$11,IF($C$5,8,0),1,1)) -> 36273400 | D60: =IF(A60>$A$8,"",OFFSET(InputPriceData!C$15,CalculationsAndCharts!$A60+$A$11,IF($C$5,8,0),1,1)) -> 1112.51 | E60: =IF(A60>$A$8,"",OFFSET(InputPriceData!D$15,CalculationsAndCharts!$A60+$A$11,IF($C$5,8,0),1,1)) -> 1136.29 | F60: =IF(A60>$A$8,"",OFFSET(InputPriceData!E$15,CalculationsAndCharts!$A60+$A$11,IF($C$5,8,0),1,1)) -> 1112.51 | G60: =IF(A60>$A$8,"",OFFSET(InputPriceData!F$15,CalculationsAndCharts!$A60+$A$11,IF($C$5,8,0),1,1)) -> 1135.31 | H60: 1156.07 | I60: 1065.62 | J60: 90.45 | K60: 1114.468513 | L60: 0.5400609528 | M60: 1115.261932 | N60: 0.5488328535 | O60: -0.8771900681 | P60: -0.9865102147 | Q60: 1119.680634 | R60: 10 | S60: -10 | T60: -0.7934184166 | U60: -0.6530692449 | V60: 1156.07 | W60: 1065.62 | X60: 1114.468513 | Y60: 1115.261932 | Z60: 1119.680634 | AP60: 36273400
A61: 29 | B61: =IF(A61>$A$8,"",OFFSET(InputPriceData!B$15,$A61+$A$11,0,1,1)) -> 2016-05-23 | C61: =IF(A61>$A$8,"",OFFSET(InputPriceData!G$15,CalculationsAndCharts!$A61+$A$11,IF($C$5,8,0),1,1)) -> 30554800 | D61: =IF(A61>$A$8,"",OFFSET(InputPriceData!C$15,CalculationsAndCharts!$A61+$A$11,IF($C$5,8,0),1,1)) -> 1112.47 | E61: =IF(A61>$A$8,"",OFFSET(InputPriceData!D$15,CalculationsAndCharts!$A61+$A$11,IF($C$5,8,0),1,1)) -> 1117.32 | F61: =IF(A61>$A$8,"",OFFSET(InputPriceData!E$15,CalculationsAndCharts!$A61+$A$11,IF($C$5,8,0),1,1)) -> 1110.87 | G61: =IF(A61>$A$8,"",OFFSET(InputPriceData!F$15,CalculationsAndCharts!$A61+$A$11,IF($C$5,8,0),1,1)) -> 1111.37 | H61: 1156.07 | I61: 1065.62 | J61: 90.45 | K61: 1110.679152 | L61: 0.4981664117 | M61: 1113.658086 | N61: 0.5311010075 | O61: -3.293459573 | P61: -1.013840251 | Q61: 1119.523555 | R61: 10 | S61: -10 | T61: -2.978934184 | U61: -0.6179819519 | V61: 1156.07 | W61: 1065.62 | X61: 1110.679152 | Y61: 1113.658086 | Z61: 1119.523555 | AQ61: 30554800
A62: 30 | B62: =IF(A62>$A$8,"",OFFSET(InputPriceData!B$15,$A62+$A$11,0,1,1)) -> 2016-05-20 | C62: =IF(A62>$A$8,"",OFFSET(InputPriceData!G$15,CalculationsAndCharts!$A62+$A$11,IF($C$5,8,0),1,1)) -> 35076500 | D62: =IF(A62>$A$8,"",OFFSET(InputPriceData!C$15,CalculationsAndCharts!$A62+$A$11,IF($C$5,8,0),1,1)) -> 1095.16 | E62: =IF(A62>$A$8,"",OFFSET(InputPriceData!D$15,CalculationsAndCharts!$A62+$A$11,IF($C$5,8,0),1,1)) -> 1112.32 | F62: =IF(A62>$A$8,"",OFFSET(InputPriceData!E$15,CalculationsAndCharts!$A62+$A$11,IF($C$5,8,0),1,1)) -> 1095.16 | G62: =IF(A62>$A$8,"",OFFSET(InputPriceData!F$15,CalculationsAndCharts!$A62+$A$11,IF($C$5,8,0),1,1)) -> 1112.28 | H62: 1156.07 | I62: 1065.62 | J62: 90.45 | K62: 1110.553543 | L62: 0.4967777027 | M62: 1113.841133 | N62: 0.5331247431 | O62: -3.634704049 | P62: -0.4439354209 | Q62: 1119.6055 | R62: 10 | S62: -10 | T62: -3.287589812 | U62: -0.02774389389 | V62: 1156.07 | W62: 1065.62 | X62: 1110.553543 | Y62: 1113.841133 | Z62: 1119.6055 | AP62: 35076500
A63: 31 | B63: =IF(A63>$A$8,"",OFFSET(InputPriceData!B$15,$A63+$A$11,0,1,1)) -> 2016-05-19 | C63: =IF(A63>$A$8,"",OFFSET(InputPriceData!G$15,CalculationsAndCharts!$A63+$A$11,IF($C$5,8,0),1,1)) -> 38467700 | D63: =IF(A63>$A$8,"",OFFSET(InputPriceData!C$15,CalculationsAndCharts!$A63+$A$11,IF($C$5,8,0),1,1)) -> 1101.69 | E63: =IF(A63>$A$8,"",OFFSET(InputPriceData!D$15,CalculationsAndCharts!$A63+$A$11,IF($C$5,8,0),1,1)) -> 1103.72 | F63: =IF(A63>$A$8,"",OFFSET(InputPriceData!E$15,CalculationsAndCharts!$A63+$A$11,IF($C$5,8,0),1,1)) -> 1085.94 | G63: =IF(A63>$A$8,"",OFFSET(InputPriceData!F$15,CalculationsAndCharts!$A63+$A$11,IF($C$5,8,0),1,1)) -> 1094.78 | H63: 1156.07 | I63: 1065.62 | J63: 90.45 | K63: 1110.239642 | L63: 0.4933072633 | M63: 1113.966024 | N63: 0.5345055131 | O63: -4.119824974 | P63: 0.353756736 | Q63: 1119.679123 | R63: 10 | S63: -10 | T63: -3.726381689 | U63: 0.7872175856 | V63: 1156.07 | W63: 1065.62 | X63: 1110.239642 | Y63: 1113.966024 | Z63: 1119.679123 | AQ63: 38467700
A64: 32 | B64: =IF(A64>$A$8,"",OFFSET(InputPriceData!B$15,$A64+$A$11,0,1,1)) -> 2016-05-18 | C64: =IF(A64>$A$8,"",OFFSET(InputPriceData!G$15,CalculationsAndCharts!$A64+$A$11,IF($C$5,8,0),1,1)) -> 41013200 | D64: =IF(A64>$A$8,"",OFFSET(InputPriceData!C$15,CalculationsAndCharts!$A64+$A$11,IF($C$5,8,0),1,1)) -> 1097.19 | E64: =IF(A64>$A$8,"",OFFSET(InputPriceData!D$15,CalculationsAndCharts!$A64+$A$11,IF($C$5,8,0),1,1)) -> 1110.73 | F64: =IF(A64>$A$8,"",OFFSET(InputPriceData!E$15,CalculationsAndCharts!$A64+$A$11,IF($C$5,8,0),1,1)) -> 1093.95 | G64: =IF(A64>$A$8,"",OFFSET(InputPriceData!F$15,CalculationsAndCharts!$A64+$A$11,IF($C$5,8,0),1,1)) -> 1102.95 | H64: 1156.07 | I64: 1063.66 | J64: 92.41 | K64: 1113.050486 | L64: 0.5344712257 | M64: 1115.500906 | N64: 0.5609880484 | O64: -2.651682271 | P64: 1.472152163 | Q64: 1119.929366 | R64: 10 | S64: -10 | T64: -2.450419587 | U64: 1.915617404 | V64: 1156.07 | W64: 1063.66 | X64: 1113.050486 | Y64: 1115.500906 | Z64: 1119.929366 | AP64: 41013200
A65: 33 | B65: =IF(A65>$A$8,"",OFFSET(InputPriceData!B$15,$A65+$A$11,0,1,1)) -> 2016-05-17 | C65: =IF(A65>$A$8,"",OFFSET(InputPriceData!G$15,CalculationsAndCharts!$A65+$A$11,IF($C$5,8,0),1,1)) -> 41089600 | D65: =IF(A65>$A$8,"",OFFSET(InputPriceData!C$15,CalculationsAndCharts!$A65+$A$11,IF($C$5,8,0),1,1)) -> 1115.41 | E65: =IF(A65>$A$8,"",OFFSET(InputPriceData!D$15,CalculationsAndCharts!$A65+$A$11,IF($C$5,8,0),1,1)) -> 1118.34 | F65: =IF(A65>$A$8,"",OFFSET(InputPriceData!E$15,CalculationsAndCharts!$A65+$A$11,IF($C$5,8,0),1,1)) -> 1094.06 | G65: =IF(A65>$A$8,"",OFFSET(InputPriceData!F$15,CalculationsAndCharts!$A65+$A$11,IF($C$5,8,0),1,1)) -> 1097.68 | H65: 1156.07 | I65: 1063.66 | J65: 92.41 | K65: 1114.886938 | L65: 0.5543440965 | M65: 1116.504978 | N65: 0.5718534574 | O65: -1.750936087 | P65: 2.503110772 | Q65: 1120.100013 | R65: 10 | S65: -10 | T65: -1.618040038 | U65: 3.007126652 | V65: 1156.07 | W65: 1063.66 | X65: 1114.886938 | Y65: 1116.504978 | Z65: 1120.100013 | AQ65: 41089600
A66: 34 | B66: =IF(A66>$A$8,"",OFFSET(InputPriceData!B$15,$A66+$A$11,0,1,1)) -> 2016-05-16 | C66: =IF(A66>$A$8,"",OFFSET(InputPriceData!G$15,CalculationsAndCharts!$A66+$A$11,IF($C$5,8,0),1,1)) -> 35013600 | D66: =IF(A66>$A$8,"",OFFSET(InputPriceData!C$15,CalculationsAndCharts!$A66+$A$11,IF($C$5,8,0),1,1)) -> 1103.23 | E66: =IF(A66>$A$8,"",OFFSET(InputPriceData!D$15,CalculationsAndCharts!$A66+$A$11,IF($C$5,8,0),1,1)) -> 1119.68 | F66: =IF(A66>$A$8,"",OFFSET(InputPriceData!E$15,CalculationsAndCharts!$A66+$A$11,IF($C$5,8,0),1,1)) -> 1103.23 | G66: =IF(A66>$A$8,"",OFFSET(InputPriceData!F$15,CalculationsAndCharts!$A66+$A$11,IF($C$5,8,0),1,1)) -> 1116.21 | H66: 1156.07 | I66: 1063.66 | J66: 92.41 | K66: 1118.015472 | L66: 0.5881990275 | M66: 1118.010976 | N66: 0.5881503759 | O66: 0.004865162779 | P66: 3.566622487 | Q66: 1120.325339 | R66: 10 | S66: -10 | T66: 0.004495896924 | U66: 4.163418324 | V66: 1156.07 | W66: 1063.66 | X66: 1118.015472 | Y66: 1118.010976 | Z66: 1120.325339 | AP66: 35013600
A67: 35 | B67: =IF(A67>$A$8,"",OFFSET(InputPriceData!B$15,$A67+$A$11,0,1,1)) -> 2016-05-13 | C67: =IF(A67>$A$8,"",OFFSET(InputPriceData!G$15,CalculationsAndCharts!$A67+$A$11,IF($C$5,8,0),1,1)) -> 35798800 | D67: =IF(A67>$A$8,"",OFFSET(InputPriceData!C$15,CalculationsAndCharts!$A67+$A$11,IF($C$5,8,0),1,1)) -> 1108.37 | E67: =IF(A67>$A$8,"",OFFSET(InputPriceData!D$15,CalculationsAndCharts!$A67+$A$11,IF($C$5,8,0),1,1)) -> 1112.96 | F67: =IF(A67>$A$8,"",OFFSET(InputPriceData!E$15,CalculationsAndCharts!$A67+$A$11,IF($C$5,8,0),1,1)) -> 1099.44 | G67: =IF(A67>$A$8,"",OFFSET(InputPriceData!F$15,CalculationsAndCharts!$A67+$A$11,IF($C$5,8,0),1,1)) -> 1102.44 | H67: 1156.07 | I67: 1063.66 | J67: 92.41 | K67: 1118.34374 | L67: 0.5917513234 | M67: 1118.155054 | N67: 0.5897094939 | O67: 0.2041829439 | P67: 4.457061818 | Q67: 1120.3667 | R67: 10 | S67: -10 | T67: 0.1886854584 | U67: 5.203148931 | V67: 1156.07 | W67: 1063.66 | X67: 1118.34374 | Y67: 1118.155054 | Z67: 1120.3667 | AQ67: 35798800
A68: 36 | B68: =IF(A68>$A$8,"",OFFSET(InputPriceData!B$15,$A68+$A$11,0,1,1)) -> 2016-05-12 | C68: =IF(A68>$A$8,"",OFFSET(InputPriceData!G$15,CalculationsAndCharts!$A68+$A$11,IF($C$5,8,0),1,1)) -> 37823900 | D68: =IF(A68>$A$8,"",OFFSET(InputPriceData!C$15,CalculationsAndCharts!$A68+$A$11,IF($C$5,8,0),1,1)) -> 1114.87 | E68: =IF(A68>$A$8,"",OFFSET(InputPriceData!D$15,CalculationsAndCharts!$A68+$A$11,IF($C$5,8,0),1,1)) -> 1119.89 | F68: =IF(A68>$A$8,"",OFFSET(InputPriceData!E$15,CalculationsAndCharts!$A68+$A$11,IF($C$5,8,0),1,1)) -> 1101.26 | G68: =IF(A68>$A$8,"",OFFSET(InputPriceData!F$15,CalculationsAndCharts!$A68+$A$11,IF($C$5,8,0),1,1)) -> 1108.6 | H68: 1156.07 | I68: 1054.56 | J68: 101.51 | K68: 1121.235329 | L68: 0.6568350788 | M68: 1119.412259 | N68: 0.6388755658 | O68: 1.7959513 | P68: 5.520281536 | Q68: 1120.546867 | R68: 10 | S68: -10 | T68: 1.823070165 | U68: 6.456764799 | V68: 1156.07 | W68: 1054.56 | X68: 1121.235329 | Y68: 1119.412259 | Z68: 1120.546867 | AQ68: 37823900
A69: 37 | B69: =IF(A69>$A$8,"",OFFSET(InputPriceData!B$15,$A69+$A$11,0,1,1)) -> 2016-05-11 | C69: =IF(A69>$A$8,"",OFFSET(InputPriceData!G$15,CalculationsAndCharts!$A69+$A$11,IF($C$5,8,0),1,1)) -> 38219800 | D69: =IF(A69>$A$8,"",OFFSET(InputPriceData!C$15,CalculationsAndCharts!$A69+$A$11,IF($C$5,8,0),1,1)) -> 1128.47 | E69: =IF(A69>$A$8,"",OFFSET(InputPriceData!D$15,CalculationsAndCharts!$A69+$A$11,IF($C$5,8,0),1,1)) -> 1128.47 | F69: =IF(A69>$A$8,"",OFFSET(InputPriceData!E$15,CalculationsAndCharts!$A69+$A$11,IF($C$5,8,0),1,1)) -> 1114.61 | G69: =IF(A69>$A$8,"",OFFSET(InputPriceData!F$15,CalculationsAndCharts!$A69+$A$11,IF($C$5,8,0),1,1)) -> 1114.74 | H69: 1156.07 | I69: 1054.56 | J69: 101.51 | K69: 1123.532661 | L69: 0.6794666669 | M69: 1120.277239 | N69: 0.6473967035 | O69: 3.206996343 | P69: 6.451364095 | Q69: 1120.666936 | R69: 10 | S69: -10 | T69: 3.255421988 | U69: 7.615188458 | V69: 1156.07 | W69: 1054.56 | X69: 1123.532661 | Y69: 1120.277239 | Z69: 1120.666936 | AQ69: 38219800
A70: 38 | B70: =IF(A70>$A$8,"",OFFSET(InputPriceData!B$15,$A70+$A$11,0,1,1)) -> 2016-05-10 | C70: =IF(A70>$A$8,"",OFFSET(InputPriceData!G$15,CalculationsAndCharts!$A70+$A$11,IF($C$5,8,0),1,1)) -> 36002000 | D70: =IF(A70>$A$8,"",OFFSET(InputPriceData!C$15,CalculationsAndCharts!$A70+$A$11,IF($C$5,8,0),1,1)) -> 1118.74 | E70: =IF(A70>$A$8,"",OFFSET(InputPriceData!D$15,CalculationsAndCharts!$A70+$A$11,IF($C$5,8,0),1,1)) -> 1129.04 | F70: =IF(A70>$A$8,"",OFFSET(InputPriceData!E$15,CalculationsAndCharts!$A70+$A$11,IF($C$5,8,0),1,1)) -> 1117.94 | G70: =IF(A70>$A$8,"",OFFSET(InputPriceData!F$15,CalculationsAndCharts!$A70+$A$11,IF($C$5,8,0),1,1)) -> 1128.83 | H70: 1156.07 | I70: 1054.56 | J70: 101.51 | K70: 1125.131327 | L70: 0.6952155163 | M70: 1120.720219 | N70: 0.6517606002 | O70: 4.345491616 | P70: 7.262456033 | Q70: 1120.726504 | R70: 10 | S70: -10 | T70: 4.41110854 | U70: 8.705130076 | V70: 1156.07 | W70: 1054.56 | X70: 1125.131327 | Y70: 1120.720219 | Z70: 1120.726504 | AP70: 36002000
A71: 39 | B71: =IF(A71>$A$8,"",OFFSET(InputPriceData!B$15,$A71+$A$11,0,1,1)) -> 2016-05-09 | C71: =IF(A71>$A$8,"",OFFSET(InputPriceData!G$15,CalculationsAndCharts!$A71+$A$11,IF($C$5,8,0),1,1)) -> 37886200 | D71: =IF(A71>$A$8,"",OFFSET(InputPriceData!C$15,CalculationsAndCharts!$A71+$A$11,IF($C$5,8,0),1,1)) -> 1114.72 | E71: =IF(A71>$A$8,"",OFFSET(InputPriceData!D$15,CalculationsAndCharts!$A71+$A$11,IF($C$5,8,0),1,1)) -> 1123.65 | F71: =IF(A71>$A$8,"",OFFSET(InputPriceData!E$15,CalculationsAndCharts!$A71+$A$11,IF($C$5,8,0),1,1)) -> 1113.08 | G71: =IF(A71>$A$8,"",OFFSET(InputPriceData!F$15,CalculationsAndCharts!$A71+$A$11,IF($C$5,8,0),1,1)) -> 1118.25 | H71: 1156.07 | I71: 1054.56 | J71: 101.51 | K71: 1124.458841 | L71: 0.6885906913 | M71: 1120.071436 | N71: 0.6453692839 | O71: 4.322140744 | P71: 7.991697138 | Q71: 1120.645061 | R71: 10 | S71: -10 | T71: 4.38740507 | U71: 9.77863546 | V71: 1156.07 | W71: 1054.56 | X71: 1124.458841 | Y71: 1120.071436 | Z71: 1120.645061 | AP71: 37886200
A72: 40 | B72: =IF(A72>$A$8,"",OFFSET(InputPriceData!B$15,$A72+$A$11,0,1,1)) -> 2016-05-06 | C72: =IF(A72>$A$8,"",OFFSET(InputPriceData!G$15,CalculationsAndCharts!$A72+$A$11,IF($C$5,8,0),1,1)) -> 37963500 | D72: =IF(A72>$A$8,"",OFFSET(InputPriceData!C$15,CalculationsAndCharts!$A72+$A$11,IF($C$5,8,0),1,1)) -> 1107.8 | E72: =IF(A72>$A$8,"",OFFSET(InputPriceData!D$15,CalculationsAndCharts!$A72+$A$11,IF($C$5,8,0),1,1)) -> 1114.77 | F72: =IF(A72>$A$8,"",OFFSET(InputPriceData!E$15,CalculationsAndCharts!$A72+$A$11,IF($C$5,8,0),1,1)) -> 1101.57 | G72: =IF(A72>$A$8,"",OFFSET(InputPriceData!F$15,CalculationsAndCharts!$A72+$A$11,IF($C$5,8,0),1,1)) -> 1114.72 | H72: 1156.07 | I72: 1054.56 | J72: 101.51 | K72: 1125.587721 | L72: 0.699711568 | M72: 1120.217151 | N72: 0.646804757 | O72: 5.2906811 | P72: 8.909086236 | Q72: 1120.669132 | R72: 10 | S72: -10 | T72: 5.370570385 | U72: 11.12644306 | V72: 1156.07 | W72: 1054.56 | X72: 1125.587721 | Y72: 1120.217151 | Z72: 1120.669132 | AP72: 37963500
A73: 41 | B73: =IF(A73>$A$8,"",OFFSET(InputPriceData!B$15,$A73+$A$11,0,1,1)) -> 2016-05-05 | C73: =IF(A73>$A$8,"",OFFSET(InputPriceData!G$15,CalculationsAndCharts!$A73+$A$11,IF($C$5,8,0),1,1)) -> 40085300 | D73: =IF(A73>$A$8,"",OFFSET(InputPriceData!C$15,CalculationsAndCharts!$A73+$A$11,IF($C$5,8,0),1,1)) -> 1114.35 | E73: =IF(A73>$A$8,"",OFFSET(InputPriceData!D$15,CalculationsAndCharts!$A73+$A$11,IF($C$5,8,0),1,1)) -> 1118.38 | F73: =IF(A73>$A$8,"",OFFSET(InputPriceData!E$15,CalculationsAndCharts!$A73+$A$11,IF($C$5,8,0),1,1)) -> 1107.64 | G73: =IF(A73>$A$8,"",OFFSET(InputPriceData!F$15,CalculationsAndCharts!$A73+$A$11,IF($C$5,8,0),1,1)) -> 1107.95 | H73: 1156.07 | I73: 1054.56 | J73: 101.51 | K73: 1127.563671 | L73: 0.7191771313 | M73: 1120.656923 | N73: 0.65113706 | O73: 6.804007128 | P73: 9.81368752 | Q73: 1120.728923 | R73: 10 | S73: -10 | T73: 6.906747636 | U73: 12.56541123 | V73: 1156.07 | W73: 1054.56 | X73: 1127.563671 | Y73: 1120.656923 | Z73: 1120.728923 | AQ73: 40085300
A74: 42 | B74: =IF(A74>$A$8,"",OFFSET(InputPriceData!B$15,$A74+$A$11,0,1,1)) -> 2016-05-04 | C74: =IF(A74>$A$8,"",OFFSET(InputPriceData!G$15,CalculationsAndCharts!$A74+$A$11,IF($C$5,8,0),1,1)) -> 40585600 | D74: =IF(A74>$A$8,"",OFFSET(InputPriceData!C$15,CalculationsAndCharts!$A74+$A$11,IF($C$5,8,0),1,1)) -> 1121.16 | E74: =IF(A74>$A$8,"",OFFSET(InputPriceData!D$15,CalculationsAndCharts!$A74+$A$11,IF($C$5,8,0),1,1)) -> 1123.69 | F74: =IF(A74>$A$8,"",OFFSET(InputPriceData!E$15,CalculationsAndCharts!$A74+$A$11,IF($C$5,8,0),1,1)) -> 1110.39 | G74: =IF(A74>$A$8,"",OFFSET(InputPriceData!F$15,CalculationsAndCharts!$A74+$A$11,IF($C$5,8,0),1,1)) -> 1113.13 | H74: 1156.07 | I74: 1052.15 | J74: 103.92 | K74: 1131.129793 | L74: 0.7600057017 | M74: 1121.673477 | N74: 0.6690095919 | O74: 9.099610975 | P74: 10.56610762 | Q74: 1120.857354 | R74: 10 | S74: -10 | T74: 9.456315725 | U74: 13.98007712 | V74: 1156.07 | W74: 1052.15 | X74: 1131.129793 | Y74: 1121.673477 | Z74: 1120.857354 | AQ74: 40585600
A75: 43 | B75: =IF(A75>$A$8,"",OFFSET(InputPriceData!B$15,$A75+$A$11,0,1,1)) -> 2016-05-03 | C75: =IF(A75>$A$8,"",OFFSET(InputPriceData!G$15,CalculationsAndCharts!$A75+$A$11,IF($C$5,8,0),1,1)) -> 41733900 | D75: =IF(A75>$A$8,"",OFFSET(InputPriceData!C$15,CalculationsAndCharts!$A75+$A$11,IF($C$5,8,0),1,1)) -> 1138.87 | E75: =IF(A75>$A$8,"",OFFSET(InputPriceData!D$15,CalculationsAndCharts!$A75+$A$11,IF($C$5,8,0),1,1)) -> 1138.87 | F75: =IF(A75>$A$8,"",OFFSET(InputPriceData!E$15,CalculationsAndCharts!$A75+$A$11,IF($C$5,8,0),1,1)) -> 1116.53 | G75: =IF(A75>$A$8,"",OFFSET(InputPriceData!F$15,CalculationsAndCharts!$A75+$A$11,IF($C$5,8,0),1,1)) -> 1121.76 | H75: 1156.07 | I75: 1035.52 | J75: 120.55 | K75: 1134.402482 | L75: 0.8202611536 | M75: 1122.356955 | N75: 0.720339734 | O75: 9.992141958 | P75: 10.93273178 | Q75: 1120.935016 | R75: 10 | S75: -10 | T75: 12.04552713 | U75: 15.11101747 | V75: 1156.07 | W75: 1035.52 | X75: 1134.402482 | Y75: 1122.356955 | Z75: 1120.935016 | AQ75: 41733900
A76: 44 | B76: =IF(A76>$A$8,"",OFFSET(InputPriceData!B$15,$A76+$A$11,0,1,1)) -> 2016-05-02 | C76: =IF(A76>$A$8,"",OFFSET(InputPriceData!G$15,CalculationsAndCharts!$A76+$A$11,IF($C$5,8,0),1,1)) -> 38411100 | D76: =IF(A76>$A$8,"",OFFSET(InputPriceData!C$15,CalculationsAndCharts!$A76+$A$11,IF($C$5,8,0),1,1)) -> 1131.21 | E76: =IF(A76>$A$8,"",OFFSET(InputPriceData!D$15,CalculationsAndCharts!$A76+$A$11,IF($C$5,8,0),1,1)) -> 1140.92 | F76: =IF(A76>$A$8,"",OFFSET(InputPriceData!E$15,CalculationsAndCharts!$A76+$A$11,IF($C$5,8,0),1,1)) -> 1129.24 | G76: =IF(A76>$A$8,"",OFFSET(InputPriceData!F$15,CalculationsAndCharts!$A76+$A$11,IF($C$5,8,0),1,1)) -> 1140.92 | H76: 1156.07 | I76: 1033.67 | J76: 122.4 | K76: 1136.701115 | L76: 0.8417574769 | M76: 1122.404711 | N76: 0.7249567919 | O76: 11.6800685 | P76: 11.16787923 | Q76: 1120.926725 | R76: 10 | S76: -10 | T76: 14.29640384 | U76: 15.87739006 | V76: 1156.07 | W76: 1033.67 | X76: 1136.701115 | Y76: 1122.404711 | Z76: 1120.926725 | AP76: 38411100
A77: 45 | B77: =IF(A77>$A$8,"",OFFSET(InputPriceData!B$15,$A77+$A$11,0,1,1)) -> 2016-04-29 | C77: =IF(A77>$A$8,"",OFFSET(InputPriceData!G$15,CalculationsAndCharts!$A77+$A$11,IF($C$5,8,0),1,1)) -> 47047200 | D77: =IF(A77>$A$8,"",OFFSET(InputPriceData!C$15,CalculationsAndCharts!$A77+$A$11,IF($C$5,8,0),1,1)) -> 1140.11 | E77: =IF(A77>$A$8,"",OFFSET(InputPriceData!D$15,CalculationsAndCharts!$A77+$A$11,IF($C$5,8,0),1,1)) -> 1140.11 | F77: =IF(A77>$A$8,"",OFFSET(InputPriceData!E$15,CalculationsAndCharts!$A77+$A$11,IF($C$5,8,0),1,1)) -> 1124.26 | G77: =IF(A77>$A$8,"",OFFSET(InputPriceData!F$15,CalculationsAndCharts!$A77+$A$11,IF($C$5,8,0),1,1)) -> 1130.85 | H77: 1156.07 | I77: 1031.59 | J77: 124.48 | K77: 1135.934045 | L77: 0.8382394377 | M77: 1120.923488 | N77: 0.7176533438 | O77: 12.05860939 | P77: 11.03983192 | Q77: 1120.725787 | R77: 10 | S77: -10 | T77: 15.01055696 | U77: 16.27263661 | V77: 1156.07 | W77: 1031.59 | X77: 1135.934045 | Y77: 1120.923488 | Z77: 1120.725787 | AQ77: 47047200
A78: 46 | B78: =IF(A78>$A$8,"",OFFSET(InputPriceData!B$15,$A78+$A$11,0,1,1)) -> 2016-04-28 | C78: =IF(A78>$A$8,"",OFFSET(InputPriceData!G$15,CalculationsAndCharts!$A78+$A$11,IF($C$5,8,0),1,1)) -> 43098400 | D78: =IF(A78>$A$8,"",OFFSET(InputPriceData!C$15,CalculationsAndCharts!$A78+$A$11,IF($C$5,8,0),1,1)) -> 1153.11 | E78: =IF(A78>$A$8,"",OFFSET(InputPriceData!D$15,CalculationsAndCharts!$A78+$A$11,IF($C$5,8,0),1,1)) -> 1155.55 | F78: =IF(A78>$A$8,"",OFFSET(InputPriceData!E$15,CalculationsAndCharts!$A78+$A$11,IF($C$5,8,0),1,1)) -> 1138.7 | G78: =IF(A78>$A$8,"",OFFSET(InputPriceData!F$15,CalculationsAndCharts!$A78+$A$11,IF($C$5,8,0),1,1)) -> 1140.4 | H78: 1156.07 | I78: 1020.46 | J78: 135.61 | K78: 1136.858417 | L78: 0.8583321072 | M78: 1120.129367 | N78: 0.7349706312 | O78: 12.3361476 | P78: 10.78513755 | Q78: 1120.624036 | R78: 10 | S78: -10 | T78: 16.72904976 | U78: 16.58815652 | V78: 1156.07 | W78: 1020.46 | X78: 1136.858417 | Y78: 1120.129367 | Z78: 1120.624036 | AQ78: 43098400
A79: 47 | B79: =IF(A79>$A$8,"",OFFSET(InputPriceData!B$15,$A79+$A$11,0,1,1)) -> 2016-04-27 | C79: =IF(A79>$A$8,"",OFFSET(InputPriceData!G$15,CalculationsAndCharts!$A79+$A$11,IF($C$5,8,0),1,1)) -> 41001100 | D79: =IF(A79>$A$8,"",OFFSET(InputPriceData!C$15,CalculationsAndCharts!$A79+$A$11,IF($C$5,8,0),1,1)) -> 1150.92 | E79: =IF(A79>$A$8,"",OFFSET(InputPriceData!D$15,CalculationsAndCharts!$A79+$A$11,IF($C$5,8,0),1,1)) -> 1156.07 | F79: =IF(A79>$A$8,"",OFFSET(InputPriceData!E$15,CalculationsAndCharts!$A79+$A$11,IF($C$5,8,0),1,1)) -> 1145.85 | G79: =IF(A79>$A$8,"",OFFSET(InputPriceData!F$15,CalculationsAndCharts!$A79+$A$11,IF($C$5,8,0),1,1)) -> 1154.15 | H79: 1156.07 | I79: 996.7 | J79: 159.37 | K79: 1136.214493 | L79: 0.8754125173 | M79: 1118.507717 | N79: 0.7643076908 | O79: 11.11048265 | P79: 10.39738504 | Q79: 1120.425283 | R79: 10 | S79: -10 | T79: 17.7067762 | U79: 16.55293321 | V79: 1156.07 | W79: 996.7 | X79: 1136.214493 | Y79: 1118.507717 | Z79: 1120.425283 | AP79: 41001100
A80: 48 | B80: =IF(A80>$A$8,"",OFFSET(InputPriceData!B$15,$A80+$A$11,0,1,1)) -> 2016-04-26 | C80: =IF(A80>$A$8,"",OFFSET(InputPriceData!G$15,CalculationsAndCharts!$A80+$A$11,IF($C$5,8,0),1,1)) -> 35571900 | D80: =IF(A80>$A$8,"",OFFSET(InputPriceData!C$15,CalculationsAndCharts!$A80+$A$11,IF($C$5,8,0),1,1)) -> 1138.7 | E80: =IF(A80>$A$8,"",OFFSET(InputPriceData!D$15,CalculationsAndCharts!$A80+$A$11,IF($C$5,8,0),1,1)) -> 1150.82 | F80: =IF(A80>$A$8,"",OFFSET(InputPriceData!E$15,CalculationsAndCharts!$A80+$A$11,IF($C$5,8,0),1,1)) -> 1138.7 | G80: =IF(A80>$A$8,"",OFFSET(InputPriceData!F$15,CalculationsAndCharts!$A80+$A$11,IF($C$5,8,0),1,1)) -> 1150.73 | H80: 1150.82 | I80: 996.7 | J80: 154.12 | K80: 1132.953492 | L80: 0.8840740436 | M80: 1115.656334 | N80: 0.7718422918 | O80: 11.22317517 | P80: 10.21911063 | Q80: 1120.086341 | R80: 10 | S80: -10 | T80: 17.29715758 | U80: 16.26447247 | V80: 1150.82 | W80: 996.7 | X80: 1132.953492 | Y80: 1115.656334 | Z80: 1120.086341 | AP80: 35571900
A81: 49 | B81: =IF(A81>$A$8,"",OFFSET(InputPriceData!B$15,$A81+$A$11,0,1,1)) -> 2016-04-25 | C81: =IF(A81>$A$8,"",OFFSET(InputPriceData!G$15,CalculationsAndCharts!$A81+$A$11,IF($C$5,8,0),1,1)) -> 33197400 | D81: =IF(A81>$A$8,"",OFFSET(InputPriceData!C$15,CalculationsAndCharts!$A81+$A$11,IF($C$5,8,0),1,1)) -> 1146.26 | E81: =IF(A81>$A$8,"",OFFSET(InputPriceData!D$15,CalculationsAndCharts!$A81+$A$11,IF($C$5,8,0),1,1)) -> 1146.26 | F81: =IF(A81>$A$8,"",OFFSET(InputPriceData!E$15,CalculationsAndCharts!$A81+$A$11,IF($C$5,8,0),1,1)) -> 1134.85 | G81: =IF(A81>$A$8,"",OFFSET(InputPriceData!F$15,CalculationsAndCharts!$A81+$A$11,IF($C$5,8,0),1,1)) -> 1138.1 | H81: 1147.72 | I81: 996.7 | J81: 151.02 | K81: 1129.721399 | L81: 0.8808197534 | M81: 1112.850441 | N81: 0.7691063484 | O81: 11.1713405 | P81: 9.9680945 | Q81: 1119.778365 | R81: 10 | S81: -10 | T81: 16.87095842 | U81: 16.00630119 | V81: 1147.72 | W81: 996.7 | X81: 1129.721399 | Y81: 1112.850441 | Z81: 1119.778365 | AQ81: 33197400
A82: 50 | B82: =IF(A82>$A$8,"",OFFSET(InputPriceData!B$15,$A82+$A$11,0,1,1)) -> 2016-04-22 | C82: =IF(A82>$A$8,"",OFFSET(InputPriceData!G$15,CalculationsAndCharts!$A82+$A$11,IF($C$5,8,0),1,1)) -> 37905800 | D82: =IF(A82>$A$8,"",OFFSET(InputPriceData!C$15,CalculationsAndCharts!$A82+$A$11,IF($C$5,8,0),1,1)) -> 1135.66 | E82: =IF(A82>$A$8,"",OFFSET(InputPriceData!D$15,CalculationsAndCharts!$A82+$A$11,IF($C$5,8,0),1,1)) -> 1147.41 | F82: =IF(A82>$A$8,"",OFFSET(InputPriceData!E$15,CalculationsAndCharts!$A82+$A$11,IF($C$5,8,0),1,1)) -> 1135.51 | G82: =IF(A82>$A$8,"",OFFSET(InputPriceData!F$15,CalculationsAndCharts!$A82+$A$11,IF($C$5,8,0),1,1)) -> 1146.69 | H82: 1147.72 | I82: 996.7 | J82: 151.02 | K82: 1128.198017 | L82: 0.8707324671 | M82: 1110.830476 | N82: 0.7557308701 | O82: 11.50015971 | P82: 9.667283001 | Q82: 1119.594228 | R82: 10 | S82: -10 | T82: 17.36754119 | U82: 15.79013688 | V82: 1147.72 | W82: 996.7 | X82: 1128.198017 | Y82: 1110.830476 | Z82: 1119.594228 | AP82: =IF(G82>=D82,C82,NA()) -> 37905800 | AQ82: =IF(G82<D82,C82,NA()) -> 
A83: 51 | B83: =IF(A83>$A$8,"",OFFSET(InputPriceData!B$15,$A83+$A$11,0,1,1)) -> 2016-04-21 | C83: =IF(A83>$A$8,"",OFFSET(InputPriceData!G$15,CalculationsAndCharts!$A83+$A$11,IF($C$5,8,0),1,1)) -> 41752900 | D83: =IF(A83>$A$8,"",OFFSET(InputPriceData!C$15,CalculationsAndCharts!$A83+$A$11,IF($C$5,8,0),1,1)) -> 1142.37 | E83: =IF(A83>$A$8,"",OFFSET(InputPriceData!D$15,CalculationsAndCharts!$A83+$A$11,IF($C$5,8,0),1,1)) -> 1144.54 | F83: =IF(A83>$A$8,"",OFFSET(InputPriceData!E$15,CalculationsAndCharts!$A83+$A$11,IF($C$5,8,0),1,1)) -> 1133.44 | G83: =IF(A83>$A$8,"",OFFSET(InputPriceData!F$15,CalculationsAndCharts!$A83+$A$11,IF($C$5,8,0),1,1)) -> 1135.77 | H83: 1147.72 | I83: 996.7 | J83: 151.02 | K83: 1124.835838 | L83: 0.8484693318 | M83: 1107.961714 | N83: 0.7367349628 | O83: 11.17343691 | P83: 9.209063825 | Q83: 1119.321908 | R83: 10 | S83: -10 | T83: 16.87412441 | U83: 15.39578581 | V83: 1147.72 | W83: 996.7 | X83: 1124.835838 | Y83: 1107.961714 | Z83: 1119.321908 | AQ83: 41752900
A84: 52 | B84: =IF(A84>$A$8,"",OFFSET(InputPriceData!B$15,$A84+$A$11,0,1,1)) -> 2016-04-20 | C84: =IF(A84>$A$8,"",OFFSET(InputPriceData!G$15,CalculationsAndCharts!$A84+$A$11,IF($C$5,8,0),1,1)) -> 41848800 | D84: =IF(A84>$A$8,"",OFFSET(InputPriceData!C$15,CalculationsAndCharts!$A84+$A$11,IF($C$5,8,0),1,1)) -> 1140.14 | E84: =IF(A84>$A$8,"",OFFSET(InputPriceData!D$15,CalculationsAndCharts!$A84+$A$11,IF($C$5,8,0),1,1)) -> 1147.72 | F84: =IF(A84>$A$8,"",OFFSET(InputPriceData!E$15,CalculationsAndCharts!$A84+$A$11,IF($C$5,8,0),1,1)) -> 1137.32 | G84: =IF(A84>$A$8,"",OFFSET(InputPriceData!F$15,CalculationsAndCharts!$A84+$A$11,IF($C$5,8,0),1,1)) -> 1142.29 | H84: 1147.72 | I84: 996.7 | J84: 151.02 | K84: 1122.847809 | L84: 0.835305318 | M84: 1105.737051 | N84: 0.7220040472 | O84: 11.33012708 | P84: 8.717970555 | Q84: 1119.156601 | R84: 10 | S84: -10 | T84: 17.11075792 | U84: 15.02620116 | V84: 1147.72 | W84: 996.7 | X84: 1122.847809 | Y84: 1105.737051 | Z84: 1119.156601 | AP84: 41848800
A85: 53 | B85: =IF(A85>$A$8,"",OFFSET(InputPriceData!B$15,$A85+$A$11,0,1,1)) -> 2016-04-19 | C85: =IF(A85>$A$8,"",OFFSET(InputPriceData!G$15,CalculationsAndCharts!$A85+$A$11,IF($C$5,8,0),1,1)) -> 38968300 | D85: =IF(A85>$A$8,"",OFFSET(InputPriceData!C$15,CalculationsAndCharts!$A85+$A$11,IF($C$5,8,0),1,1)) -> 1139.83 | E85: =IF(A85>$A$8,"",OFFSET(InputPriceData!D$15,CalculationsAndCharts!$A85+$A$11,IF($C$5,8,0),1,1)) -> 1146.5 | F85: =IF(A85>$A$8,"",OFFSET(InputPriceData!E$15,CalculationsAndCharts!$A85+$A$11,IF($C$5,8,0),1,1)) -> 1135.85 | G85: =IF(A85>$A$8,"",OFFSET(InputPriceData!F$15,CalculationsAndCharts!$A85+$A$11,IF($C$5,8,0),1,1)) -> 1140.23 | H85: 1146.5 | I85: 972.45 | J85: 174.05 | K85: 1119.312865 | L85: 0.8437969855 | M85: 1102.812815 | N85: 0.7489963533 | O85: 9.480063218 | P85: 8.064931423 | Q85: 1118.924104 | R85: 10 | S85: -10 | T85: 16.50005003 | U85: 14.50506196 | V85: 1146.5 | W85: 972.45 | X85: 1119.312865 | Y85: 1102.812815 | Z85: 1118.924104 | AP85: 38968300
A86: 54 | B86: =IF(A86>$A$8,"",OFFSET(InputPriceData!B$15,$A86+$A$11,0,1,1)) -> 2016-04-18 | C86: =IF(A86>$A$8,"",OFFSET(InputPriceData!G$15,CalculationsAndCharts!$A86+$A$11,IF($C$5,8,0),1,1)) -> 33168800 | D86: =IF(A86>$A$8,"",OFFSET(InputPriceData!C$15,CalculationsAndCharts!$A86+$A$11,IF($C$5,8,0),1,1)) -> 1129.72 | E86: =IF(A86>$A$8,"",OFFSET(InputPriceData!D$15,CalculationsAndCharts!$A86+$A$11,IF($C$5,8,0),1,1)) -> 1139.48 | F86: =IF(A86>$A$8,"",OFFSET(InputPriceData!E$15,CalculationsAndCharts!$A86+$A$11,IF($C$5,8,0),1,1)) -> 1125.16 | G86: =IF(A86>$A$8,"",OFFSET(InputPriceData!F$15,CalculationsAndCharts!$A86+$A$11,IF($C$5,8,0),1,1)) -> 1139.28 | H86: 1139.48 | I86: 955.34 | J86: 184.14 | K86: 1115.50975 | L86: 0.8698259473 | M86: 1099.819441 | N86: 0.7846173592 | O86: 8.52085881 | P86: 7.711148474 | Q86: 1118.709975 | R86: 10 | S86: -10 | T86: 15.69030941 | U86: 14.00631495 | V86: 1139.48 | W86: 955.34 | X86: 1115.50975 | Y86: 1099.819441 | Z86: 1118.709975 | AP86: 33168800
A87: 55 | B87: =IF(A87>$A$8,"",OFFSET(InputPriceData!B$15,$A87+$A$11,0,1,1)) -> 2016-04-15 | C87: =IF(A87>$A$8,"",OFFSET(InputPriceData!G$15,CalculationsAndCharts!$A87+$A$11,IF($C$5,8,0),1,1)) -> 37014500 | D87: =IF(A87>$A$8,"",OFFSET(InputPriceData!C$15,CalculationsAndCharts!$A87+$A$11,IF($C$5,8,0),1,1)) -> 1128.08 | E87: =IF(A87>$A$8,"",OFFSET(InputPriceData!D$15,CalculationsAndCharts!$A87+$A$11,IF($C$5,8,0),1,1)) -> 1132.14 | F87: =IF(A87>$A$8,"",OFFSET(InputPriceData!E$15,CalculationsAndCharts!$A87+$A$11,IF($C$5,8,0),1,1)) -> 1125.06 | G87: =IF(A87>$A$8,"",OFFSET(InputPriceData!F$15,CalculationsAndCharts!$A87+$A$11,IF($C$5,8,0),1,1)) -> 1130.92 | H87: 1132.14 | I87: 943.1 | J87: 189.04 | K87: 1111.187886 | L87: 0.8891657125 | M87: 1096.662596 | N87: 0.8123285853 | O87: 7.683712719 | P87: 7.50872089 | Q87: 1118.503241 | R87: 10 | S87: -10 | T87: 14.52529052 | U87: 13.58531633 | V87: 1132.14 | W87: 943.1 | X87: 1111.187886 | Y87: 1096.662596 | Z87: 1118.503241 | AP87: 37014500
A88: 56 | B88: =IF(A88>$A$8,"",OFFSET(InputPriceData!B$15,$A88+$A$11,0,1,1)) -> 2016-04-14 | C88: =IF(A88>$A$8,"",OFFSET(InputPriceData!G$15,CalculationsAndCharts!$A88+$A$11,IF($C$5,8,0),1,1)) -> 37658700 | D88: =IF(A88>$A$8,"",OFFSET(InputPriceData!C$15,CalculationsAndCharts!$A88+$A$11,IF($C$5,8,0),1,1)) -> 1130.08 | E88: =IF(A88>$A$8,"",OFFSET(InputPriceData!D$15,CalculationsAndCharts!$A88+$A$11,IF($C$5,8,0),1,1)) -> 1132.09 | F88: =IF(A88>$A$8,"",OFFSET(InputPriceData!E$15,CalculationsAndCharts!$A88+$A$11,IF($C$5,8,0),1,1)) -> 1125.13 | G88: =IF(A88>$A$8,"",OFFSET(InputPriceData!F$15,CalculationsAndCharts!$A88+$A$11,IF($C$5,8,0),1,1)) -> 1128.59 | H88: 1132.09 | I88: 943.1 | J88: 188.99 | K88: 1107.600229 | L88: 0.8704176372 | M88: 1093.922003 | N88: 0.7980422426 | O88: 7.237539459 | P88: 7.464972933 | Q88: 1118.378449 | R88: 10 | S88: -10 | T88: 13.67822582 | U88: 13.35032278 | V88: 1132.09 | W88: 943.1 | X88: 1107.600229 | Y88: 1093.922003 | Z88: 1118.378449 | AQ88: 37658700
A89: 57 | B89: =IF(A89>$A$8,"",OFFSET(InputPriceData!B$15,$A89+$A$11,0,1,1)) -> 2016-04-13 | C89: =IF(A89>$A$8,"",OFFSET(InputPriceData!G$15,CalculationsAndCharts!$A89+$A$11,IF($C$5,8,0),1,1)) -> 41918300 | D89: =IF(A89>$A$8,"",OFFSET(InputPriceData!C$15,CalculationsAndCharts!$A89+$A$11,IF($C$5,8,0),1,1)) -> 1106.48 | E89: =IF(A89>$A$8,"",OFFSET(InputPriceData!D$15,CalculationsAndCharts!$A89+$A$11,IF($C$5,8,0),1,1)) -> 1129.93 | F89: =IF(A89>$A$8,"",OFFSET(InputPriceData!E$15,CalculationsAndCharts!$A89+$A$11,IF($C$5,8,0),1,1)) -> 1106.48 | G89: =IF(A89>$A$8,"",OFFSET(InputPriceData!F$15,CalculationsAndCharts!$A89+$A$11,IF($C$5,8,0),1,1)) -> 1129.93 | H89: 1129.93 | I89: 943.1 | J89: 186.83 | K89: 1103.783907 | L89: 0.8600540989 | M89: 1091.148564 | N89: 0.7924239346 | O89: 6.763016429 | P89: 7.521831302 | Q89: 1118.275821 | R89: 10 | S89: -10 | T89: 12.63534359 | U89: 13.26834702 | V89: 1129.93 | W89: 943.1 | X89: 1103.783907 | Y89: 1091.148564 | Z89: 1118.275821 | AP89: 41918300
A90: 58 | B90: =IF(A90>$A$8,"",OFFSET(InputPriceData!B$15,$A90+$A$11,0,1,1)) -> 2016-04-12 | C90: =IF(A90>$A$8,"",OFFSET(InputPriceData!G$15,CalculationsAndCharts!$A90+$A$11,IF($C$5,8,0),1,1)) -> 42397400 | D90: =IF(A90>$A$8,"",OFFSET(InputPriceData!C$15,CalculationsAndCharts!$A90+$A$11,IF($C$5,8,0),1,1)) -> 1094.46 | E90: =IF(A90>$A$8,"",OFFSET(InputPriceData!D$15,CalculationsAndCharts!$A90+$A$11,IF($C$5,8,0),1,1)) -> 1107.36 | F90: =IF(A90>$A$8,"",OFFSET(InputPriceData!E$15,CalculationsAndCharts!$A90+$A$11,IF($C$5,8,0),1,1)) -> 1091.65 | G90: =IF(A90>$A$8,"",OFFSET(InputPriceData!F$15,CalculationsAndCharts!$A90+$A$11,IF($C$5,8,0),1,1)) -> 1105.71 | H90: 1119.41 | I90: 943.1 | J90: 176.31 | K90: 1099.030072 | L90: 0.8844085546 | M90: 1088.046049 | N90: 0.8221090624 | O90: 6.229949215 | P90: 7.71153502 | Q90: 1118.158693 | R90: 10 | S90: -10 | T90: 10.98402346 | U90: 13.42659788 | V90: 1119.41 | W90: 943.1 | X90: 1099.030072 | Y90: 1088.046049 | Z90: 1118.158693 | AP90: 42397400
A91: 59 | B91: =IF(A91>$A$8,"",OFFSET(InputPriceData!B$15,$A91+$A$11,0,1,1)) -> 2016-04-11 | C91: =IF(A91>$A$8,"",OFFSET(InputPriceData!G$15,CalculationsAndCharts!$A91+$A$11,IF($C$5,8,0),1,1)) -> 35678400 | D91: =IF(A91>$A$8,"",OFFSET(InputPriceData!C$15,CalculationsAndCharts!$A91+$A$11,IF($C$5,8,0),1,1)) -> 1097.96 | E91: =IF(A91>$A$8,"",OFFSET(InputPriceData!D$15,CalculationsAndCharts!$A91+$A$11,IF($C$5,8,0),1,1)) -> 1110.43 | F91: =IF(A91>$A$8,"",OFFSET(InputPriceData!E$15,CalculationsAndCharts!$A91+$A$11,IF($C$5,8,0),1,1)) -> 1094.31 | G91: =IF(A91>$A$8,"",OFFSET(InputPriceData!F$15,CalculationsAndCharts!$A91+$A$11,IF($C$5,8,0),1,1)) -> 1094.34 | H91: 1119.41 | I91: 943.1 | J91: 176.31 | K91: 1097.81554 | L91: 0.8775199362 | M91: 1086.632933 | N91: 0.8140941109 | O91: 6.34258252 | P91: 8.081931471 | Q91: 1118.283806 | R91: 10 | S91: -10 | T91: 11.18260724 | U91: 14.03724148 | V91: 1119.41 | W91: 943.1 | X91: 1097.81554 | Y91: 1086.632933 | Z91: 1118.283806 | AQ91: 35678400
A92: 60 | B92: =IF(A92>$A$8,"",OFFSET(InputPriceData!B$15,$A92+$A$11,0,1,1)) -> 2016-04-08 | C92: =IF(A92>$A$8,"",OFFSET(InputPriceData!G$15,CalculationsAndCharts!$A92+$A$11,IF($C$5,8,0),1,1)) -> 33595300 | D92: =IF(A92>$A$8,"",OFFSET(InputPriceData!C$15,CalculationsAndCharts!$A92+$A$11,IF($C$5,8,0),1,1)) -> 1093.86 | E92: =IF(A92>$A$8,"",OFFSET(InputPriceData!D$15,CalculationsAndCharts!$A92+$A$11,IF($C$5,8,0),1,1)) -> 1106.05 | F92: =IF(A92>$A$8,"",OFFSET(InputPriceData!E$15,CalculationsAndCharts!$A92+$A$11,IF($C$5,8,0),1,1)) -> 1093.77 | G92: =IF(A92>$A$8,"",OFFSET(InputPriceData!F$15,CalculationsAndCharts!$A92+$A$11,IF($C$5,8,0),1,1)) -> 1097.31 | H92: 1119.41 | I92: 943.1 | J92: 176.31 | K92: 1098.447456 | L92: 0.881104057 | M92: 1086.016367 | N92: 0.8105970581 | O92: 7.050699891 | P92: 8.516768709 | Q92: 1118.524447 | R92: 10 | S92: -10 | T92: 12.43108898 | U92: 14.75090004 | V92: 1119.41 | W92: 943.1 | X92: 1098.447456 | Y92: 1086.016367 | Z92: 1118.524447 | AP92: 33595300
A93: 61 | B93: =IF(A93>$A$8,"",OFFSET(InputPriceData!B$15,$A93+$A$11,0,1,1)) -> 2016-04-07 | C93: =IF(A93>$A$8,"",OFFSET(InputPriceData!G$15,CalculationsAndCharts!$A93+$A$11,IF($C$5,8,0),1,1)) -> 38012500 | D93: =IF(A93>$A$8,"",OFFSET(InputPriceData!C$15,CalculationsAndCharts!$A93+$A$11,IF($C$5,8,0),1,1)) -> 1107.89 | E93: =IF(A93>$A$8,"",OFFSET(InputPriceData!D$15,CalculationsAndCharts!$A93+$A$11,IF($C$5,8,0),1,1)) -> 1107.89 | F93: =IF(A93>$A$8,"",OFFSET(InputPriceData!E$15,CalculationsAndCharts!$A93+$A$11,IF($C$5,8,0),1,1)) -> 1088.56 | G93: =IF(A93>$A$8,"",OFFSET(InputPriceData!F$15,CalculationsAndCharts!$A93+$A$11,IF($C$5,8,0),1,1)) -> 1092.79 | H93: 1119.41 | I93: 943.1 | J93: 176.31 | K93: 1098.654267 | L93: 0.8822770491 | M93: 1085.112877 | N93: 0.8054726147 | O93: 7.68044344 | P93: 8.883285913 | Q93: 1118.737657 | R93: 10 | S93: -10 | T93: 13.54138983 | U93: 15.33085281 | V93: 1119.41 | W93: 943.1 | X93: 1098.654267 | Y93: 1085.112877 | Z93: 1118.737657 | AQ93: 38012500
A94: 62 | B94: =IF(A94>$A$8,"",OFFSET(InputPriceData!B$15,$A94+$A$11,0,1,1)) -> 2016-04-06 | C94: =IF(A94>$A$8,"",OFFSET(InputPriceData!G$15,CalculationsAndCharts!$A94+$A$11,IF($C$5,8,0),1,1)) -> 37508000 | D94: =IF(A94>$A$8,"",OFFSET(InputPriceData!C$15,CalculationsAndCharts!$A94+$A$11,IF($C$5,8,0),1,1)) -> 1095.99 | E94: =IF(A94>$A$8,"",OFFSET(InputPriceData!D$15,CalculationsAndCharts!$A94+$A$11,IF($C$5,8,0),1,1)) -> 1109.02 | F94: =IF(A94>$A$8,"",OFFSET(InputPriceData!E$15,CalculationsAndCharts!$A94+$A$11,IF($C$5,8,0),1,1)) -> 1094.24 | G94: =IF(A94>$A$8,"",OFFSET(InputPriceData!F$15,CalculationsAndCharts!$A94+$A$11,IF($C$5,8,0),1,1)) -> 1108.81 | H94: 1119.41 | I94: 943.1 | J94: 176.31 | K94: 1099.720497 | L94: 0.8883245239 | M94: 1084.498707 | N94: 0.8019891489 | O94: 8.633537503 | P94: 9.183996531 | Q94: 1118.998438 | R94: 10 | S94: -10 | T94: 15.22178997 | U94: 15.77821855 | V94: 1119.41 | W94: 943.1 | X94: 1099.720497 | Y94: 1084.498707 | Z94: 1118.998438 | AP94: 37508000
A95: 63 | B95: =IF(A95>$A$8,"",OFFSET(InputPriceData!B$15,$A95+$A$11,0,1,1)) -> 2016-04-05 | C95: =IF(A95>$A$8,"",OFFSET(InputPriceData!G$15,CalculationsAndCharts!$A95+$A$11,IF($C$5,8,0),1,1)) -> 41549200 | D95: =IF(A95>$A$8,"",OFFSET(InputPriceData!C$15,CalculationsAndCharts!$A95+$A$11,IF($C$5,8,0),1,1)) -> 1106.22 | E95: =IF(A95>$A$8,"",OFFSET(InputPriceData!D$15,CalculationsAndCharts!$A95+$A$11,IF($C$5,8,0),1,1)) -> 1106.22 | F95: =IF(A95>$A$8,"",OFFSET(InputPriceData!E$15,CalculationsAndCharts!$A95+$A$11,IF($C$5,8,0),1,1)) -> 1095.25 | G95: =IF(A95>$A$8,"",OFFSET(InputPriceData!F$15,CalculationsAndCharts!$A95+$A$11,IF($C$5,8,0),1,1)) -> 1095.85 | H95: 1119.41 | I95: 943.1 | J95: 176.31 | K95: 1098.06786 | L95: 0.8789510514 | M95: 1082.553803 | N95: 0.790957991 | O95: 8.799306041 | P95: 9.321611288 | Q95: 1119.100834 | R95: 10 | S95: -10 | T95: 15.51405648 | U95: 15.91732569 | V95: 1119.41 | W95: 943.1 | X95: 1098.06786 | Y95: 1082.553803 | Z95: 1119.100834 | AQ95: 41549200
A96: 64 | B96: =IF(A96>$A$8,"",OFFSET(InputPriceData!B$15,$A96+$A$11,0,1,1)) -> 2016-04-04 | C96: =IF(A96>$A$8,"",OFFSET(InputPriceData!G$15,CalculationsAndCharts!$A96+$A$11,IF($C$5,8,0),1,1)) -> 34857100 | D96: =IF(A96>$A$8,"",OFFSET(InputPriceData!C$15,CalculationsAndCharts!$A96+$A$11,IF($C$5,8,0),1,1)) -> 1117.69 | E96: =IF(A96>$A$8,"",OFFSET(InputPriceData!D$15,CalculationsAndCharts!$A96+$A$11,IF($C$5,8,0),1,1)) -> 1119.41 | F96: =IF(A96>$A$8,"",OFFSET(InputPriceData!E$15,CalculationsAndCharts!$A96+$A$11,IF($C$5,8,0),1,1)) -> 1108.17 | G96: =IF(A96>$A$8,"",OFFSET(InputPriceData!F$15,CalculationsAndCharts!$A96+$A$11,IF($C$5,8,0),1,1)) -> 1108.54 | H96: 1119.41 | I96: 943.1 | J96: 176.31 | K96: 1098.471107 | L96: 0.8812382004 | M96: 1081.490108 | N96: 0.7849248917 | O96: 9.631330871 | P96: 9.4521876 | Q96: 1119.334511 | R96: 10 | S96: -10 | T96: 16.98099946 | U96: 16.018143 | V96: 1119.41 | W96: 943.1 | X96: 1098.471107 | Y96: 1081.490108 | Z96: 1119.334511 | AQ96: 34857100
A97: 65 | B97: =IF(A97>$A$8,"",OFFSET(InputPriceData!B$15,$A97+$A$11,0,1,1)) -> 2016-04-01 | C97: =IF(A97>$A$8,"",OFFSET(InputPriceData!G$15,CalculationsAndCharts!$A97+$A$11,IF($C$5,8,0),1,1)) -> 37499900 | D97: =IF(A97>$A$8,"",OFFSET(InputPriceData!C$15,CalculationsAndCharts!$A97+$A$11,IF($C$5,8,0),1,1)) -> 1112.9 | E97: =IF(A97>$A$8,"",OFFSET(InputPriceData!D$15,CalculationsAndCharts!$A97+$A$11,IF($C$5,8,0),1,1)) -> 1118.39 | F97: =IF(A97>$A$8,"",OFFSET(InputPriceData!E$15,CalculationsAndCharts!$A97+$A$11,IF($C$5,8,0),1,1)) -> 1102.12 | G97: =IF(A97>$A$8,"",OFFSET(InputPriceData!F$15,CalculationsAndCharts!$A97+$A$11,IF($C$5,8,0),1,1)) -> 1117.68 | H97: 1118.39 | I97: 943.1 | J97: 175.29 | K97: 1096.640399 | L97: 0.8759221822 | M97: 1079.326116 | N97: 0.7771471063 | O97: 9.877507586 | P97: 9.407401783 | Q97: =G97*$C$20+Q98*$D$20 -> 1119.442999 | R97: =$A$21 -> 10 | S97: =$A$22 -> -10 | T97: =(K97-M97) -> 17.31428305 | U97: =T97*$C$19+$D$19*U98 -> 15.77742888 | V97: =IF($R$2,H97,NA()) -> 1118.39 | W97: =IF($R$2,I97,NA()) -> 943.1 | X97: =IF($R$3,K97,NA()) -> 1096.640399 | Y97: =IF($R$4,M97,NA()) -> 1079.326116 | Z97: =IF($R$5,Q97,NA()) -> 1119.442999 | AP97: 37499900
A98: 66 | B98: =IF(A98>$A$8,"",OFFSET(InputPriceData!B$15,$A98+$A$11,0,1,1)) -> 2016-03-31 | C98: =IF(A98>$A$8,"",OFFSET(InputPriceData!G$15,CalculationsAndCharts!$A98+$A$11,IF($C$5,8,0),1,1)) -> 37152800 | D98: =IF(A98>$A$8,"",OFFSET(InputPriceData!C$15,CalculationsAndCharts!$A98+$A$11,IF($C$5,8,0),1,1)) -> 1110.43 | E98: =IF(A98>$A$8,"",OFFSET(InputPriceData!D$15,CalculationsAndCharts!$A98+$A$11,IF($C$5,8,0),1,1)) -> 1117.79 | F98: =IF(A98>$A$8,"",OFFSET(InputPriceData!E$15,CalculationsAndCharts!$A98+$A$11,IF($C$5,8,0),1,1)) -> 1109.53 | G98: =IF(A98>$A$8,"",OFFSET(InputPriceData!F$15,CalculationsAndCharts!$A98+$A$11,IF($C$5,8,0),1,1)) -> 1114.03 | H98: =MAX(OFFSET($E98,0,0,$A$16,1)) -> 1117.79 | I98: =MIN(OFFSET($F98,0,0,$A$16,1)) -> 943.1 | J98: =H98-I98 -> 174.69 | K98: =$G98*$C$17+K99*$D$17 -> 1092.815017 | L98: =(K98-$I98)/$J98 -> 0.857032557 | M98: =$G98*$C$18+M99*$D$18 -> 1076.257806 | N98: =(M98-$I98)/$J98 -> 0.7622520211 | O98: =(L98-N98)*100 -> 9.478053583 | P98: =IFERROR($C$19*O98+$D$19*P99,0) -> 9.289875332 | Q98: 1119.460717 | R98: 10 | S98: -10 | T98: 16.5572118 | U98: 15.39321534 | V98: 1117.79 | W98: 943.1 | X98: 1092.815017 | Y98: 1076.257806 | Z98: 1119.460717 | AP98: 37152800
A99: 67 | B99: =IF(A99>$A$8,"",OFFSET(InputPriceData!B$15,$A99+$A$11,0,1,1)) -> 2016-03-30 | C99: =IF(A99>$A$8,"",OFFSET(InputPriceData!G$15,CalculationsAndCharts!$A99+$A$11,IF($C$5,8,0),1,1)) -> 35903100 | D99: =IF(A99>$A$8,"",OFFSET(InputPriceData!C$15,CalculationsAndCharts!$A99+$A$11,IF($C$5,8,0),1,1)) -> 1110.19 | E99: =IF(A99>$A$8,"",OFFSET(InputPriceData!D$15,CalculationsAndCharts!$A99+$A$11,IF($C$5,8,0),1,1)) -> 1117.35 | F99: =IF(A99>$A$8,"",OFFSET(InputPriceData!E$15,CalculationsAndCharts!$A99+$A$11,IF($C$5,8,0),1,1)) -> 1107.73 | G99: =IF(A99>$A$8,"",OFFSET(InputPriceData!F$15,CalculationsAndCharts!$A99+$A$11,IF($C$5,8,0),1,1)) -> 1110.44 | H99: 1117.35 | I99: 943.1 | J99: 174.25 | K99: 1088.957748 | L99: 0.8370602457 | M99: 1073.23603 | N99: 0.7468351794 | O99: 9.022506623 | P99: 9.242830769 | Q99: 1119.515297 | R99: 10 | S99: -10 | T99: 15.72171779 | U99: 15.10221623 | V99: 1117.35 | W99: 943.1 | X99: 1088.957748 | Y99: 1073.23603 | Z99: 1119.515297 | AP99: 35903100
A100: 68 | B100: =IF(A100>$A$8,"",OFFSET(InputPriceData!B$15,$A100+$A$11,0,1,1)) -> 2016-03-29 | C100: =IF(A100>$A$8,"",OFFSET(InputPriceData!G$15,CalculationsAndCharts!$A100+$A$11,IF($C$5,8,0),1,1)) -> 38223300 | D100: =IF(A100>$A$8,"",OFFSET(InputPriceData!C$15,CalculationsAndCharts!$A100+$A$11,IF($C$5,8,0),1,1)) -> 1079.82 | E100: =IF(A100>$A$8,"",OFFSET(InputPriceData!D$15,CalculationsAndCharts!$A100+$A$11,IF($C$5,8,0),1,1)) -> 1109.21 | F100: =IF(A100>$A$8,"",OFFSET(InputPriceData!E$15,CalculationsAndCharts!$A100+$A$11,IF($C$5,8,0),1,1)) -> 1075.43 | G100: =IF(A100>$A$8,"",OFFSET(InputPriceData!F$15,CalculationsAndCharts!$A100+$A$11,IF($C$5,8,0),1,1)) -> 1109.08 | H100: 1109.21 | I100: 943.1 | J100: 166.11 | K100: 1085.051884 | L100: 0.8545655516 | M100: 1070.259712 | N100: 0.7655150949 | O100: 8.905045665 | P100: 9.297911806 | Q100: 1119.606506 | R100: 10 | S100: -10 | T100: 14.79217135 | U100: 14.94734084 | V100: 1109.21 | W100: 943.1 | X100: 1085.051884 | Y100: 1070.259712 | Z100: 1119.606506 | AP100: 38223300
A101: 69 | B101: =IF(A101>$A$8,"",OFFSET(InputPriceData!B$15,$A101+$A$11,0,1,1)) -> 2016-03-28 | C101: =IF(A101>$A$8,"",OFFSET(InputPriceData!G$15,CalculationsAndCharts!$A101+$A$11,IF($C$5,8,0),1,1)) -> 28090900 | D101: =IF(A101>$A$8,"",OFFSET(InputPriceData!C$15,CalculationsAndCharts!$A101+$A$11,IF($C$5,8,0),1,1)) -> 1079.94 | E101: =IF(A101>$A$8,"",OFFSET(InputPriceData!D$15,CalculationsAndCharts!$A101+$A$11,IF($C$5,8,0),1,1)) -> 1084.47 | F101: =IF(A101>$A$8,"",OFFSET(InputPriceData!E$15,CalculationsAndCharts!$A101+$A$11,IF($C$5,8,0),1,1)) -> 1073.46 | G101: =IF(A101>$A$8,"",OFFSET(InputPriceData!F$15,CalculationsAndCharts!$A101+$A$11,IF($C$5,8,0),1,1)) -> 1080.23 | H101: 1103.63 | I101: 943.1 | J101: 160.53 | K101: 1080.683135 | L101: 0.8570555994 | M101: 1067.154089 | N101: 0.7727782309 | O101: 8.427736844 | P101: 9.396128341 | Q101: 1119.7123 | R101: 10 | S101: -10 | T101: 13.52904596 | U101: 14.98613321 | V101: 1103.63 | W101: 943.1 | X101: 1080.683135 | Y101: 1067.154089 | Z101: 1119.7123 | AP101: 28090900
A102: 70 | B102: =IF(A102>$A$8,"",OFFSET(InputPriceData!B$15,$A102+$A$11,0,1,1)) -> 2016-03-24 | C102: =IF(A102>$A$8,"",OFFSET(InputPriceData!G$15,CalculationsAndCharts!$A102+$A$11,IF($C$5,8,0),1,1)) -> 34077200 | D102: =IF(A102>$A$8,"",OFFSET(InputPriceData!C$15,CalculationsAndCharts!$A102+$A$11,IF($C$5,8,0),1,1)) -> 1074.7 | E102: =IF(A102>$A$8,"",OFFSET(InputPriceData!D$15,CalculationsAndCharts!$A102+$A$11,IF($C$5,8,0),1,1)) -> 1079.54 | F102: =IF(A102>$A$8,"",OFFSET(InputPriceData!E$15,CalculationsAndCharts!$A102+$A$11,IF($C$5,8,0),1,1)) -> 1065.62 | G102: =IF(A102>$A$8,"",OFFSET(InputPriceData!F$15,CalculationsAndCharts!$A102+$A$11,IF($C$5,8,0),1,1)) -> 1079.54 | H102: 1103.63 | I102: 943.1 | J102: 160.53 | K102: 1080.765524 | L102: 0.8575688259 | M102: 1066.108017 | N102: 0.7662618611 | O102: 9.130696475 | P102: 9.638226215 | Q102: 1120.109107 | R102: 10 | S102: -10 | T102: 14.65750705 | U102: 15.35040502 | V102: 1103.63 | W102: 943.1 | X102: 1080.765524 | Y102: 1066.108017 | Z102: 1120.109107 | AP102: 34077200
A103: 71 | B103: =IF(A103>$A$8,"",OFFSET(InputPriceData!B$15,$A103+$A$11,0,1,1)) -> 2016-03-23 | C103: =IF(A103>$A$8,"",OFFSET(InputPriceData!G$15,CalculationsAndCharts!$A103+$A$11,IF($C$5,8,0),1,1)) -> 36395100 | D103: =IF(A103>$A$8,"",OFFSET(InputPriceData!C$15,CalculationsAndCharts!$A103+$A$11,IF($C$5,8,0),1,1)) -> 1097.05 | E103: =IF(A103>$A$8,"",OFFSET(InputPriceData!D$15,CalculationsAndCharts!$A103+$A$11,IF($C$5,8,0),1,1)) -> 1097.05 | F103: =IF(A103>$A$8,"",OFFSET(InputPriceData!E$15,CalculationsAndCharts!$A103+$A$11,IF($C$5,8,0),1,1)) -> 1075.7 | G103: =IF(A103>$A$8,"",OFFSET(InputPriceData!F$15,CalculationsAndCharts!$A103+$A$11,IF($C$5,8,0),1,1)) -> 1075.7 | H103: 1103.63 | I103: 943.1 | J103: 160.53 | K103: 1080.988346 | L103: 0.8589568684 | M103: 1065.033458 | N103: 0.7595680427 | O103: 9.938882577 | P103: 9.76510865 | Q103: 1120.516837 | R103: 10 | S103: -10 | T103: 15.9548882 | U103: 15.52362951 | V103: 1103.63 | W103: 943.1 | X103: 1080.988346 | Y103: 1065.033458 | Z103: 1120.516837 | AQ103: 36395100
A104: 72 | B104: =IF(A104>$A$8,"",OFFSET(InputPriceData!B$15,$A104+$A$11,0,1,1)) -> 2016-03-22 | C104: =IF(A104>$A$8,"",OFFSET(InputPriceData!G$15,CalculationsAndCharts!$A104+$A$11,IF($C$5,8,0),1,1)) -> 34184600 | D104: =IF(A104>$A$8,"",OFFSET(InputPriceData!C$15,CalculationsAndCharts!$A104+$A$11,IF($C$5,8,0),1,1)) -> 1096.68 | E104: =IF(A104>$A$8,"",OFFSET(InputPriceData!D$15,CalculationsAndCharts!$A104+$A$11,IF($C$5,8,0),1,1)) -> 1100.76 | F104: =IF(A104>$A$8,"",OFFSET(InputPriceData!E$15,CalculationsAndCharts!$A104+$A$11,IF($C$5,8,0),1,1)) -> 1090 | G104: =IF(A104>$A$8,"",OFFSET(InputPriceData!F$15,CalculationsAndCharts!$A104+$A$11,IF($C$5,8,0),1,1)) -> 1097.34 | H104: 1103.63 | I104: 943.1 | J104: 160.53 | K104: 1081.949864 | L104: 0.8649465119 | M104: 1064.180135 | N104: 0.7542523797 | O104: 11.06941322 | P104: 9.721665169 | Q104: 1120.967257 | R104: 10 | S104: -10 | T104: 17.76972904 | U104: 15.41581484 | V104: 1103.63 | W104: 943.1 | X104: 1081.949864 | Y104: 1064.180135 | Z104: 1120.967257 | AP104: 34184600
A105: 73 | B105: =IF(A105>$A$8,"",OFFSET(InputPriceData!B$15,$A105+$A$11,0,1,1)) -> 2016-03-21 | C105: =IF(A105>$A$8,"",OFFSET(InputPriceData!G$15,CalculationsAndCharts!$A105+$A$11,IF($C$5,8,0),1,1)) -> 33766000 | D105: =IF(A105>$A$8,"",OFFSET(InputPriceData!C$15,CalculationsAndCharts!$A105+$A$11,IF($C$5,8,0),1,1)) -> 1101.46 | E105: =IF(A105>$A$8,"",OFFSET(InputPriceData!D$15,CalculationsAndCharts!$A105+$A$11,IF($C$5,8,0),1,1)) -> 1103.63 | F105: =IF(A105>$A$8,"",OFFSET(InputPriceData!E$15,CalculationsAndCharts!$A105+$A$11,IF($C$5,8,0),1,1)) -> 1096.16 | G105: =IF(A105>$A$8,"",OFFSET(InputPriceData!F$15,CalculationsAndCharts!$A105+$A$11,IF($C$5,8,0),1,1)) -> 1098.58 | H105: 1103.63 | I105: 943.1 | J105: 160.53 | K105: 1079.151657 | L105: 0.8475154609 | M105: 1061.527345 | N105: 0.7377271867 | O105: 10.97882742 | P105: 9.384728156 | Q105: 1121.204717 | R105: 10 | S105: -10 | T105: 17.62431165 | U105: 14.82733629 | V105: 1103.63 | W105: 943.1 | X105: 1079.151657 | Y105: 1061.527345 | Z105: 1121.204717 | AQ105: 33766000
A106: 74 | B106: =IF(A106>$A$8,"",OFFSET(InputPriceData!B$15,$A106+$A$11,0,1,1)) -> 2016-03-18 | C106: =IF(A106>$A$8,"",OFFSET(InputPriceData!G$15,CalculationsAndCharts!$A106+$A$11,IF($C$5,8,0),1,1)) -> 65031400 | D106: =IF(A106>$A$8,"",OFFSET(InputPriceData!C$15,CalculationsAndCharts!$A106+$A$11,IF($C$5,8,0),1,1)) -> 1092.01 | E106: =IF(A106>$A$8,"",OFFSET(InputPriceData!D$15,CalculationsAndCharts!$A106+$A$11,IF($C$5,8,0),1,1)) -> 1102.98 | F106: =IF(A106>$A$8,"",OFFSET(InputPriceData!E$15,CalculationsAndCharts!$A106+$A$11,IF($C$5,8,0),1,1)) -> 1092.01 | G106: =IF(A106>$A$8,"",OFFSET(InputPriceData!F$15,CalculationsAndCharts!$A106+$A$11,IF($C$5,8,0),1,1)) -> 1101.67 | H106: 1102.98 | I106: 943.1 | J106: 159.88 | K106: 1075.619231 | L106: 0.8288668434 | M106: 1058.563133 | N106: 0.7221862203 | O106: 10.66806231 | P106: 8.98620334 | Q106: 1121.432101 | R106: 10 | S106: -10 | T106: 17.05609802 | U106: 14.12809245 | V106: 1102.98 | W106: 943.1 | X106: 1075.619231 | Y106: 1058.563133 | Z106: 1121.432101 | AP106: 65031400
A107: 75 | B107: =IF(A107>$A$8,"",OFFSET(InputPriceData!B$15,$A107+$A$11,0,1,1)) -> 2016-03-17 | C107: =IF(A107>$A$8,"",OFFSET(InputPriceData!G$15,CalculationsAndCharts!$A107+$A$11,IF($C$5,8,0),1,1)) -> 45304800 | D107: =IF(A107>$A$8,"",OFFSET(InputPriceData!C$15,CalculationsAndCharts!$A107+$A$11,IF($C$5,8,0),1,1)) -> 1074.4 | E107: =IF(A107>$A$8,"",OFFSET(InputPriceData!D$15,CalculationsAndCharts!$A107+$A$11,IF($C$5,8,0),1,1)) -> 1094.69 | F107: =IF(A107>$A$8,"",OFFSET(InputPriceData!E$15,CalculationsAndCharts!$A107+$A$11,IF($C$5,8,0),1,1)) -> 1069.89 | G107: =IF(A107>$A$8,"",OFFSET(InputPriceData!F$15,CalculationsAndCharts!$A107+$A$11,IF($C$5,8,0),1,1)) -> 1091.25 | H107: 1094.69 | I107: 943.1 | J107: 151.59 | K107: 1070.882727 | L107: 0.8429495841 | M107: 1055.114584 | N107: 0.7389312193 | O107: 10.40183648 | P107: 8.565738598 | Q107: 1121.630715 | R107: 10 | S107: -10 | T107: 15.76814392 | U107: 13.39609106 | V107: 1094.69 | W107: 943.1 | X107: 1070.882727 | Y107: 1055.114584 | Z107: 1121.630715 | AP107: 45304800
A108: 76 | B108: =IF(A108>$A$8,"",OFFSET(InputPriceData!B$15,$A108+$A$11,0,1,1)) -> 2016-03-16 | C108: =IF(A108>$A$8,"",OFFSET(InputPriceData!G$15,CalculationsAndCharts!$A108+$A$11,IF($C$5,8,0),1,1)) -> 40570200 | D108: =IF(A108>$A$8,"",OFFSET(InputPriceData!C$15,CalculationsAndCharts!$A108+$A$11,IF($C$5,8,0),1,1)) -> 1066.08 | E108: =IF(A108>$A$8,"",OFFSET(InputPriceData!D$15,CalculationsAndCharts!$A108+$A$11,IF($C$5,8,0),1,1)) -> 1076.51 | F108: =IF(A108>$A$8,"",OFFSET(InputPriceData!E$15,CalculationsAndCharts!$A108+$A$11,IF($C$5,8,0),1,1)) -> 1063.66 | G108: =IF(A108>$A$8,"",OFFSET(InputPriceData!F$15,CalculationsAndCharts!$A108+$A$11,IF($C$5,8,0),1,1)) -> 1074.51 | H108: 1094.5 | I108: 943.1 | J108: 151.4 | K108: 1067.179587 | L108: 0.8195481307 | M108: 1052.22375 | N108: 0.7207645325 | O108: 9.878359824 | P108: 8.106714128 | Q108: 1121.936049 | R108: 10 | S108: -10 | T108: 14.95583677 | U108: 12.80307784 | V108: 1094.5 | W108: 943.1 | X108: 1067.179587 | Y108: 1052.22375 | Z108: 1121.936049 | AP108: 40570200
A109: 77 | B109: =IF(A109>$A$8,"",OFFSET(InputPriceData!B$15,$A109+$A$11,0,1,1)) -> 2016-03-15 | C109: =IF(A109>$A$8,"",OFFSET(InputPriceData!G$15,CalculationsAndCharts!$A109+$A$11,IF($C$5,8,0),1,1)) -> 35602800 | D109: =IF(A109>$A$8,"",OFFSET(InputPriceData!C$15,CalculationsAndCharts!$A109+$A$11,IF($C$5,8,0),1,1)) -> 1082.68 | E109: =IF(A109>$A$8,"",OFFSET(InputPriceData!D$15,CalculationsAndCharts!$A109+$A$11,IF($C$5,8,0),1,1)) -> 1082.68 | F109: =IF(A109>$A$8,"",OFFSET(InputPriceData!E$15,CalculationsAndCharts!$A109+$A$11,IF($C$5,8,0),1,1)) -> 1065.51 | G109: =IF(A109>$A$8,"",OFFSET(InputPriceData!F$15,CalculationsAndCharts!$A109+$A$11,IF($C$5,8,0),1,1)) -> 1066.67 | H109: 1094.5 | I109: 943.1 | J109: 151.4 | K109: 1065.846785 | L109: 0.8107449447 | M109: 1050.44085 | N109: 0.7089884428 | O109: 10.17565019 | P109: 7.663802704 | Q109: 1122.412693 | R109: 10 | S109: -10 | T109: 15.40593439 | U109: 12.26488811 | V109: 1094.5 | W109: 943.1 | X109: 1065.846785 | Y109: 1050.44085 | Z109: 1122.412693 | AQ109: 35602800
A110: 78 | B110: =IF(A110>$A$8,"",OFFSET(InputPriceData!B$15,$A110+$A$11,0,1,1)) -> 2016-03-14 | C110: =IF(A110>$A$8,"",OFFSET(InputPriceData!G$15,CalculationsAndCharts!$A110+$A$11,IF($C$5,8,0),1,1)) -> 34878500 | D110: =IF(A110>$A$8,"",OFFSET(InputPriceData!C$15,CalculationsAndCharts!$A110+$A$11,IF($C$5,8,0),1,1)) -> 1086.97 | E110: =IF(A110>$A$8,"",OFFSET(InputPriceData!D$15,CalculationsAndCharts!$A110+$A$11,IF($C$5,8,0),1,1)) -> 1087.46 | F110: =IF(A110>$A$8,"",OFFSET(InputPriceData!E$15,CalculationsAndCharts!$A110+$A$11,IF($C$5,8,0),1,1)) -> 1079.9 | G110: =IF(A110>$A$8,"",OFFSET(InputPriceData!F$15,CalculationsAndCharts!$A110+$A$11,IF($C$5,8,0),1,1)) -> 1084.25 | H110: 1094.5 | I110: 943.1 | J110: 151.4 | K110: 1065.697109 | L110: 0.8097563349 | M110: 1049.142518 | N110: 0.7004129343 | O110: 10.93434006 | P110: 7.035840831 | Q110: 1122.972921 | R110: 10 | S110: -10 | T110: 16.55459085 | U110: 11.47962653 | V110: 1094.5 | W110: 943.1 | X110: 1065.697109 | Y110: 1049.142518 | Z110: 1122.972921 | AQ110: 34878500
A111: 79 | B111: =IF(A111>$A$8,"",OFFSET(InputPriceData!B$15,$A111+$A$11,0,1,1)) -> 2016-03-11 | C111: =IF(A111>$A$8,"",OFFSET(InputPriceData!G$15,CalculationsAndCharts!$A111+$A$11,IF($C$5,8,0),1,1)) -> 40786200 | D111: =IF(A111>$A$8,"",OFFSET(InputPriceData!C$15,CalculationsAndCharts!$A111+$A$11,IF($C$5,8,0),1,1)) -> 1066.11 | E111: =IF(A111>$A$8,"",OFFSET(InputPriceData!D$15,CalculationsAndCharts!$A111+$A$11,IF($C$5,8,0),1,1)) -> 1087.87 | F111: =IF(A111>$A$8,"",OFFSET(InputPriceData!E$15,CalculationsAndCharts!$A111+$A$11,IF($C$5,8,0),1,1)) -> 1066.11 | G111: =IF(A111>$A$8,"",OFFSET(InputPriceData!F$15,CalculationsAndCharts!$A111+$A$11,IF($C$5,8,0),1,1)) -> 1087.56 | H111: 1094.5 | I111: 943.1 | J111: 151.4 | K111: 1062.323856 | L111: 0.7874759327 | M111: 1046.33392 | N111: 0.6818620853 | O111: 10.56138474 | P111: 6.061216024 | Q111: 1123.362096 | R111: 10 | S111: -10 | T111: 15.9899365 | U111: 10.21088546 | V111: 1094.5 | W111: 943.1 | X111: 1062.323856 | Y111: 1046.33392 | Z111: 1123.362096 | AP111: 40786200
A112: 80 | B112: =IF(A112>$A$8,"",OFFSET(InputPriceData!B$15,$A112+$A$11,0,1,1)) -> 2016-03-10 | C112: =IF(A112>$A$8,"",OFFSET(InputPriceData!G$15,CalculationsAndCharts!$A112+$A$11,IF($C$5,8,0),1,1)) -> 43767900 | D112: =IF(A112>$A$8,"",OFFSET(InputPriceData!C$15,CalculationsAndCharts!$A112+$A$11,IF($C$5,8,0),1,1)) -> 1073.41 | E112: =IF(A112>$A$8,"",OFFSET(InputPriceData!D$15,CalculationsAndCharts!$A112+$A$11,IF($C$5,8,0),1,1)) -> 1078.98 | F112: =IF(A112>$A$8,"",OFFSET(InputPriceData!E$15,CalculationsAndCharts!$A112+$A$11,IF($C$5,8,0),1,1)) -> 1054.56 | G112: =IF(A112>$A$8,"",OFFSET(InputPriceData!F$15,CalculationsAndCharts!$A112+$A$11,IF($C$5,8,0),1,1)) -> 1063.99 | H112: 1109.46 | I112: 943.1 | J112: 166.36 | K112: 1057.735466 | L112: 0.6890807071 | M112: 1043.035833 | N112: 0.6007203252 | O112: 8.836038197 | P112: 4.936173845 | Q112: 1123.721916 | R112: 10 | S112: -10 | T112: 14.69963314 | U112: 8.766122695 | V112: 1109.46 | W112: 943.1 | X112: 1057.735466 | Y112: 1043.035833 | Z112: 1123.721916 | AQ112: 43767900
A113: 81 | B113: =IF(A113>$A$8,"",OFFSET(InputPriceData!B$15,$A113+$A$11,0,1,1)) -> 2016-03-09 | C113: =IF(A113>$A$8,"",OFFSET(InputPriceData!G$15,CalculationsAndCharts!$A113+$A$11,IF($C$5,8,0),1,1)) -> 40381200 | D113: =IF(A113>$A$8,"",OFFSET(InputPriceData!C$15,CalculationsAndCharts!$A113+$A$11,IF($C$5,8,0),1,1)) -> 1068.45 | E113: =IF(A113>$A$8,"",OFFSET(InputPriceData!D$15,CalculationsAndCharts!$A113+$A$11,IF($C$5,8,0),1,1)) -> 1074.2 | F113: =IF(A113>$A$8,"",OFFSET(InputPriceData!E$15,CalculationsAndCharts!$A113+$A$11,IF($C$5,8,0),1,1)) -> 1067.13 | G113: =IF(A113>$A$8,"",OFFSET(InputPriceData!F$15,CalculationsAndCharts!$A113+$A$11,IF($C$5,8,0),1,1)) -> 1072.77 | H113: 1112.67 | I113: 943.1 | J113: 169.57 | K113: 1056.598279 | L113: 0.6693299435 | M113: 1041.3595 | N113: 0.5794627585 | O113: 8.9867185 | P113: 3.961207757 | Q113: 1124.322237 | R113: 10 | S113: -10 | T113: 15.23877856 | U113: 7.282745083 | V113: 1112.67 | W113: 943.1 | X113: 1056.598279 | Y113: 1041.3595 | Z113: 1124.322237 | AP113: 40381200
A114: 82 | B114: =IF(A114>$A$8,"",OFFSET(InputPriceData!B$15,$A114+$A$11,0,1,1)) -> 2016-03-08 | C114: =IF(A114>$A$8,"",OFFSET(InputPriceData!G$15,CalculationsAndCharts!$A114+$A$11,IF($C$5,8,0),1,1)) -> 46416500 | D114: =IF(A114>$A$8,"",OFFSET(InputPriceData!C$15,CalculationsAndCharts!$A114+$A$11,IF($C$5,8,0),1,1)) -> 1092.71 | E114: =IF(A114>$A$8,"",OFFSET(InputPriceData!D$15,CalculationsAndCharts!$A114+$A$11,IF($C$5,8,0),1,1)) -> 1092.71 | F114: =IF(A114>$A$8,"",OFFSET(InputPriceData!E$15,CalculationsAndCharts!$A114+$A$11,IF($C$5,8,0),1,1)) -> 1067.24 | G114: =IF(A114>$A$8,"",OFFSET(InputPriceData!F$15,CalculationsAndCharts!$A114+$A$11,IF($C$5,8,0),1,1)) -> 1067.88 | H114: 1134.08 | I114: 943.1 | J114: 190.98 | K114: 1053.657966 | L114: 0.5788981334 | M114: 1038.84666 | N114: 0.5013439101 | O114: 7.755422331 | P114: 2.704830071 | Q114: 1124.84035 | R114: 10 | S114: -10 | T114: 14.81130557 | U114: 5.293736713 | V114: 1134.08 | W114: 943.1 | X114: 1053.657966 | Y114: 1038.84666 | Z114: 1124.84035 | AQ114: 46416500
A115: 83 | B115: =IF(A115>$A$8,"",OFFSET(InputPriceData!B$15,$A115+$A$11,0,1,1)) -> 2016-03-07 | C115: =IF(A115>$A$8,"",OFFSET(InputPriceData!G$15,CalculationsAndCharts!$A115+$A$11,IF($C$5,8,0),1,1)) -> 49681800 | D115: =IF(A115>$A$8,"",OFFSET(InputPriceData!C$15,CalculationsAndCharts!$A115+$A$11,IF($C$5,8,0),1,1)) -> 1081.28 | E115: =IF(A115>$A$8,"",OFFSET(InputPriceData!D$15,CalculationsAndCharts!$A115+$A$11,IF($C$5,8,0),1,1)) -> 1094.5 | F115: =IF(A115>$A$8,"",OFFSET(InputPriceData!E$15,CalculationsAndCharts!$A115+$A$11,IF($C$5,8,0),1,1)) -> 1077.94 | G115: =IF(A115>$A$8,"",OFFSET(InputPriceData!F$15,CalculationsAndCharts!$A115+$A$11,IF($C$5,8,0),1,1)) -> 1094.15 | H115: 1149.33 | I115: 943.1 | J115: 206.23 | K115: 1051.072141 | L115: 0.5235520587 | M115: 1036.523993 | N115: 0.4530087415 | O115: 7.054331727 | P115: 1.442182006 | Q115: 1125.412816 | R115: 10 | S115: -10 | T115: 14.54814832 | U115: 2.914344499 | V115: 1149.33 | W115: 943.1 | X115: 1051.072141 | Y115: 1036.523993 | Z115: 1125.412816 | AP115: 49681800
A116: 84 | B116: =IF(A116>$A$8,"",OFFSET(InputPriceData!B$15,$A116+$A$11,0,1,1)) -> 2016-03-04 | C116: =IF(A116>$A$8,"",OFFSET(InputPriceData!G$15,CalculationsAndCharts!$A116+$A$11,IF($C$5,8,0),1,1)) -> 60499300 | D116: =IF(A116>$A$8,"",OFFSET(InputPriceData!C$15,CalculationsAndCharts!$A116+$A$11,IF($C$5,8,0),1,1)) -> 1076.34 | E116: =IF(A116>$A$8,"",OFFSET(InputPriceData!D$15,CalculationsAndCharts!$A116+$A$11,IF($C$5,8,0),1,1)) -> 1088.24 | F116: =IF(A116>$A$8,"",OFFSET(InputPriceData!E$15,CalculationsAndCharts!$A116+$A$11,IF($C$5,8,0),1,1)) -> 1073.82 | G116: =IF(A116>$A$8,"",OFFSET(InputPriceData!F$15,CalculationsAndCharts!$A116+$A$11,IF($C$5,8,0),1,1)) -> 1081.93 | H116: 1160.38 | I116: 943.1 | J116: 217.28 | K116: 1043.239803 | L116: 0.4608790643 | M116: 1031.913912 | N116: 0.4087532777 | O116: 5.212578661 | P116: 0.03914457537 | Q116: 1125.727015 | R116: 10 | S116: -10 | T116: 11.32589091 | U116: 0.005893543941 | V116: 1160.38 | W116: 943.1 | X116: 1043.239803 | Y116: 1031.913912 | Z116: 1125.727015 | AP116: 60499300
A117: 85 | B117: =IF(A117>$A$8,"",OFFSET(InputPriceData!B$15,$A117+$A$11,0,1,1)) -> 2016-03-03 | C117: =IF(A117>$A$8,"",OFFSET(InputPriceData!G$15,CalculationsAndCharts!$A117+$A$11,IF($C$5,8,0),1,1)) -> 50817000 | D117: =IF(A117>$A$8,"",OFFSET(InputPriceData!C$15,CalculationsAndCharts!$A117+$A$11,IF($C$5,8,0),1,1)) -> 1065.64 | E117: =IF(A117>$A$8,"",OFFSET(InputPriceData!D$15,CalculationsAndCharts!$A117+$A$11,IF($C$5,8,0),1,1)) -> 1076.09 | F117: =IF(A117>$A$8,"",OFFSET(InputPriceData!E$15,CalculationsAndCharts!$A117+$A$11,IF($C$5,8,0),1,1)) -> 1064.6 | G117: =IF(A117>$A$8,"",OFFSET(InputPriceData!F$15,CalculationsAndCharts!$A117+$A$11,IF($C$5,8,0),1,1)) -> 1076.05 | H117: 1160.94 | I117: 943.1 | J117: 217.84 | K117: 1036.205222 | L117: 0.427401863 | M117: 1027.912625 | N117: 0.3893344893 | O117: 3.806737368 | P117: -1.254213946 | Q117: 1126.167186 | R117: 10 | S117: -10 | T117: 8.292596683 | U117: -2.824105799 | V117: 1160.94 | W117: 943.1 | X117: 1036.205222 | Y117: 1027.912625 | Z117: 1126.167186 | AP117: 50817000
A118: 86 | B118: =IF(A118>$A$8,"",OFFSET(InputPriceData!B$15,$A118+$A$11,0,1,1)) -> 2016-03-02 | C118: =IF(A118>$A$8,"",OFFSET(InputPriceData!G$15,CalculationsAndCharts!$A118+$A$11,IF($C$5,8,0),1,1)) -> 46666100 | D118: =IF(A118>$A$8,"",OFFSET(InputPriceData!C$15,CalculationsAndCharts!$A118+$A$11,IF($C$5,8,0),1,1)) -> 1054.24 | E118: =IF(A118>$A$8,"",OFFSET(InputPriceData!D$15,CalculationsAndCharts!$A118+$A$11,IF($C$5,8,0),1,1)) -> 1065.68 | F118: =IF(A118>$A$8,"",OFFSET(InputPriceData!E$15,CalculationsAndCharts!$A118+$A$11,IF($C$5,8,0),1,1)) -> 1052.15 | G118: =IF(A118>$A$8,"",OFFSET(InputPriceData!F$15,CalculationsAndCharts!$A118+$A$11,IF($C$5,8,0),1,1)) -> 1065.67 | H118: 1160.94 | I118: 943.1 | J118: 217.84 | K118: 1028.960717 | L118: 0.39414578 | M118: 1024.061635 | N118: 0.3716564229 | O118: 2.248935709 | P118: -2.519451775 | Q118: 1126.670876 | R118: 10 | S118: -10 | T118: 4.899081549 | U118: -5.603281419 | V118: 1160.94 | W118: 943.1 | X118: 1028.960717 | Y118: 1024.061635 | Z118: 1126.670876 | AP118: 46666100
A119: 87 | B119: =IF(A119>$A$8,"",OFFSET(InputPriceData!B$15,$A119+$A$11,0,1,1)) -> 2016-03-01 | C119: =IF(A119>$A$8,"",OFFSET(InputPriceData!G$15,CalculationsAndCharts!$A119+$A$11,IF($C$5,8,0),1,1)) -> 48197500 | D119: =IF(A119>$A$8,"",OFFSET(InputPriceData!C$15,CalculationsAndCharts!$A119+$A$11,IF($C$5,8,0),1,1)) -> 1035.52 | E119: =IF(A119>$A$8,"",OFFSET(InputPriceData!D$15,CalculationsAndCharts!$A119+$A$11,IF($C$5,8,0),1,1)) -> 1054.49 | F119: =IF(A119>$A$8,"",OFFSET(InputPriceData!E$15,CalculationsAndCharts!$A119+$A$11,IF($C$5,8,0),1,1)) -> 1035.52 | G119: =IF(A119>$A$8,"",OFFSET(InputPriceData!F$15,CalculationsAndCharts!$A119+$A$11,IF($C$5,8,0),1,1)) -> 1054.49 | H119: 1160.94 | I119: 943.1 | J119: 217.84 | K119: 1022.286302 | L119: 0.3635067093 | M119: 1020.732966 | N119: 0.3563760832 | O119: 0.7130626112 | P119: -3.711548645 | Q119: 1127.28395 | R119: 10 | S119: -10 | T119: 1.553335592 | U119: -8.228872161 | V119: 1160.94 | W119: 943.1 | X119: 1022.286302 | Y119: 1020.732966 | Z119: 1127.28395 | AP119: 48197500
A120: 88 | B120: =IF(A120>$A$8,"",OFFSET(InputPriceData!B$15,$A120+$A$11,0,1,1)) -> 2016-02-29 | C120: =IF(A120>$A$8,"",OFFSET(InputPriceData!G$15,CalculationsAndCharts!$A120+$A$11,IF($C$5,8,0),1,1)) -> 45881800 | D120: =IF(A120>$A$8,"",OFFSET(InputPriceData!C$15,CalculationsAndCharts!$A120+$A$11,IF($C$5,8,0),1,1)) -> 1037.21 | E120: =IF(A120>$A$8,"",OFFSET(InputPriceData!D$15,CalculationsAndCharts!$A120+$A$11,IF($C$5,8,0),1,1)) -> 1044.91 | F120: =IF(A120>$A$8,"",OFFSET(InputPriceData!E$15,CalculationsAndCharts!$A120+$A$11,IF($C$5,8,0),1,1)) -> 1033.67 | G120: =IF(A120>$A$8,"",OFFSET(InputPriceData!F$15,CalculationsAndCharts!$A120+$A$11,IF($C$5,8,0),1,1)) -> 1033.9 | H120: 1160.94 | I120: 943.1 | J120: 217.84 | K120: 1016.431084 | L120: 0.3366281843 | M120: 1018.032403 | N120: 0.3439790821 | O120: -0.7350897829 | P120: -4.81770146 | Q120: 1128.015548 | R120: 10 | S120: -10 | T120: -1.601319583 | U120: -10.6744241 | V120: 1160.94 | W120: 943.1 | X120: 1016.431084 | Y120: 1018.032403 | Z120: 1128.015548 | AQ120: 45881800
A121: 89 | B121: =IF(A121>$A$8,"",OFFSET(InputPriceData!B$15,$A121+$A$11,0,1,1)) -> 2016-02-26 | C121: =IF(A121>$A$8,"",OFFSET(InputPriceData!G$15,CalculationsAndCharts!$A121+$A$11,IF($C$5,8,0),1,1)) -> 43485100 | D121: =IF(A121>$A$8,"",OFFSET(InputPriceData!C$15,CalculationsAndCharts!$A121+$A$11,IF($C$5,8,0),1,1)) -> 1031.59 | E121: =IF(A121>$A$8,"",OFFSET(InputPriceData!D$15,CalculationsAndCharts!$A121+$A$11,IF($C$5,8,0),1,1)) -> 1039.71 | F121: =IF(A121>$A$8,"",OFFSET(InputPriceData!E$15,CalculationsAndCharts!$A121+$A$11,IF($C$5,8,0),1,1)) -> 1031.59 | G121: =IF(A121>$A$8,"",OFFSET(InputPriceData!F$15,CalculationsAndCharts!$A121+$A$11,IF($C$5,8,0),1,1)) -> 1037.18 | H121: 1160.94 | I121: 943.1 | J121: 217.84 | K121: 1013.254917 | L121: 0.3220479116 | M121: 1016.762996 | N121: 0.3381518339 | O121: -1.610392237 | P121: -5.838354379 | Q121: 1128.961433 | R121: 10 | S121: -10 | T121: -3.508078449 | U121: -12.94270023 | V121: 1160.94 | W121: 943.1 | X121: 1013.254917 | Y121: 1016.762996 | Z121: 1128.961433 | AP121: 43485100
A122: 90 | B122: =IF(A122>$A$8,"",OFFSET(InputPriceData!B$15,$A122+$A$11,0,1,1)) -> 2016-02-25 | C122: =IF(A122>$A$8,"",OFFSET(InputPriceData!G$15,CalculationsAndCharts!$A122+$A$11,IF($C$5,8,0),1,1)) -> 41182100 | D122: =IF(A122>$A$8,"",OFFSET(InputPriceData!C$15,CalculationsAndCharts!$A122+$A$11,IF($C$5,8,0),1,1)) -> 1022.96 | E122: =IF(A122>$A$8,"",OFFSET(InputPriceData!D$15,CalculationsAndCharts!$A122+$A$11,IF($C$5,8,0),1,1)) -> 1031.58 | F122: =IF(A122>$A$8,"",OFFSET(InputPriceData!E$15,CalculationsAndCharts!$A122+$A$11,IF($C$5,8,0),1,1)) -> 1020.46 | G122: =IF(A122>$A$8,"",OFFSET(InputPriceData!F$15,CalculationsAndCharts!$A122+$A$11,IF($C$5,8,0),1,1)) -> 1031.58 | H122: 1160.94 | I122: 943.1 | J122: 217.84 | K122: 1008.904902 | L122: 0.3020790579 | M122: 1015.129635 | N122: 0.3306538521 | O122: -2.857479421 | P122: -6.895344914 | Q122: 1129.883859 | R122: 10 | S122: -10 | T122: -6.22473317 | U122: -15.30135567 | V122: 1160.94 | W122: 943.1 | X122: 1008.904902 | Y122: 1015.129635 | Z122: 1129.883859 | AP122: 41182100
A123: 91 | B123: =IF(A123>$A$8,"",OFFSET(InputPriceData!B$15,$A123+$A$11,0,1,1)) -> 2016-02-24 | C123: =IF(A123>$A$8,"",OFFSET(InputPriceData!G$15,CalculationsAndCharts!$A123+$A$11,IF($C$5,8,0),1,1)) -> 43172500 | D123: =IF(A123>$A$8,"",OFFSET(InputPriceData!C$15,CalculationsAndCharts!$A123+$A$11,IF($C$5,8,0),1,1)) -> 1010.1 | E123: =IF(A123>$A$8,"",OFFSET(InputPriceData!D$15,CalculationsAndCharts!$A123+$A$11,IF($C$5,8,0),1,1)) -> 1023.06 | F123: =IF(A123>$A$8,"",OFFSET(InputPriceData!E$15,CalculationsAndCharts!$A123+$A$11,IF($C$5,8,0),1,1)) -> 996.7 | G123: =IF(A123>$A$8,"",OFFSET(InputPriceData!F$15,CalculationsAndCharts!$A123+$A$11,IF($C$5,8,0),1,1)) -> 1022.08 | H123: 1160.94 | I123: 943.1 | J123: 217.84 | K123: 1004.782157 | L123: 0.2831534928 | M123: 1013.813606 | N123: 0.324612587 | O123: -4.145909419 | P123: -7.904811288 | Q123: 1130.871838 | R123: 10 | S123: -10 | T123: -9.031449077 | U123: -17.5705113 | V123: 1160.94 | W123: 943.1 | X123: 1004.782157 | Y123: 1013.813606 | Z123: 1130.871838 | AP123: 43172500
A124: 92 | B124: =IF(A124>$A$8,"",OFFSET(InputPriceData!B$15,$A124+$A$11,0,1,1)) -> 2016-02-23 | C124: =IF(A124>$A$8,"",OFFSET(InputPriceData!G$15,CalculationsAndCharts!$A124+$A$11,IF($C$5,8,0),1,1)) -> 38906500 | D124: =IF(A124>$A$8,"",OFFSET(InputPriceData!C$15,CalculationsAndCharts!$A124+$A$11,IF($C$5,8,0),1,1)) -> 1021.25 | E124: =IF(A124>$A$8,"",OFFSET(InputPriceData!D$15,CalculationsAndCharts!$A124+$A$11,IF($C$5,8,0),1,1)) -> 1021.25 | F124: =IF(A124>$A$8,"",OFFSET(InputPriceData!E$15,CalculationsAndCharts!$A124+$A$11,IF($C$5,8,0),1,1)) -> 1012.15 | G124: =IF(A124>$A$8,"",OFFSET(InputPriceData!F$15,CalculationsAndCharts!$A124+$A$11,IF($C$5,8,0),1,1)) -> 1012.15 | H124: 1160.94 | I124: 943.1 | J124: 217.84 | K124: 1001.637094 | L124: 0.2687160049 | M124: 1013.152294 | N124: 0.3215768198 | O124: -5.2860815 | P124: -8.844536755 | Q124: 1131.965223 | R124: 10 | S124: -10 | T124: -11.51519994 | U124: -19.70527685 | V124: 1160.94 | W124: 943.1 | X124: 1001.637094 | Y124: 1013.152294 | Z124: 1131.965223 | AQ124: 38906500
A125: 93 | B125: =IF(A125>$A$8,"",OFFSET(InputPriceData!B$15,$A125+$A$11,0,1,1)) -> 2016-02-22 | C125: =IF(A125>$A$8,"",OFFSET(InputPriceData!G$15,CalculationsAndCharts!$A125+$A$11,IF($C$5,8,0),1,1)) -> 40547100 | D125: =IF(A125>$A$8,"",OFFSET(InputPriceData!C$15,CalculationsAndCharts!$A125+$A$11,IF($C$5,8,0),1,1)) -> 1010.39 | E125: =IF(A125>$A$8,"",OFFSET(InputPriceData!D$15,CalculationsAndCharts!$A125+$A$11,IF($C$5,8,0),1,1)) -> 1025.28 | F125: =IF(A125>$A$8,"",OFFSET(InputPriceData!E$15,CalculationsAndCharts!$A125+$A$11,IF($C$5,8,0),1,1)) -> 1010.39 | G125: =IF(A125>$A$8,"",OFFSET(InputPriceData!F$15,CalculationsAndCharts!$A125+$A$11,IF($C$5,8,0),1,1)) -> 1021.74 | H125: 1160.94 | I125: 943.1 | J125: 217.84 | K125: 999.7256571 | L125: 0.2599415035 | M125: 1013.232478 | N125: 0.3219449045 | O125: -6.200340093 | P125: -9.734150569 | Q125: 1133.169396 | R125: 10 | S125: -10 | T125: -13.50682086 | U125: -21.75279608 | V125: 1160.94 | W125: 943.1 | X125: 999.7256571 | Y125: 1013.232478 | Z125: 1133.169396 | AP125: 40547100
A126: 94 | B126: =IF(A126>$A$8,"",OFFSET(InputPriceData!B$15,$A126+$A$11,0,1,1)) -> 2016-02-19 | C126: =IF(A126>$A$8,"",OFFSET(InputPriceData!G$15,CalculationsAndCharts!$A126+$A$11,IF($C$5,8,0),1,1)) -> 41428500 | D126: =IF(A126>$A$8,"",OFFSET(InputPriceData!C$15,CalculationsAndCharts!$A126+$A$11,IF($C$5,8,0),1,1)) -> 1003.72 | E126: =IF(A126>$A$8,"",OFFSET(InputPriceData!D$15,CalculationsAndCharts!$A126+$A$11,IF($C$5,8,0),1,1)) -> 1010.72 | F126: =IF(A126>$A$8,"",OFFSET(InputPriceData!E$15,CalculationsAndCharts!$A126+$A$11,IF($C$5,8,0),1,1)) -> 998.27 | G126: =IF(A126>$A$8,"",OFFSET(InputPriceData!F$15,CalculationsAndCharts!$A126+$A$11,IF($C$5,8,0),1,1)) -> 1010.01 | H126: 1160.94 | I126: 943.1 | J126: 217.84 | K126: 995.7230493 | L126: 0.2415674318 | M126: 1012.551876 | N126: 0.318820585 | O126: -7.725315319 | P126: -10.61760319 | Q126: 1134.28929 | R126: 10 | S126: -10 | T126: -16.82882689 | U126: -23.81428989 | V126: 1160.94 | W126: 943.1 | X126: 995.7230493 | Y126: 1012.551876 | Z126: 1134.28929 | AP126: 41428500
A127: 95 | B127: =IF(A127>$A$8,"",OFFSET(InputPriceData!B$15,$A127+$A$11,0,1,1)) -> 2016-02-18 | C127: =IF(A127>$A$8,"",OFFSET(InputPriceData!G$15,CalculationsAndCharts!$A127+$A$11,IF($C$5,8,0),1,1)) -> 44364900 | D127: =IF(A127>$A$8,"",OFFSET(InputPriceData!C$15,CalculationsAndCharts!$A127+$A$11,IF($C$5,8,0),1,1)) -> 1011.98 | E127: =IF(A127>$A$8,"",OFFSET(InputPriceData!D$15,CalculationsAndCharts!$A127+$A$11,IF($C$5,8,0),1,1)) -> 1013.6 | F127: =IF(A127>$A$8,"",OFFSET(InputPriceData!E$15,CalculationsAndCharts!$A127+$A$11,IF($C$5,8,0),1,1)) -> 1002.41 | G127: =IF(A127>$A$8,"",OFFSET(InputPriceData!F$15,CalculationsAndCharts!$A127+$A$11,IF($C$5,8,0),1,1)) -> 1004.71 | H127: 1160.94 | I127: 943.1 | J127: 217.84 | K127: 993.1254219 | L127: 0.2296429579 | M127: 1012.755226 | N127: 0.3197540687 | O127: -9.011111083 | P127: -11.34067515 | Q127: 1135.538328 | R127: 10 | S127: -10 | T127: -19.62980438 | U127: -25.56065564 | V127: 1160.94 | W127: 943.1 | X127: 993.1254219 | Y127: 1012.755226 | Z127: 1135.538328 | AQ127: 44364900
A128: 96 | B128: =IF(A128>$A$8,"",OFFSET(InputPriceData!B$15,$A128+$A$11,0,1,1)) -> 2016-02-17 | C128: =IF(A128>$A$8,"",OFFSET(InputPriceData!G$15,CalculationsAndCharts!$A128+$A$11,IF($C$5,8,0),1,1)) -> 50115400 | D128: =IF(A128>$A$8,"",OFFSET(InputPriceData!C$15,CalculationsAndCharts!$A128+$A$11,IF($C$5,8,0),1,1)) -> 997.83 | E128: =IF(A128>$A$8,"",OFFSET(InputPriceData!D$15,CalculationsAndCharts!$A128+$A$11,IF($C$5,8,0),1,1)) -> 1016.28 | F128: =IF(A128>$A$8,"",OFFSET(InputPriceData!E$15,CalculationsAndCharts!$A128+$A$11,IF($C$5,8,0),1,1)) -> 997.83 | G128: =IF(A128>$A$8,"",OFFSET(InputPriceData!F$15,CalculationsAndCharts!$A128+$A$11,IF($C$5,8,0),1,1)) -> 1011.13 | H128: 1160.94 | I128: 943.1 | J128: 217.84 | K128: 991.019135 | L128: 0.2199739948 | M128: 1013.398844 | N128: 0.3227086138 | O128: -10.2734619 | P128: -11.92306617 | Q128: 1136.853185 | R128: 10 | S128: -10 | T128: -22.37970941 | U128: -27.04336845 | V128: 1160.94 | W128: 943.1 | X128: 991.019135 | Y128: 1013.398844 | Z128: 1136.853185 | AP128: 50115400
A129: 97 | B129: =IF(A129>$A$8,"",OFFSET(InputPriceData!B$15,$A129+$A$11,0,1,1)) -> 2016-02-16 | C129: =IF(A129>$A$8,"",OFFSET(InputPriceData!G$15,CalculationsAndCharts!$A129+$A$11,IF($C$5,8,0),1,1)) -> 45706700 | D129: =IF(A129>$A$8,"",OFFSET(InputPriceData!C$15,CalculationsAndCharts!$A129+$A$11,IF($C$5,8,0),1,1)) -> 972.45 | E129: =IF(A129>$A$8,"",OFFSET(InputPriceData!D$15,CalculationsAndCharts!$A129+$A$11,IF($C$5,8,0),1,1)) -> 996.39 | F129: =IF(A129>$A$8,"",OFFSET(InputPriceData!E$15,CalculationsAndCharts!$A129+$A$11,IF($C$5,8,0),1,1)) -> 972.45 | G129: =IF(A129>$A$8,"",OFFSET(InputPriceData!F$15,CalculationsAndCharts!$A129+$A$11,IF($C$5,8,0),1,1)) -> 995.8 | H129: 1160.94 | I129: 943.1 | J129: 217.84 | K129: 987.3626141 | L129: 0.2031886436 | M129: 1013.580352 | N129: 0.3235418288 | O129: -12.03531852 | P129: -12.33546724 | Q129: 1138.116735 | R129: 10 | S129: -10 | T129: -26.21773787 | U129: -28.20928321 | V129: 1160.94 | W129: 943.1 | X129: 987.3626141 | Y129: 1013.580352 | Z129: 1138.116735 | AP129: 45706700
A130: 98 | B130: =IF(A130>$A$8,"",OFFSET(InputPriceData!B$15,$A130+$A$11,0,1,1)) -> 2016-02-12 | C130: =IF(A130>$A$8,"",OFFSET(InputPriceData!G$15,CalculationsAndCharts!$A130+$A$11,IF($C$5,8,0),1,1)) -> 46969200 | D130: =IF(A130>$A$8,"",OFFSET(InputPriceData!C$15,CalculationsAndCharts!$A130+$A$11,IF($C$5,8,0),1,1)) -> 955.34 | E130: =IF(A130>$A$8,"",OFFSET(InputPriceData!D$15,CalculationsAndCharts!$A130+$A$11,IF($C$5,8,0),1,1)) -> 972.87 | F130: =IF(A130>$A$8,"",OFFSET(InputPriceData!E$15,CalculationsAndCharts!$A130+$A$11,IF($C$5,8,0),1,1)) -> 955.34 | G130: =IF(A130>$A$8,"",OFFSET(InputPriceData!F$15,CalculationsAndCharts!$A130+$A$11,IF($C$5,8,0),1,1)) -> 971.99 | H130: 1165.56 | I130: 943.1 | J130: 222.46 | K130: 985.828544 | L130: 0.1920729298 | M130: 1015.00278 | N130: 0.3232166688 | O130: -13.1143739 | P130: -12.41050442 | Q130: 1139.547054 | R130: 10 | S130: -10 | T130: -29.17423619 | U130: -28.70716955 | V130: 1165.56 | W130: 943.1 | X130: 985.828544 | Y130: 1015.00278 | Z130: 1139.547054 | AP130: 46969200
A131: 99 | B131: =IF(A131>$A$8,"",OFFSET(InputPriceData!B$15,$A131+$A$11,0,1,1)) -> 2016-02-11 | C131: =IF(A131>$A$8,"",OFFSET(InputPriceData!G$15,CalculationsAndCharts!$A131+$A$11,IF($C$5,8,0),1,1)) -> 55008000 | D131: =IF(A131>$A$8,"",OFFSET(InputPriceData!C$15,CalculationsAndCharts!$A131+$A$11,IF($C$5,8,0),1,1)) -> 958.89 | E131: =IF(A131>$A$8,"",OFFSET(InputPriceData!D$15,CalculationsAndCharts!$A131+$A$11,IF($C$5,8,0),1,1)) -> 958.89 | F131: =IF(A131>$A$8,"",OFFSET(InputPriceData!E$15,CalculationsAndCharts!$A131+$A$11,IF($C$5,8,0),1,1)) -> 943.1 | G131: =IF(A131>$A$8,"",OFFSET(InputPriceData!F$15,CalculationsAndCharts!$A131+$A$11,IF($C$5,8,0),1,1)) -> 953.72 | H131: 1165.56 | I131: 943.1 | J131: 222.46 | K131: 988.3446429 | L131: 0.2033832728 | M131: 1018.443803 | N131: 0.3386847189 | O131: -13.53014461 | P131: -12.23453705 | Q131: 1141.231044 | R131: 10 | S131: -10 | T131: -30.0991597 | U131: -28.59040289 | V131: 1165.56 | W131: 943.1 | X131: 988.3446429 | Y131: 1018.443803 | Z131: 1141.231044 | AQ131: 55008000
A132: 100 | B132: =IF(A132>$A$8,"",OFFSET(InputPriceData!B$15,$A132+$A$11,0,1,1)) -> 2016-02-10 | C132: =IF(A132>$A$8,"",OFFSET(InputPriceData!G$15,CalculationsAndCharts!$A132+$A$11,IF($C$5,8,0),1,1)) -> 44711700 | D132: =IF(A132>$A$8,"",OFFSET(InputPriceData!C$15,CalculationsAndCharts!$A132+$A$11,IF($C$5,8,0),1,1)) -> 965.52 | E132: =IF(A132>$A$8,"",OFFSET(InputPriceData!D$15,CalculationsAndCharts!$A132+$A$11,IF($C$5,8,0),1,1)) -> 983.45 | F132: =IF(A132>$A$8,"",OFFSET(InputPriceData!E$15,CalculationsAndCharts!$A132+$A$11,IF($C$5,8,0),1,1)) -> 963.32 | G132: =IF(A132>$A$8,"",OFFSET(InputPriceData!F$15,CalculationsAndCharts!$A132+$A$11,IF($C$5,8,0),1,1)) -> 963.48 | H132: 1183.07 | I132: 955.71 | J132: 227.36 | K132: 994.6400325 | L132: 0.171226392 | M132: 1023.621707 | N132: 0.2986968102 | O132: -12.74704182 | P132: -11.91063516 | Q132: 1143.115577 | R132: 10 | S132: -10 | T132: -28.98167429 | U132: -28.21321369 | V132: 1183.07 | W132: 955.71 | X132: 994.6400325 | Y132: 1023.621707 | Z132: 1143.115577 | AQ132: 44711700
A133: 101 | B133: =IF(A133>$A$8,"",OFFSET(InputPriceData!B$15,$A133+$A$11,0,1,1)) -> 2016-02-09 | C133: =IF(A133>$A$8,"",OFFSET(InputPriceData!G$15,CalculationsAndCharts!$A133+$A$11,IF($C$5,8,0),1,1)) -> 51321400 | D133: =IF(A133>$A$8,"",OFFSET(InputPriceData!C$15,CalculationsAndCharts!$A133+$A$11,IF($C$5,8,0),1,1)) -> 967.85 | E133: =IF(A133>$A$8,"",OFFSET(InputPriceData!D$15,CalculationsAndCharts!$A133+$A$11,IF($C$5,8,0),1,1)) -> 975.14 | F133: =IF(A133>$A$8,"",OFFSET(InputPriceData!E$15,CalculationsAndCharts!$A133+$A$11,IF($C$5,8,0),1,1)) -> 957.09 | G133: =IF(A133>$A$8,"",OFFSET(InputPriceData!F$15,CalculationsAndCharts!$A133+$A$11,IF($C$5,8,0),1,1)) -> 963.9 | H133: 1183.82 | I133: 955.71 | J133: 228.11 | K133: 1000.305493 | L133: 0.1954999471 | M133: 1028.433043 | N133: 0.3188069059 | O133: -12.33069588 | P133: -11.70153349 | Q133: 1144.92096 | R133: 10 | S133: -10 | T133: -28.12755038 | U133: -28.02109854 | V133: 1183.82 | W133: 955.71 | X133: 1000.305493 | Y133: 1028.433043 | Z133: 1144.92096 | AQ133: 51321400
A134: 102 | B134: =IF(A134>$A$8,"",OFFSET(InputPriceData!B$15,$A134+$A$11,0,1,1)) -> 2016-02-08 | C134: =IF(A134>$A$8,"",OFFSET(InputPriceData!G$15,CalculationsAndCharts!$A134+$A$11,IF($C$5,8,0),1,1)) -> 56364600 | D134: =IF(A134>$A$8,"",OFFSET(InputPriceData!C$15,CalculationsAndCharts!$A134+$A$11,IF($C$5,8,0),1,1)) -> 982.15 | E134: =IF(A134>$A$8,"",OFFSET(InputPriceData!D$15,CalculationsAndCharts!$A134+$A$11,IF($C$5,8,0),1,1)) -> 982.15 | F134: =IF(A134>$A$8,"",OFFSET(InputPriceData!E$15,CalculationsAndCharts!$A134+$A$11,IF($C$5,8,0),1,1)) -> 955.71 | G134: =IF(A134>$A$8,"",OFFSET(InputPriceData!F$15,CalculationsAndCharts!$A134+$A$11,IF($C$5,8,0),1,1)) -> 969.34 | H134: 1196.68 | I134: 955.71 | J134: 240.97 | K134: 1006.924673 | L134: 0.2125354752 | M134: 1033.595687 | N134: 0.3232173581 | O134: -11.06818829 | P134: -11.5442429 | Q134: 1146.740266 | R134: 10 | S134: -10 | T134: -26.67101331 | U134: -27.99448558 | V134: 1196.68 | W134: 955.71 | X134: 1006.924673 | Y134: 1033.595687 | Z134: 1146.740266 | AQ134: 56364600
A135: 103 | B135: =IF(A135>$A$8,"",OFFSET(InputPriceData!B$15,$A135+$A$11,0,1,1)) -> 2016-02-05 | C135: =IF(A135>$A$8,"",OFFSET(InputPriceData!G$15,CalculationsAndCharts!$A135+$A$11,IF($C$5,8,0),1,1)) -> 49299400 | D135: =IF(A135>$A$8,"",OFFSET(InputPriceData!C$15,CalculationsAndCharts!$A135+$A$11,IF($C$5,8,0),1,1)) -> 1014.31 | E135: =IF(A135>$A$8,"",OFFSET(InputPriceData!D$15,CalculationsAndCharts!$A135+$A$11,IF($C$5,8,0),1,1)) -> 1014.31 | F135: =IF(A135>$A$8,"",OFFSET(InputPriceData!E$15,CalculationsAndCharts!$A135+$A$11,IF($C$5,8,0),1,1)) -> 985.62 | G135: =IF(A135>$A$8,"",OFFSET(InputPriceData!F$15,CalculationsAndCharts!$A135+$A$11,IF($C$5,8,0),1,1)) -> 985.62 | H135: 1205.08 | I135: 958.48 | J135: 246.6 | K135: 1013.75825 | L135: 0.2241615996 | M135: 1038.736142 | N135: 0.3254506963 | O135: -10.12890968 | P135: -11.66325655 | Q135: 1148.523183 | R135: 10 | S135: -10 | T135: -24.97789126 | U135: -28.32535365 | V135: 1205.08 | W135: 958.48 | X135: 1013.75825 | Y135: 1038.736142 | Z135: 1148.523183 | AQ135: 49299400
A136: 104 | B136: =IF(A136>$A$8,"",OFFSET(InputPriceData!B$15,$A136+$A$11,0,1,1)) -> 2016-02-04 | C136: =IF(A136>$A$8,"",OFFSET(InputPriceData!G$15,CalculationsAndCharts!$A136+$A$11,IF($C$5,8,0),1,1)) -> 51933200 | D136: =IF(A136>$A$8,"",OFFSET(InputPriceData!C$15,CalculationsAndCharts!$A136+$A$11,IF($C$5,8,0),1,1)) -> 1009.93 | E136: =IF(A136>$A$8,"",OFFSET(InputPriceData!D$15,CalculationsAndCharts!$A136+$A$11,IF($C$5,8,0),1,1)) -> 1025.11 | F136: =IF(A136>$A$8,"",OFFSET(InputPriceData!E$15,CalculationsAndCharts!$A136+$A$11,IF($C$5,8,0),1,1)) -> 1008.59 | G136: =IF(A136>$A$8,"",OFFSET(InputPriceData!F$15,CalculationsAndCharts!$A136+$A$11,IF($C$5,8,0),1,1)) -> 1014.79 | H136: 1205.08 | I136: 958.48 | J136: 246.6 | K136: 1018.874296 | L136: 0.2449079318 | M136: 1042.985433 | N136: 0.3426822103 | O136: -9.777427843 | P136: -12.04684327 | Q136: 1150.160401 | R136: 10 | S136: -10 | T136: -24.11113706 | U136: -29.16221924 | V136: 1205.08 | W136: 958.48 | X136: 1018.874296 | Y136: 1042.985433 | Z136: 1150.160401 | AP136: 51933200
A137: 105 | B137: =IF(A137>$A$8,"",OFFSET(InputPriceData!B$15,$A137+$A$11,0,1,1)) -> 2016-02-03 | C137: =IF(A137>$A$8,"",OFFSET(InputPriceData!G$15,CalculationsAndCharts!$A137+$A$11,IF($C$5,8,0),1,1)) -> 51729500 | D137: =IF(A137>$A$8,"",OFFSET(InputPriceData!C$15,CalculationsAndCharts!$A137+$A$11,IF($C$5,8,0),1,1)) -> 1009.5 | E137: =IF(A137>$A$8,"",OFFSET(InputPriceData!D$15,CalculationsAndCharts!$A137+$A$11,IF($C$5,8,0),1,1)) -> 1016.92 | F137: =IF(A137>$A$8,"",OFFSET(InputPriceData!E$15,CalculationsAndCharts!$A137+$A$11,IF($C$5,8,0),1,1)) -> 989.25 | G137: =IF(A137>$A$8,"",OFFSET(InputPriceData!F$15,CalculationsAndCharts!$A137+$A$11,IF($C$5,8,0),1,1)) -> 1010.3 | H137: 1205.08 | I137: 958.48 | J137: 246.6 | K137: 1019.616895 | L137: 0.2479192833 | M137: 1045.241068 | N137: 0.3518291472 | O137: -10.39098639 | P137: -12.61419712 | Q137: 1151.520908 | R137: 10 | S137: -10 | T137: -25.62417243 | U137: -30.42498979 | V137: 1205.08 | W137: 958.48 | X137: 1019.616895 | Y137: 1045.241068 | Z137: 1151.520908 | AP137: 51729500
A138: 106 | B138: =IF(A138>$A$8,"",OFFSET(InputPriceData!B$15,$A138+$A$11,0,1,1)) -> 2016-02-02 | C138: =IF(A138>$A$8,"",OFFSET(InputPriceData!G$15,CalculationsAndCharts!$A138+$A$11,IF($C$5,8,0),1,1)) -> 44631900 | D138: =IF(A138>$A$8,"",OFFSET(InputPriceData!C$15,CalculationsAndCharts!$A138+$A$11,IF($C$5,8,0),1,1)) -> 1030.56 | E138: =IF(A138>$A$8,"",OFFSET(InputPriceData!D$15,CalculationsAndCharts!$A138+$A$11,IF($C$5,8,0),1,1)) -> 1030.56 | F138: =IF(A138>$A$8,"",OFFSET(InputPriceData!E$15,CalculationsAndCharts!$A138+$A$11,IF($C$5,8,0),1,1)) -> 1005.4 | G138: =IF(A138>$A$8,"",OFFSET(InputPriceData!F$15,CalculationsAndCharts!$A138+$A$11,IF($C$5,8,0),1,1)) -> 1008.84 | H138: 1205.08 | I138: 958.48 | J138: 246.6 | K138: 1021.310876 | L138: 0.2547886302 | M138: 1048.036353 | N138: 0.3631644489 | O138: -10.83758187 | P138: -13.1699998 | Q138: 1152.940213 | R138: 10 | S138: -10 | T138: -26.72547689 | U138: -31.62519413 | V138: 1205.08 | W138: 958.48 | X138: 1021.310876 | Y138: 1048.036353 | Z138: 1152.940213 | AQ138: 44631900
A139: 107 | B139: =IF(A139>$A$8,"",OFFSET(InputPriceData!B$15,$A139+$A$11,0,1,1)) -> 2016-02-01 | C139: =IF(A139>$A$8,"",OFFSET(InputPriceData!G$15,CalculationsAndCharts!$A139+$A$11,IF($C$5,8,0),1,1)) -> 43225300 | D139: =IF(A139>$A$8,"",OFFSET(InputPriceData!C$15,CalculationsAndCharts!$A139+$A$11,IF($C$5,8,0),1,1)) -> 1033.53 | E139: =IF(A139>$A$8,"",OFFSET(InputPriceData!D$15,CalculationsAndCharts!$A139+$A$11,IF($C$5,8,0),1,1)) -> 1037.27 | F139: =IF(A139>$A$8,"",OFFSET(InputPriceData!E$15,CalculationsAndCharts!$A139+$A$11,IF($C$5,8,0),1,1)) -> 1020.59 | G139: =IF(A139>$A$8,"",OFFSET(InputPriceData!F$15,CalculationsAndCharts!$A139+$A$11,IF($C$5,8,0),1,1)) -> 1032.39 | H139: 1205.08 | I139: 958.48 | J139: 246.6 | K139: 1023.578308 | L139: 0.2639834074 | M139: 1051.172061 | N139: 0.3758802164 | O139: -11.1896809 | P139: -13.75310429 | Q139: 1154.388457 | R139: 10 | S139: -10 | T139: -27.5937531 | U139: -32.85012344 | V139: 1205.08 | W139: 958.48 | X139: 1023.578308 | Y139: 1051.172061 | Z139: 1154.388457 | AQ139: 43225300
A140: 108 | B140: =IF(A140>$A$8,"",OFFSET(InputPriceData!B$15,$A140+$A$11,0,1,1)) -> 2016-01-29 | C140: =IF(A140>$A$8,"",OFFSET(InputPriceData!G$15,CalculationsAndCharts!$A140+$A$11,IF($C$5,8,0),1,1)) -> 54975700 | D140: =IF(A140>$A$8,"",OFFSET(InputPriceData!C$15,CalculationsAndCharts!$A140+$A$11,IF($C$5,8,0),1,1)) -> 1003.52 | E140: =IF(A140>$A$8,"",OFFSET(InputPriceData!D$15,CalculationsAndCharts!$A140+$A$11,IF($C$5,8,0),1,1)) -> 1035.38 | F140: =IF(A140>$A$8,"",OFFSET(InputPriceData!E$15,CalculationsAndCharts!$A140+$A$11,IF($C$5,8,0),1,1)) -> 1003.52 | G140: =IF(A140>$A$8,"",OFFSET(InputPriceData!F$15,CalculationsAndCharts!$A140+$A$11,IF($C$5,8,0),1,1)) -> 1035.38 | H140: 1205.08 | I140: 958.48 | J140: 246.6 | K140: 1021.976182 | L140: 0.257486547 | M140: 1052.674626 | N140: 0.3819733425 | O140: -12.44867956 | P140: -14.39396013 | Q140: 1155.614572 | R140: 10 | S140: -10 | T140: -30.69844378 | U140: -34.16421602 | V140: 1205.08 | W140: 958.48 | X140: 1021.976182 | Y140: 1052.674626 | Z140: 1155.614572 | AP140: 54975700
A141: 109 | B141: =IF(A141>$A$8,"",OFFSET(InputPriceData!B$15,$A141+$A$11,0,1,1)) -> 2016-01-28 | C141: =IF(A141>$A$8,"",OFFSET(InputPriceData!G$15,CalculationsAndCharts!$A141+$A$11,IF($C$5,8,0),1,1)) -> 46930100 | D141: =IF(A141>$A$8,"",OFFSET(InputPriceData!C$15,CalculationsAndCharts!$A141+$A$11,IF($C$5,8,0),1,1)) -> 1004.15 | E141: =IF(A141>$A$8,"",OFFSET(InputPriceData!D$15,CalculationsAndCharts!$A141+$A$11,IF($C$5,8,0),1,1)) -> 1014.48 | F141: =IF(A141>$A$8,"",OFFSET(InputPriceData!E$15,CalculationsAndCharts!$A141+$A$11,IF($C$5,8,0),1,1)) -> 1000.38 | G141: =IF(A141>$A$8,"",OFFSET(InputPriceData!F$15,CalculationsAndCharts!$A141+$A$11,IF($C$5,8,0),1,1)) -> 1003.27 | H141: 1205.08 | I141: 958.48 | J141: 246.6 | K141: 1019.539125 | L141: 0.2476039122 | M141: 1054.058196 | N141: 0.3875839269 | O141: -13.99800147 | P141: -14.88028028 | Q141: 1156.82296 | R141: 10 | S141: -10 | T141: -34.51907162 | U141: -35.03065908 | V141: 1205.08 | W141: 958.48 | X141: 1019.539125 | Y141: 1054.058196 | Z141: 1156.82296 | AQ141: 46930100
A142: 110 | B142: =IF(A142>$A$8,"",OFFSET(InputPriceData!B$15,$A142+$A$11,0,1,1)) -> 2016-01-27 | C142: =IF(A142>$A$8,"",OFFSET(InputPriceData!G$15,CalculationsAndCharts!$A142+$A$11,IF($C$5,8,0),1,1)) -> 47540400 | D142: =IF(A142>$A$8,"",OFFSET(InputPriceData!C$15,CalculationsAndCharts!$A142+$A$11,IF($C$5,8,0),1,1)) -> 1016.9 | E142: =IF(A142>$A$8,"",OFFSET(InputPriceData!D$15,CalculationsAndCharts!$A142+$A$11,IF($C$5,8,0),1,1)) -> 1021.85 | F142: =IF(A142>$A$8,"",OFFSET(InputPriceData!E$15,CalculationsAndCharts!$A142+$A$11,IF($C$5,8,0),1,1)) -> 998.81 | G142: =IF(A142>$A$8,"",OFFSET(InputPriceData!F$15,CalculationsAndCharts!$A142+$A$11,IF($C$5,8,0),1,1)) -> 1002.75 | H142: 1205.08 | I142: 958.48 | J142: 246.6 | K142: 1022.497147 | L142: 0.259599138 | M142: 1058.121252 | N142: 0.4040602274 | O142: -14.44610894 | P142: -15.10084998 | Q142: 1158.366205 | R142: 10 | S142: -10 | T142: -35.62410464 | U142: -35.15855594 | V142: 1205.08 | W142: 958.48 | X142: 1022.497147 | Y142: 1058.121252 | Z142: 1158.366205 | AQ142: 47540400
A143: 111 | B143: =IF(A143>$A$8,"",OFFSET(InputPriceData!B$15,$A143+$A$11,0,1,1)) -> 2016-01-26 | C143: =IF(A143>$A$8,"",OFFSET(InputPriceData!G$15,CalculationsAndCharts!$A143+$A$11,IF($C$5,8,0),1,1)) -> 43579400 | D143: =IF(A143>$A$8,"",OFFSET(InputPriceData!C$15,CalculationsAndCharts!$A143+$A$11,IF($C$5,8,0),1,1)) -> 998.19 | E143: =IF(A143>$A$8,"",OFFSET(InputPriceData!D$15,CalculationsAndCharts!$A143+$A$11,IF($C$5,8,0),1,1)) -> 1019.51 | F143: =IF(A143>$A$8,"",OFFSET(InputPriceData!E$15,CalculationsAndCharts!$A143+$A$11,IF($C$5,8,0),1,1)) -> 998.19 | G143: =IF(A143>$A$8,"",OFFSET(InputPriceData!F$15,CalculationsAndCharts!$A143+$A$11,IF($C$5,8,0),1,1)) -> 1017.97 | H143: 1205.08 | I143: 958.48 | J143: 246.6 | K143: 1026.087538 | L143: 0.27415871 | M143: 1062.550952 | N143: 0.4220233262 | O143: -14.78646163 | P143: -15.26453524 | Q143: 1159.930187 | R143: 10 | S143: -10 | T143: -36.46341437 | U143: -35.04216877 | V143: 1205.08 | W143: 958.48 | X143: 1026.087538 | Y143: 1062.550952 | Z143: 1159.930187 | AP143: 43579400
A144: 112 | B144: =IF(A144>$A$8,"",OFFSET(InputPriceData!B$15,$A144+$A$11,0,1,1)) -> 2016-01-25 | C144: =IF(A144>$A$8,"",OFFSET(InputPriceData!G$15,CalculationsAndCharts!$A144+$A$11,IF($C$5,8,0),1,1)) -> 44013800 | D144: =IF(A144>$A$8,"",OFFSET(InputPriceData!C$15,CalculationsAndCharts!$A144+$A$11,IF($C$5,8,0),1,1)) -> 1019.43 | E144: =IF(A144>$A$8,"",OFFSET(InputPriceData!D$15,CalculationsAndCharts!$A144+$A$11,IF($C$5,8,0),1,1)) -> 1019.43 | F144: =IF(A144>$A$8,"",OFFSET(InputPriceData!E$15,CalculationsAndCharts!$A144+$A$11,IF($C$5,8,0),1,1)) -> 996.04 | G144: =IF(A144>$A$8,"",OFFSET(InputPriceData!F$15,CalculationsAndCharts!$A144+$A$11,IF($C$5,8,0),1,1)) -> 997.37 | H144: 1205.08 | I144: 958.48 | J144: 246.6 | K144: 1027.563454 | L144: 0.2801437707 | M144: 1066.117428 | N144: 0.4364859222 | O144: -15.63421515 | P144: -15.38405365 | Q144: 1161.356923 | R144: 10 | S144: -10 | T144: -38.55397457 | U144: -34.68685737 | V144: 1205.08 | W144: 958.48 | X144: 1027.563454 | Y144: 1066.117428 | Z144: 1161.356923 | AQ144: 44013800
A145: 113 | B145: =IF(A145>$A$8,"",OFFSET(InputPriceData!B$15,$A145+$A$11,0,1,1)) -> 2016-01-22 | C145: =IF(A145>$A$8,"",OFFSET(InputPriceData!G$15,CalculationsAndCharts!$A145+$A$11,IF($C$5,8,0),1,1)) -> 49017600 | D145: =IF(A145>$A$8,"",OFFSET(InputPriceData!C$15,CalculationsAndCharts!$A145+$A$11,IF($C$5,8,0),1,1)) -> 999.81 | E145: =IF(A145>$A$8,"",OFFSET(InputPriceData!D$15,CalculationsAndCharts!$A145+$A$11,IF($C$5,8,0),1,1)) -> 1021.84 | F145: =IF(A145>$A$8,"",OFFSET(InputPriceData!E$15,CalculationsAndCharts!$A145+$A$11,IF($C$5,8,0),1,1)) -> 999.81 | G145: =IF(A145>$A$8,"",OFFSET(InputPriceData!F$15,CalculationsAndCharts!$A145+$A$11,IF($C$5,8,0),1,1)) -> 1020.66 | H145: 1205.08 | I145: 958.48 | J145: 246.6 | K145: 1033.053173 | L145: 0.3024054044 | M145: 1071.617223 | N145: 0.4587884132 | O145: -15.63830088 | P145: -15.32151327 | Q145: 1163.005033 | R145: 10 | S145: -10 | T145: -38.56404996 | U145: -33.72007807 | V145: 1205.08 | W145: 958.48 | X145: 1033.053173 | Y145: 1071.617223 | Z145: 1163.005033 | AP145: 49017600
A146: 114 | B146: =IF(A146>$A$8,"",OFFSET(InputPriceData!B$15,$A146+$A$11,0,1,1)) -> 2016-01-21 | C146: =IF(A146>$A$8,"",OFFSET(InputPriceData!G$15,CalculationsAndCharts!$A146+$A$11,IF($C$5,8,0),1,1)) -> 50788100 | D146: =IF(A146>$A$8,"",OFFSET(InputPriceData!C$15,CalculationsAndCharts!$A146+$A$11,IF($C$5,8,0),1,1)) -> 999.53 | E146: =IF(A146>$A$8,"",OFFSET(InputPriceData!D$15,CalculationsAndCharts!$A146+$A$11,IF($C$5,8,0),1,1)) -> 1014.5 | F146: =IF(A146>$A$8,"",OFFSET(InputPriceData!E$15,CalculationsAndCharts!$A146+$A$11,IF($C$5,8,0),1,1)) -> 992.12 | G146: =IF(A146>$A$8,"",OFFSET(InputPriceData!F$15,CalculationsAndCharts!$A146+$A$11,IF($C$5,8,0),1,1)) -> 997.34 | H146: 1205.08 | I146: 958.48 | J146: 246.6 | K146: 1035.306477 | L146: 0.3115428908 | M146: 1075.693801 | N146: 0.4753195479 | O146: -16.37766571 | P146: -15.24231637 | Q146: 1164.435636 | R146: 10 | S146: -10 | T146: -40.38732364 | U146: -32.50908509 | V146: 1205.08 | W146: 958.48 | X146: 1035.306477 | Y146: 1075.693801 | Z146: 1164.435636 | AP146: =IF(G146>=D146,C146,NA()) ->  | AQ146: =IF(G146<D146,C146,NA()) -> 50788100
A147: 115 | B147: =IF(A147>$A$8,"",OFFSET(InputPriceData!B$15,$A147+$A$11,0,1,1)) -> 2016-01-20 | C147: =IF(A147>$A$8,"",OFFSET(InputPriceData!G$15,CalculationsAndCharts!$A147+$A$11,IF($C$5,8,0),1,1)) -> 64160700 | D147: =IF(A147>$A$8,"",OFFSET(InputPriceData!C$15,CalculationsAndCharts!$A147+$A$11,IF($C$5,8,0),1,1)) -> 991.79 | E147: =IF(A147>$A$8,"",OFFSET(InputPriceData!D$15,CalculationsAndCharts!$A147+$A$11,IF($C$5,8,0),1,1)) -> 1008.68 | F147: =IF(A147>$A$8,"",OFFSET(InputPriceData!E$15,CalculationsAndCharts!$A147+$A$11,IF($C$5,8,0),1,1)) -> 958.48 | G147: =IF(A147>$A$8,"",OFFSET(InputPriceData!F$15,CalculationsAndCharts!$A147+$A$11,IF($C$5,8,0),1,1)) -> 999.31 | H147: 1205.08 | I147: 958.48 | J147: 246.6 | K147: 1042.209473 | L147: 0.3395355745 | M147: 1081.962105 | N147: 0.5007384613 | O147: -16.12028868 | P147: -14.95847903 | Q147: 1166.114989 | R147: 10 | S147: -10 | T147: -39.75263189 | U147: -30.53952546 | V147: 1205.08 | W147: 958.48 | X147: 1042.209473 | Y147: 1081.962105 | Z147: 1166.114989 | AP147: 64160700
A148: 116 | B148: =IF(A148>$A$8,"",OFFSET(InputPriceData!B$15,$A148+$A$11,0,1,1)) -> 2016-01-19 | C148: =IF(A148>$A$8,"",OFFSET(InputPriceData!G$15,CalculationsAndCharts!$A148+$A$11,IF($C$5,8,0),1,1)) -> 49283500 | D148: =IF(A148>$A$8,"",OFFSET(InputPriceData!C$15,CalculationsAndCharts!$A148+$A$11,IF($C$5,8,0),1,1)) -> 1010.3 | E148: =IF(A148>$A$8,"",OFFSET(InputPriceData!D$15,CalculationsAndCharts!$A148+$A$11,IF($C$5,8,0),1,1)) -> 1017.83 | F148: =IF(A148>$A$8,"",OFFSET(InputPriceData!E$15,CalculationsAndCharts!$A148+$A$11,IF($C$5,8,0),1,1)) -> 985.22 | G148: =IF(A148>$A$8,"",OFFSET(InputPriceData!F$15,CalculationsAndCharts!$A148+$A$11,IF($C$5,8,0),1,1)) -> 994.87 | H148: 1205.08 | I148: 983.98 | J148: 221.1 | K148: 1050.009377 | L148: 0.2986403292 | M148: 1088.574273 | N148: 0.4730631973 | O148: -17.44228681 | P148: -14.66802662 | Q148: 1167.791421 | R148: 10 | S148: -10 | T148: -38.56489613 | U148: -28.23624885 | V148: 1205.08 | W148: 983.98 | X148: 1050.009377 | Y148: 1088.574273 | Z148: 1167.791421 | AQ148: 49283500
A149: 117 | B149: =IF(A149>$A$8,"",OFFSET(InputPriceData!B$15,$A149+$A$11,0,1,1)) -> 2016-01-15 | C149: =IF(A149>$A$8,"",OFFSET(InputPriceData!G$15,CalculationsAndCharts!$A149+$A$11,IF($C$5,8,0),1,1)) -> 54684600 | D149: =IF(A149>$A$8,"",OFFSET(InputPriceData!C$15,CalculationsAndCharts!$A149+$A$11,IF($C$5,8,0),1,1)) -> 1023.92 | E149: =IF(A149>$A$8,"",OFFSET(InputPriceData!D$15,CalculationsAndCharts!$A149+$A$11,IF($C$5,8,0),1,1)) -> 1023.92 | F149: =IF(A149>$A$8,"",OFFSET(InputPriceData!E$15,CalculationsAndCharts!$A149+$A$11,IF($C$5,8,0),1,1)) -> 983.98 | G149: =IF(A149>$A$8,"",OFFSET(InputPriceData!F$15,CalculationsAndCharts!$A149+$A$11,IF($C$5,8,0),1,1)) -> 1007.72 | H149: 1205.08 | I149: 983.98 | J149: 221.1 | K149: 1060.034718 | L149: 0.343983347 | M149: 1096.070615 | N149: 0.5069679546 | O149: -16.29846076 | P149: -13.97446158 | Q149: 1169.529325 | R149: 10 | S149: -10 | T149: -36.03589673 | U149: -25.65408703 | V149: 1205.08 | W149: 983.98 | X149: 1060.034718 | Y149: 1096.070615 | Z149: 1169.529325 | AQ149: 54684600
A150: 118 | B150: =IF(A150>$A$8,"",OFFSET(InputPriceData!B$15,$A150+$A$11,0,1,1)) -> 2016-01-14 | C150: =IF(A150>$A$8,"",OFFSET(InputPriceData!G$15,CalculationsAndCharts!$A150+$A$11,IF($C$5,8,0),1,1)) -> 52411100 | D150: =IF(A150>$A$8,"",OFFSET(InputPriceData!C$15,CalculationsAndCharts!$A150+$A$11,IF($C$5,8,0),1,1)) -> 1010.64 | E150: =IF(A150>$A$8,"",OFFSET(InputPriceData!D$15,CalculationsAndCharts!$A150+$A$11,IF($C$5,8,0),1,1)) -> 1033.58 | F150: =IF(A150>$A$8,"",OFFSET(InputPriceData!E$15,CalculationsAndCharts!$A150+$A$11,IF($C$5,8,0),1,1)) -> 999.62 | G150: =IF(A150>$A$8,"",OFFSET(InputPriceData!F$15,CalculationsAndCharts!$A150+$A$11,IF($C$5,8,0),1,1)) -> 1025.67 | H150: 1205.08 | I150: 999.62 | J150: 205.46 | K150: 1069.546485 | L150: 0.3403411123 | M150: 1103.138664 | N150: 0.5038385278 | O150: -16.34974156 | P150: -13.39346178 | Q150: 1171.155549 | R150: 10 | S150: -10 | T150: -33.592179 | U150: -23.0586346 | V150: 1205.08 | W150: 999.62 | X150: 1069.546485 | Y150: 1103.138664 | Z150: 1171.155549 | AP150: 52411100
A151: 119 | B151: =IF(A151>$A$8,"",OFFSET(InputPriceData!B$15,$A151+$A$11,0,1,1)) -> 2016-01-13 | C151: =IF(A151>$A$8,"",OFFSET(InputPriceData!G$15,CalculationsAndCharts!$A151+$A$11,IF($C$5,8,0),1,1)) -> 50870300 | D151: =IF(A151>$A$8,"",OFFSET(InputPriceData!C$15,CalculationsAndCharts!$A151+$A$11,IF($C$5,8,0),1,1)) -> 1045.74 | E151: =IF(A151>$A$8,"",OFFSET(InputPriceData!D$15,CalculationsAndCharts!$A151+$A$11,IF($C$5,8,0),1,1)) -> 1050.66 | F151: =IF(A151>$A$8,"",OFFSET(InputPriceData!E$15,CalculationsAndCharts!$A151+$A$11,IF($C$5,8,0),1,1)) -> 1005.69 | G151: =IF(A151>$A$8,"",OFFSET(InputPriceData!F$15,CalculationsAndCharts!$A151+$A$11,IF($C$5,8,0),1,1)) -> 1010.19 | H151: 1205.08 | I151: 1005.69 | J151: 199.39 | K151: 1077.524028 | L151: 0.3602689586 | M151: 1109.336157 | N151: 0.5198162247 | O151: -15.95472662 | P151: -12.65439184 | Q151: 1172.617716 | R151: 10 | S151: -10 | T151: -31.8121294 | U151: -20.4252485 | V151: 1205.08 | W151: 1005.69 | X151: 1077.524028 | Y151: 1109.336157 | Z151: 1172.617716 | AQ151: 50870300
A152: 120 | B152: =IF(A152>$A$8,"",OFFSET(InputPriceData!B$15,$A152+$A$11,0,1,1)) -> 2016-01-12 | C152: =IF(A152>$A$8,"",OFFSET(InputPriceData!G$15,CalculationsAndCharts!$A152+$A$11,IF($C$5,8,0),1,1)) -> 48872600 | D152: =IF(A152>$A$8,"",OFFSET(InputPriceData!C$15,CalculationsAndCharts!$A152+$A$11,IF($C$5,8,0),1,1)) -> 1044.98 | E152: =IF(A152>$A$8,"",OFFSET(InputPriceData!D$15,CalculationsAndCharts!$A152+$A$11,IF($C$5,8,0),1,1)) -> 1056.92 | F152: =IF(A152>$A$8,"",OFFSET(InputPriceData!E$15,CalculationsAndCharts!$A152+$A$11,IF($C$5,8,0),1,1)) -> 1028.14 | G152: =IF(A152>$A$8,"",OFFSET(InputPriceData!F$15,CalculationsAndCharts!$A152+$A$11,IF($C$5,8,0),1,1)) -> 1044.7 | H152: 1205.08 | I152: 1028.14 | J152: 176.94 | K152: 1089.766578 | L152: 0.3482908225 | M152: 1117.26785 | N152: 0.5037179248 | O152: -15.54271023 | P152: -11.82930814 | Q152: 1174.250155 | R152: 10 | S152: -10 | T152: -27.50127148 | U152: -17.57852828 | V152: 1205.08 | W152: 1028.14 | X152: 1089.766578 | Y152: 1117.26785 | Z152: 1174.250155 | AQ152: 48872600
A153: 121 | B153: =IF(A153>$A$8,"",OFFSET(InputPriceData!B$15,$A153+$A$11,0,1,1)) -> 2016-01-11 | C153: =IF(A153>$A$8,"",OFFSET(InputPriceData!G$15,CalculationsAndCharts!$A153+$A$11,IF($C$5,8,0),1,1)) -> 46072900 | D153: =IF(A153>$A$8,"",OFFSET(InputPriceData!C$15,CalculationsAndCharts!$A153+$A$11,IF($C$5,8,0),1,1)) -> 1046.64 | E153: =IF(A153>$A$8,"",OFFSET(InputPriceData!D$15,CalculationsAndCharts!$A153+$A$11,IF($C$5,8,0),1,1)) -> 1052.59 | F153: =IF(A153>$A$8,"",OFFSET(InputPriceData!E$15,CalculationsAndCharts!$A153+$A$11,IF($C$5,8,0),1,1)) -> 1031.67 | G153: =IF(A153>$A$8,"",OFFSET(InputPriceData!F$15,CalculationsAndCharts!$A153+$A$11,IF($C$5,8,0),1,1)) -> 1041.9 | H153: 1205.08 | I153: 1031.67 | J153: 173.41 | K153: 1097.960501 | L153: 0.3822761169 | M153: 1123.073278 | N153: 0.5270934639 | O153: -14.48173471 | P153: -10.90095762 | Q153: 1175.552167 | R153: 10 | S153: -10 | T153: -25.11277615 | U153: -15.09784248 | V153: 1205.08 | W153: 1031.67 | X153: 1097.960501 | Y153: 1123.073278 | Z153: 1175.552167 | AQ153: 46072900
A154: 122 | B154: =IF(A154>$A$8,"",OFFSET(InputPriceData!B$15,$A154+$A$11,0,1,1)) -> 2016-01-08 | C154: =IF(A154>$A$8,"",OFFSET(InputPriceData!G$15,CalculationsAndCharts!$A154+$A$11,IF($C$5,8,0),1,1)) -> 46649400 | D154: =IF(A154>$A$8,"",OFFSET(InputPriceData!C$15,CalculationsAndCharts!$A154+$A$11,IF($C$5,8,0),1,1)) -> 1065.85 | E154: =IF(A154>$A$8,"",OFFSET(InputPriceData!D$15,CalculationsAndCharts!$A154+$A$11,IF($C$5,8,0),1,1)) -> 1072.09 | F154: =IF(A154>$A$8,"",OFFSET(InputPriceData!E$15,CalculationsAndCharts!$A154+$A$11,IF($C$5,8,0),1,1)) -> 1045.11 | G154: =IF(A154>$A$8,"",OFFSET(InputPriceData!F$15,CalculationsAndCharts!$A154+$A$11,IF($C$5,8,0),1,1)) -> 1046.2 | H154: 1205.08 | I154: 1045.11 | J154: 159.97 | K154: 1108.15332 | L154: 0.3940946419 | M154: 1129.56714 | N154: 0.5279561154 | O154: -13.38614735 | P154: -10.00576335 | Q154: 1176.895405 | R154: 10 | S154: -10 | T154: -21.41381992 | U154: -12.59410906 | V154: 1205.08 | W154: 1045.11 | X154: 1108.15332 | Y154: 1129.56714 | Z154: 1176.895405 | AQ154: 46649400
A155: 123 | B155: =IF(A155>$A$8,"",OFFSET(InputPriceData!B$15,$A155+$A$11,0,1,1)) -> 2016-01-07 | C155: =IF(A155>$A$8,"",OFFSET(InputPriceData!G$15,CalculationsAndCharts!$A155+$A$11,IF($C$5,8,0),1,1)) -> 50765900 | D155: =IF(A155>$A$8,"",OFFSET(InputPriceData!C$15,CalculationsAndCharts!$A155+$A$11,IF($C$5,8,0),1,1)) -> 1090.95 | E155: =IF(A155>$A$8,"",OFFSET(InputPriceData!D$15,CalculationsAndCharts!$A155+$A$11,IF($C$5,8,0),1,1)) -> 1090.95 | F155: =IF(A155>$A$8,"",OFFSET(InputPriceData!E$15,CalculationsAndCharts!$A155+$A$11,IF($C$5,8,0),1,1)) -> 1063.84 | G155: =IF(A155>$A$8,"",OFFSET(InputPriceData!F$15,CalculationsAndCharts!$A155+$A$11,IF($C$5,8,0),1,1)) -> 1064.57 | H155: 1205.08 | I155: 1063.84 | J155: 141.24 | K155: 1119.41756 | L155: 0.3934973084 | M155: 1136.236511 | N155: 0.5125779593 | O155: -11.90806509 | P155: -9.160667348 | Q155: 1178.208926 | R155: 10 | S155: -10 | T155: -16.81895113 | U155: -10.38918134 | V155: 1205.08 | W155: 1063.84 | X155: 1119.41756 | Y155: 1136.236511 | Z155: 1178.208926 | AQ155: 50765900
A156: 124 | B156: =IF(A156>$A$8,"",OFFSET(InputPriceData!B$15,$A156+$A$11,0,1,1)) -> 2016-01-06 | C156: =IF(A156>$A$8,"",OFFSET(InputPriceData!G$15,CalculationsAndCharts!$A156+$A$11,IF($C$5,8,0),1,1)) -> 43366600 | D156: =IF(A156>$A$8,"",OFFSET(InputPriceData!C$15,CalculationsAndCharts!$A156+$A$11,IF($C$5,8,0),1,1)) -> 1109.46 | E156: =IF(A156>$A$8,"",OFFSET(InputPriceData!D$15,CalculationsAndCharts!$A156+$A$11,IF($C$5,8,0),1,1)) -> 1109.46 | F156: =IF(A156>$A$8,"",OFFSET(InputPriceData!E$15,CalculationsAndCharts!$A156+$A$11,IF($C$5,8,0),1,1)) -> 1088.77 | G156: =IF(A156>$A$8,"",OFFSET(InputPriceData!F$15,CalculationsAndCharts!$A156+$A$11,IF($C$5,8,0),1,1)) -> 1094.37 | H156: 1205.08 | I156: 1088.77 | J156: 116.31 | K156: 1129.389843 | L156: 0.3492377564 | M156: 1141.969832 | N156: 0.4573968863 | O156: -10.81591299 | P156: -8.473817914 | Q156: 1179.351026 | R156: 10 | S156: -10 | T156: -12.5799884 | U156: -8.781738898 | V156: 1205.08 | W156: 1088.77 | X156: 1129.389843 | Y156: 1141.969832 | Z156: 1179.351026 | AQ156: 43366600
A157: 125 | B157: =IF(A157>$A$8,"",OFFSET(InputPriceData!B$15,$A157+$A$11,0,1,1)) -> 2016-01-05 | C157: =IF(A157>$A$8,"",OFFSET(InputPriceData!G$15,CalculationsAndCharts!$A157+$A$11,IF($C$5,8,0),1,1)) -> 37066200 | D157: =IF(A157>$A$8,"",OFFSET(InputPriceData!C$15,CalculationsAndCharts!$A157+$A$11,IF($C$5,8,0),1,1)) -> 1109.1 | E157: =IF(A157>$A$8,"",OFFSET(InputPriceData!D$15,CalculationsAndCharts!$A157+$A$11,IF($C$5,8,0),1,1)) -> 1112.67 | F157: =IF(A157>$A$8,"",OFFSET(InputPriceData!E$15,CalculationsAndCharts!$A157+$A$11,IF($C$5,8,0),1,1)) -> 1104.75 | G157: =IF(A157>$A$8,"",OFFSET(InputPriceData!F$15,CalculationsAndCharts!$A157+$A$11,IF($C$5,8,0),1,1)) -> 1110.44 | H157: 1205.08 | I157: 1100.53 | J157: 104.55 | K157: 1135.757088 | L157: 0.3369401025 | M157: 1145.777818 | N157: 0.4327864026 | O157: -9.584630016 | P157: -7.888294145 | Q157: 1180.205107 | R157: 10 | S157: -10 | T157: -10.02073068 | U157: -7.832176523 | V157: 1205.08 | W157: 1100.53 | X157: 1135.757088 | Y157: 1145.777818 | Z157: 1180.205107 | AP157: 37066200
A158: 126 | B158: =IF(A158>$A$8,"",OFFSET(InputPriceData!B$15,$A158+$A$11,0,1,1)) -> 2016-01-04 | C158: =IF(A158>$A$8,"",OFFSET(InputPriceData!G$15,CalculationsAndCharts!$A158+$A$11,IF($C$5,8,0),1,1)) -> 43048800 | D158: =IF(A158>$A$8,"",OFFSET(InputPriceData!C$15,CalculationsAndCharts!$A158+$A$11,IF($C$5,8,0),1,1)) -> 1134.08 | E158: =IF(A158>$A$8,"",OFFSET(InputPriceData!D$15,CalculationsAndCharts!$A158+$A$11,IF($C$5,8,0),1,1)) -> 1134.08 | F158: =IF(A158>$A$8,"",OFFSET(InputPriceData!E$15,CalculationsAndCharts!$A158+$A$11,IF($C$5,8,0),1,1)) -> 1100.53 | G158: =IF(A158>$A$8,"",OFFSET(InputPriceData!F$15,CalculationsAndCharts!$A158+$A$11,IF($C$5,8,0),1,1)) -> 1108.62 | H158: 1205.08 | I158: 1100.53 | J158: 104.55 | K158: 1140.360195 | L158: 0.380967906 | M158: 1148.604844 | N158: 0.4598263402 | O158: -7.88584342 | P158: -7.464210178 | Q158: 1180.906263 | R158: 10 | S158: -10 | T158: -8.244649296 | U158: -7.285037983 | V158: 1205.08 | W158: 1100.53 | X158: 1140.360195 | Y158: 1148.604844 | Z158: 1180.906263 | AQ158: 43048800
A159: 127 | B159: =IF(A159>$A$8,"",OFFSET(InputPriceData!B$15,$A159+$A$11,0,1,1)) -> 2015-12-31 | C159: =IF(A159>$A$8,"",OFFSET(InputPriceData!G$15,CalculationsAndCharts!$A159+$A$11,IF($C$5,8,0),1,1)) -> 26553300 | D159: =IF(A159>$A$8,"",OFFSET(InputPriceData!C$15,CalculationsAndCharts!$A159+$A$11,IF($C$5,8,0),1,1)) -> 1149.33 | E159: =IF(A159>$A$8,"",OFFSET(InputPriceData!D$15,CalculationsAndCharts!$A159+$A$11,IF($C$5,8,0),1,1)) -> 1149.33 | F159: =IF(A159>$A$8,"",OFFSET(InputPriceData!E$15,CalculationsAndCharts!$A159+$A$11,IF($C$5,8,0),1,1)) -> 1135.57 | G159: =IF(A159>$A$8,"",OFFSET(InputPriceData!F$15,CalculationsAndCharts!$A159+$A$11,IF($C$5,8,0),1,1)) -> 1135.89 | H159: 1205.08 | I159: 1108.76 | J159: 96.32 | K159: 1146.131139 | L159: 0.3879894003 | M159: 1151.803631 | N159: 0.446881555 | O159: -5.889215467 | P159: -7.358801867 | Q159: 1181.632759 | R159: 10 | S159: -10 | T159: -5.672492338 | U159: -7.045135155 | V159: 1205.08 | W159: 1108.76 | X159: 1146.131139 | Y159: 1151.803631 | Z159: 1181.632759 | AQ159: 26553300
A160: 128 | B160: =IF(A160>$A$8,"",OFFSET(InputPriceData!B$15,$A160+$A$11,0,1,1)) -> 2015-12-30 | C160: =IF(A160>$A$8,"",OFFSET(InputPriceData!G$15,CalculationsAndCharts!$A160+$A$11,IF($C$5,8,0),1,1)) -> 23674300 | D160: =IF(A160>$A$8,"",OFFSET(InputPriceData!C$15,CalculationsAndCharts!$A160+$A$11,IF($C$5,8,0),1,1)) -> 1159.97 | E160: =IF(A160>$A$8,"",OFFSET(InputPriceData!D$15,CalculationsAndCharts!$A160+$A$11,IF($C$5,8,0),1,1)) -> 1160.38 | F160: =IF(A160>$A$8,"",OFFSET(InputPriceData!E$15,CalculationsAndCharts!$A160+$A$11,IF($C$5,8,0),1,1)) -> 1149.16 | G160: =IF(A160>$A$8,"",OFFSET(InputPriceData!F$15,CalculationsAndCharts!$A160+$A$11,IF($C$5,8,0),1,1)) -> 1149.64 | H160: 1205.08 | I160: 1108.76 | J160: 96.32 | K160: 1147.993164 | L160: 0.4073210581 | M160: 1153.076722 | N160: 0.4600988568 | O160: -5.277779868 | P160: -7.726198467 | Q160: 1182.092485 | R160: 10 | S160: -10 | T160: -5.083557569 | U160: -7.388295859 | V160: 1205.08 | W160: 1108.76 | X160: 1147.993164 | Y160: 1153.076722 | Z160: 1182.092485 | AQ160: 23674300
A161: 129 | B161: =IF(A161>$A$8,"",OFFSET(InputPriceData!B$15,$A161+$A$11,0,1,1)) -> 2015-12-29 | C161: =IF(A161>$A$8,"",OFFSET(InputPriceData!G$15,CalculationsAndCharts!$A161+$A$11,IF($C$5,8,0),1,1)) -> 25420000 | D161: =IF(A161>$A$8,"",OFFSET(InputPriceData!C$15,CalculationsAndCharts!$A161+$A$11,IF($C$5,8,0),1,1)) -> 1148.96 | E161: =IF(A161>$A$8,"",OFFSET(InputPriceData!D$15,CalculationsAndCharts!$A161+$A$11,IF($C$5,8,0),1,1)) -> 1160.94 | F161: =IF(A161>$A$8,"",OFFSET(InputPriceData!E$15,CalculationsAndCharts!$A161+$A$11,IF($C$5,8,0),1,1)) -> 1148.74 | G161: =IF(A161>$A$8,"",OFFSET(InputPriceData!F$15,CalculationsAndCharts!$A161+$A$11,IF($C$5,8,0),1,1)) -> 1160.52 | H161: 1205.08 | I161: 1108.76 | J161: 96.32 | K161: 1147.69374 | L161: 0.4042124132 | M161: 1153.35166 | N161: 0.4629532769 | O161: -5.874086368 | P161: -8.338303117 | Q161: =G161*$C$20+Q162*$D$20 -> 1182.41864 | R161: =$A$21 -> 10 | S161: =$A$22 -> -10 | T161: =(K161-M161) -> -5.65791999 | U161: =T161*$C$19+$D$19*U162 -> -7.964480432 | V161: =IF($R$2,H161,NA()) -> 1205.08 | W161: =IF($R$2,I161,NA()) -> 1108.76 | X161: =IF($R$3,K161,NA()) -> 1147.69374 | Y161: =IF($R$4,M161,NA()) -> 1153.35166 | Z161: =IF($R$5,Q161,NA()) -> 1182.41864 | AP161: 25420000
A162: 130 | B162: =IF(A162>$A$8,"",OFFSET(InputPriceData!B$15,$A162+$A$11,0,1,1)) -> 2015-12-28 | C162: =IF(A162>$A$8,"",OFFSET(InputPriceData!G$15,CalculationsAndCharts!$A162+$A$11,IF($C$5,8,0),1,1)) -> 24925100 | D162: =IF(A162>$A$8,"",OFFSET(InputPriceData!C$15,CalculationsAndCharts!$A162+$A$11,IF($C$5,8,0),1,1)) -> 1153.99 | E162: =IF(A162>$A$8,"",OFFSET(InputPriceData!D$15,CalculationsAndCharts!$A162+$A$11,IF($C$5,8,0),1,1)) -> 1153.99 | F162: =IF(A162>$A$8,"",OFFSET(InputPriceData!E$15,CalculationsAndCharts!$A162+$A$11,IF($C$5,8,0),1,1)) -> 1140.02 | G162: =IF(A162>$A$8,"",OFFSET(InputPriceData!F$15,CalculationsAndCharts!$A162+$A$11,IF($C$5,8,0),1,1)) -> 1148.21 | H162: =MAX(OFFSET($E162,0,0,$A$16,1)) -> 1205.08 | I162: =MIN(OFFSET($F162,0,0,$A$16,1)) -> 1108.76 | J162: =H162-I162 -> 96.32 | K162: =$G162*$C$17+K163*$D$17 -> 1145.361692 | L162: =(K162-$I162)/$J162 -> 0.3800009583 | M162: =$G162*$C$18+M163*$D$18 -> 1152.778192 | N162: =(M162-$I162)/$J162 -> 0.4569995059 | O162: =(L162-N162)*100 -> -7.699854753 | P162: =IFERROR($C$19*O162+$D$19*P163,0) -> -8.954357304 | Q162: 1182.638727 | R162: 10 | S162: -10 | T162: -7.416500098 | U162: -8.541120543 | V162: 1205.08 | W162: 1108.76 | X162: 1145.361692 | Y162: 1152.778192 | Z162: 1182.638727 | AQ162: 24925100
A163: 131 | B163: =IF(A163>$A$8,"",OFFSET(InputPriceData!B$15,$A163+$A$11,0,1,1)) -> 2015-12-24 | C163: =IF(A163>$A$8,"",OFFSET(InputPriceData!G$15,CalculationsAndCharts!$A163+$A$11,IF($C$5,8,0),1,1)) -> 14118600 | D163: =IF(A163>$A$8,"",OFFSET(InputPriceData!C$15,CalculationsAndCharts!$A163+$A$11,IF($C$5,8,0),1,1)) -> 1152.75 | E163: =IF(A163>$A$8,"",OFFSET(InputPriceData!D$15,CalculationsAndCharts!$A163+$A$11,IF($C$5,8,0),1,1)) -> 1159.71 | F163: =IF(A163>$A$8,"",OFFSET(InputPriceData!E$15,CalculationsAndCharts!$A163+$A$11,IF($C$5,8,0),1,1)) -> 1151.6 | G163: =IF(A163>$A$8,"",OFFSET(InputPriceData!F$15,CalculationsAndCharts!$A163+$A$11,IF($C$5,8,0),1,1)) -> 1154.76 | H163: 1205.08 | I163: 1108.76 | J163: 96.32 | K163: 1144.843818 | L163: 0.3746243582 | M163: 1153.143648 | N163: 0.4607936856 | O163: -8.616932741 | P163: -9.267982942 | Q163: 1182.984745 | R163: 10 | S163: -10 | T163: -8.299829616 | U163: -8.822275654 | V163: 1205.08 | W163: 1108.76 | X163: 1144.843818 | Y163: 1153.143648 | Z163: 1182.984745 | AP163: 14118600
A164: 132 | B164: =IF(A164>$A$8,"",OFFSET(InputPriceData!B$15,$A164+$A$11,0,1,1)) -> 2015-12-23 | C164: =IF(A164>$A$8,"",OFFSET(InputPriceData!G$15,CalculationsAndCharts!$A164+$A$11,IF($C$5,8,0),1,1)) -> 34840900 | D164: =IF(A164>$A$8,"",OFFSET(InputPriceData!C$15,CalculationsAndCharts!$A164+$A$11,IF($C$5,8,0),1,1)) -> 1139.04 | E164: =IF(A164>$A$8,"",OFFSET(InputPriceData!D$15,CalculationsAndCharts!$A164+$A$11,IF($C$5,8,0),1,1)) -> 1152.91 | F164: =IF(A164>$A$8,"",OFFSET(InputPriceData!E$15,CalculationsAndCharts!$A164+$A$11,IF($C$5,8,0),1,1)) -> 1139.04 | G164: =IF(A164>$A$8,"",OFFSET(InputPriceData!F$15,CalculationsAndCharts!$A164+$A$11,IF($C$5,8,0),1,1)) -> 1152.82 | H164: 1205.08 | I164: 1108.76 | J164: 96.32 | K164: 1143.040876 | L164: 0.355906105 | M164: 1153.01434 | N164: 0.4594512004 | O164: -10.35450954 | P164: -9.430745492 | Q164: 1183.26841 | R164: 10 | S164: -10 | T164: -9.973463589 | U164: -8.952887163 | V164: 1205.08 | W164: 1108.76 | X164: 1143.040876 | Y164: 1153.01434 | Z164: 1183.26841 | AP164: 34840900
A165: 133 | B165: =IF(A165>$A$8,"",OFFSET(InputPriceData!B$15,$A165+$A$11,0,1,1)) -> 2015-12-22 | C165: =IF(A165>$A$8,"",OFFSET(InputPriceData!G$15,CalculationsAndCharts!$A165+$A$11,IF($C$5,8,0),1,1)) -> 35208600 | D165: =IF(A165>$A$8,"",OFFSET(InputPriceData!C$15,CalculationsAndCharts!$A165+$A$11,IF($C$5,8,0),1,1)) -> 1128.48 | E165: =IF(A165>$A$8,"",OFFSET(InputPriceData!D$15,CalculationsAndCharts!$A165+$A$11,IF($C$5,8,0),1,1)) -> 1138.65 | F165: =IF(A165>$A$8,"",OFFSET(InputPriceData!E$15,CalculationsAndCharts!$A165+$A$11,IF($C$5,8,0),1,1)) -> 1123.67 | G165: =IF(A165>$A$8,"",OFFSET(InputPriceData!F$15,CalculationsAndCharts!$A165+$A$11,IF($C$5,8,0),1,1)) -> 1137.69 | H165: 1205.08 | I165: 1108.76 | J165: 96.32 | K165: 1141.262853 | L165: 0.3374465686 | M165: 1153.029887 | N165: 0.459612612 | O165: -12.21660434 | P165: -9.19980448 | Q165: 1183.574425 | R165: 10 | S165: -10 | T165: -11.7670333 | U165: -8.697743057 | V165: 1205.08 | W165: 1108.76 | X165: 1141.262853 | Y165: 1153.029887 | Z165: 1183.574425 | AP165: 35208600
A166: 134 | B166: =IF(A166>$A$8,"",OFFSET(InputPriceData!B$15,$A166+$A$11,0,1,1)) -> 2015-12-21 | C166: =IF(A166>$A$8,"",OFFSET(InputPriceData!G$15,CalculationsAndCharts!$A166+$A$11,IF($C$5,8,0),1,1)) -> 37602800 | D166: =IF(A166>$A$8,"",OFFSET(InputPriceData!C$15,CalculationsAndCharts!$A166+$A$11,IF($C$5,8,0),1,1)) -> 1122.16 | E166: =IF(A166>$A$8,"",OFFSET(InputPriceData!D$15,CalculationsAndCharts!$A166+$A$11,IF($C$5,8,0),1,1)) -> 1130.4 | F166: =IF(A166>$A$8,"",OFFSET(InputPriceData!E$15,CalculationsAndCharts!$A166+$A$11,IF($C$5,8,0),1,1)) -> 1120.61 | G166: =IF(A166>$A$8,"",OFFSET(InputPriceData!F$15,CalculationsAndCharts!$A166+$A$11,IF($C$5,8,0),1,1)) -> 1127.74 | H166: 1205.08 | I166: 1108.76 | J166: 96.32 | K166: 1141.912463 | L166: 0.3441908557 | M166: 1154.257078 | N166: 0.4723533818 | O166: -12.81625261 | P166: -8.445604515 | Q166: 1184.035575 | R166: 10 | S166: -10 | T166: -12.34461452 | U166: -7.930420496 | V166: 1205.08 | W166: 1108.76 | X166: 1141.912463 | Y166: 1154.257078 | Z166: 1184.035575 | AP166: 37602800
A167: 135 | B167: =IF(A167>$A$8,"",OFFSET(InputPriceData!B$15,$A167+$A$11,0,1,1)) -> 2015-12-18 | C167: =IF(A167>$A$8,"",OFFSET(InputPriceData!G$15,CalculationsAndCharts!$A167+$A$11,IF($C$5,8,0),1,1)) -> 66830700 | D167: =IF(A167>$A$8,"",OFFSET(InputPriceData!C$15,CalculationsAndCharts!$A167+$A$11,IF($C$5,8,0),1,1)) -> 1134.95 | E167: =IF(A167>$A$8,"",OFFSET(InputPriceData!D$15,CalculationsAndCharts!$A167+$A$11,IF($C$5,8,0),1,1)) -> 1134.95 | F167: =IF(A167>$A$8,"",OFFSET(InputPriceData!E$15,CalculationsAndCharts!$A167+$A$11,IF($C$5,8,0),1,1)) -> 1120.47 | G167: =IF(A167>$A$8,"",OFFSET(InputPriceData!F$15,CalculationsAndCharts!$A167+$A$11,IF($C$5,8,0),1,1)) -> 1121.02 | H167: 1205.08 | I167: 1108.76 | J167: 96.32 | K167: 1144.489275 | L167: 0.3709434667 | M167: 1156.378444 | N167: 0.4943775327 | O167: -12.3434066 | P167: -7.352942491 | Q167: 1184.601359 | R167: 10 | S167: -10 | T167: -11.88916924 | U167: -6.826871992 | V167: 1205.08 | W167: 1108.76 | X167: 1144.489275 | Y167: 1156.378444 | Z167: 1184.601359 | AQ167: 66830700
A168: 136 | B168: =IF(A168>$A$8,"",OFFSET(InputPriceData!B$15,$A168+$A$11,0,1,1)) -> 2015-12-17 | C168: =IF(A168>$A$8,"",OFFSET(InputPriceData!G$15,CalculationsAndCharts!$A168+$A$11,IF($C$5,8,0),1,1)) -> 43273900 | D168: =IF(A168>$A$8,"",OFFSET(InputPriceData!C$15,CalculationsAndCharts!$A168+$A$11,IF($C$5,8,0),1,1)) -> 1149.21 | E168: =IF(A168>$A$8,"",OFFSET(InputPriceData!D$15,CalculationsAndCharts!$A168+$A$11,IF($C$5,8,0),1,1)) -> 1151.4 | F168: =IF(A168>$A$8,"",OFFSET(InputPriceData!E$15,CalculationsAndCharts!$A168+$A$11,IF($C$5,8,0),1,1)) -> 1135.35 | G168: =IF(A168>$A$8,"",OFFSET(InputPriceData!F$15,CalculationsAndCharts!$A168+$A$11,IF($C$5,8,0),1,1)) -> 1135.36 | H168: 1205.08 | I168: 1108.76 | J168: 96.32 | K168: 1148.756416 | L168: 0.4152451782 | M168: 1159.207119 | N168: 0.5237450111 | O168: -10.84998328 | P168: -6.105326463 | Q168: 1185.240368 | R168: 10 | S168: -10 | T168: -10.4507039 | U168: -5.561297679 | V168: 1205.08 | W168: 1108.76 | X168: 1148.756416 | Y168: 1159.207119 | Z168: 1185.240368 | AQ168: 43273900
A169: 137 | B169: =IF(A169>$A$8,"",OFFSET(InputPriceData!B$15,$A169+$A$11,0,1,1)) -> 2015-12-16 | C169: =IF(A169>$A$8,"",OFFSET(InputPriceData!G$15,CalculationsAndCharts!$A169+$A$11,IF($C$5,8,0),1,1)) -> 45954500 | D169: =IF(A169>$A$8,"",OFFSET(InputPriceData!C$15,CalculationsAndCharts!$A169+$A$11,IF($C$5,8,0),1,1)) -> 1133.82 | E169: =IF(A169>$A$8,"",OFFSET(InputPriceData!D$15,CalculationsAndCharts!$A169+$A$11,IF($C$5,8,0),1,1)) -> 1150.27 | F169: =IF(A169>$A$8,"",OFFSET(InputPriceData!E$15,CalculationsAndCharts!$A169+$A$11,IF($C$5,8,0),1,1)) -> 1133.82 | G169: =IF(A169>$A$8,"",OFFSET(InputPriceData!F$15,CalculationsAndCharts!$A169+$A$11,IF($C$5,8,0),1,1)) -> 1148.97 | H169: 1205.08 | I169: 1108.76 | J169: 96.32 | K169: 1151.192127 | L169: 0.4405328851 | M169: 1161.114889 | N169: 0.5435515887 | O169: -10.30187037 | P169: -4.919162258 | Q169: 1185.741678 | R169: 10 | S169: -10 | T169: -9.922761536 | U169: -4.338946124 | V169: 1205.08 | W169: 1108.76 | X169: 1151.192127 | Y169: 1161.114889 | Z169: 1185.741678 | AP169: 45954500
A170: 138 | B170: =IF(A170>$A$8,"",OFFSET(InputPriceData!B$15,$A170+$A$11,0,1,1)) -> 2015-12-15 | C170: =IF(A170>$A$8,"",OFFSET(InputPriceData!G$15,CalculationsAndCharts!$A170+$A$11,IF($C$5,8,0),1,1)) -> 43535400 | D170: =IF(A170>$A$8,"",OFFSET(InputPriceData!C$15,CalculationsAndCharts!$A170+$A$11,IF($C$5,8,0),1,1)) -> 1117.02 | E170: =IF(A170>$A$8,"",OFFSET(InputPriceData!D$15,CalculationsAndCharts!$A170+$A$11,IF($C$5,8,0),1,1)) -> 1133.32 | F170: =IF(A170>$A$8,"",OFFSET(InputPriceData!E$15,CalculationsAndCharts!$A170+$A$11,IF($C$5,8,0),1,1)) -> 1117.02 | G170: =IF(A170>$A$8,"",OFFSET(InputPriceData!F$15,CalculationsAndCharts!$A170+$A$11,IF($C$5,8,0),1,1)) -> 1131.55 | H170: 1205.08 | I170: 1108.76 | J170: 96.32 | K170: 1151.596151 | L170: 0.4447274779 | M170: 1162.08648 | N170: 0.5536387059 | O170: -10.8911228 | P170: -3.573485231 | Q170: 1186.111243 | R170: 10 | S170: -10 | T170: -10.49032948 | U170: -2.942992271 | V170: 1205.08 | W170: 1108.76 | X170: 1151.596151 | Y170: 1162.08648 | Z170: 1186.111243 | AP170: 43535400
A171: 139 | B171: =IF(A171>$A$8,"",OFFSET(InputPriceData!B$15,$A171+$A$11,0,1,1)) -> 2015-12-14 | C171: =IF(A171>$A$8,"",OFFSET(InputPriceData!G$15,CalculationsAndCharts!$A171+$A$11,IF($C$5,8,0),1,1)) -> 46124400 | D171: =IF(A171>$A$8,"",OFFSET(InputPriceData!C$15,CalculationsAndCharts!$A171+$A$11,IF($C$5,8,0),1,1)) -> 1123.63 | E171: =IF(A171>$A$8,"",OFFSET(InputPriceData!D$15,CalculationsAndCharts!$A171+$A$11,IF($C$5,8,0),1,1)) -> 1126.49 | F171: =IF(A171>$A$8,"",OFFSET(InputPriceData!E$15,CalculationsAndCharts!$A171+$A$11,IF($C$5,8,0),1,1)) -> 1108.76 | G171: =IF(A171>$A$8,"",OFFSET(InputPriceData!F$15,CalculationsAndCharts!$A171+$A$11,IF($C$5,8,0),1,1)) -> 1115.86 | H171: 1205.08 | I171: 1108.76 | J171: 96.32 | K171: 1155.240905 | L171: 0.4825675388 | M171: 1164.529399 | N171: 0.5790012309 | O171: -9.643369209 | P171: -1.74407584 | Q171: 1186.659597 | R171: 10 | S171: -10 | T171: -9.288493222 | U171: -1.05615797 | V171: 1205.08 | W171: 1108.76 | X171: 1155.240905 | Y171: 1164.529399 | Z171: 1186.659597 | AQ171: 46124400
A172: 140 | B172: =IF(A172>$A$8,"",OFFSET(InputPriceData!B$15,$A172+$A$11,0,1,1)) -> 2015-12-11 | C172: =IF(A172>$A$8,"",OFFSET(InputPriceData!G$15,CalculationsAndCharts!$A172+$A$11,IF($C$5,8,0),1,1)) -> 43010600 | D172: =IF(A172>$A$8,"",OFFSET(InputPriceData!C$15,CalculationsAndCharts!$A172+$A$11,IF($C$5,8,0),1,1)) -> 1146.23 | E172: =IF(A172>$A$8,"",OFFSET(InputPriceData!D$15,CalculationsAndCharts!$A172+$A$11,IF($C$5,8,0),1,1)) -> 1146.23 | F172: =IF(A172>$A$8,"",OFFSET(InputPriceData!E$15,CalculationsAndCharts!$A172+$A$11,IF($C$5,8,0),1,1)) -> 1121.27 | G172: =IF(A172>$A$8,"",OFFSET(InputPriceData!F$15,CalculationsAndCharts!$A172+$A$11,IF($C$5,8,0),1,1)) -> 1123.61 | H172: 1205.08 | I172: 1121.27 | J172: 83.81 | K172: 1162.40107 | L172: 0.4907656598 | M172: 1168.42295 | N172: 0.5626172348 | O172: -7.185157499 | P172: 0.2307475028 | Q172: 1187.371151 | R172: 10 | S172: -10 | T172: -6.0218805 | U172: 1.001925844 | V172: 1205.08 | W172: 1121.27 | X172: 1162.40107 | Y172: 1168.42295 | Z172: 1187.371151 | AQ172: 43010600
A173: 141 | B173: =IF(A173>$A$8,"",OFFSET(InputPriceData!B$15,$A173+$A$11,0,1,1)) -> 2015-12-10 | C173: =IF(A173>$A$8,"",OFFSET(InputPriceData!G$15,CalculationsAndCharts!$A173+$A$11,IF($C$5,8,0),1,1)) -> 37151500 | D173: =IF(A173>$A$8,"",OFFSET(InputPriceData!C$15,CalculationsAndCharts!$A173+$A$11,IF($C$5,8,0),1,1)) -> 1145.66 | E173: =IF(A173>$A$8,"",OFFSET(InputPriceData!D$15,CalculationsAndCharts!$A173+$A$11,IF($C$5,8,0),1,1)) -> 1154.84 | F173: =IF(A173>$A$8,"",OFFSET(InputPriceData!E$15,CalculationsAndCharts!$A173+$A$11,IF($C$5,8,0),1,1)) -> 1144.03 | G173: =IF(A173>$A$8,"",OFFSET(InputPriceData!F$15,CalculationsAndCharts!$A173+$A$11,IF($C$5,8,0),1,1)) -> 1149.02 | H173: 1205.08 | I173: 1135.67 | J173: 69.41 | K173: 1169.453992 | L173: 0.4867308998 | M173: 1172.007986 | N173: 0.5235266745 | O173: -3.679577478 | P173: 2.084723753 | Q173: 1188.011966 | R173: 10 | S173: -10 | T173: -2.553994728 | U173: 2.757877429 | V173: 1205.08 | W173: 1135.67 | X173: 1169.453992 | Y173: 1172.007986 | Z173: 1188.011966 | AP173: 37151500
A174: 142 | B174: =IF(A174>$A$8,"",OFFSET(InputPriceData!B$15,$A174+$A$11,0,1,1)) -> 2015-12-09 | C174: =IF(A174>$A$8,"",OFFSET(InputPriceData!G$15,CalculationsAndCharts!$A174+$A$11,IF($C$5,8,0),1,1)) -> 43852500 | D174: =IF(A174>$A$8,"",OFFSET(InputPriceData!C$15,CalculationsAndCharts!$A174+$A$11,IF($C$5,8,0),1,1)) -> 1158.98 | E174: =IF(A174>$A$8,"",OFFSET(InputPriceData!D$15,CalculationsAndCharts!$A174+$A$11,IF($C$5,8,0),1,1)) -> 1165.56 | F174: =IF(A174>$A$8,"",OFFSET(InputPriceData!E$15,CalculationsAndCharts!$A174+$A$11,IF($C$5,8,0),1,1)) -> 1142.75 | G174: =IF(A174>$A$8,"",OFFSET(InputPriceData!F$15,CalculationsAndCharts!$A174+$A$11,IF($C$5,8,0),1,1)) -> 1145.87 | H174: 1205.08 | I174: 1134.49 | J174: 70.59 | K174: 1173.169263 | L174: 0.547942527 | M174: 1173.847025 | N174: 0.5575439212 | O174: -0.9601394225 | P174: 3.525799061 | Q174: 1188.403845 | R174: 10 | S174: -10 | T174: -0.6777624184 | U174: 4.085845469 | V174: 1205.08 | W174: 1134.49 | X174: 1173.169263 | Y174: 1173.847025 | Z174: 1188.403845 | AQ174: 43852500
A175: 143 | B175: =IF(A175>$A$8,"",OFFSET(InputPriceData!B$15,$A175+$A$11,0,1,1)) -> 2015-12-08 | C175: =IF(A175>$A$8,"",OFFSET(InputPriceData!G$15,CalculationsAndCharts!$A175+$A$11,IF($C$5,8,0),1,1)) -> 41735700 | D175: =IF(A175>$A$8,"",OFFSET(InputPriceData!C$15,CalculationsAndCharts!$A175+$A$11,IF($C$5,8,0),1,1)) -> 1162.25 | E175: =IF(A175>$A$8,"",OFFSET(InputPriceData!D$15,CalculationsAndCharts!$A175+$A$11,IF($C$5,8,0),1,1)) -> 1163.73 | F175: =IF(A175>$A$8,"",OFFSET(InputPriceData!E$15,CalculationsAndCharts!$A175+$A$11,IF($C$5,8,0),1,1)) -> 1151.27 | G175: =IF(A175>$A$8,"",OFFSET(InputPriceData!F$15,CalculationsAndCharts!$A175+$A$11,IF($C$5,8,0),1,1)) -> 1159.4 | H175: 1205.08 | I175: 1127.12 | J175: 77.96 | K175: 1178.132765 | L175: 0.6543453738 | M175: 1176.085187 | N175: 0.628080906 | O175: 2.62644678 | P175: 4.647283682 | Q175: 1188.831321 | R175: 10 | S175: -10 | T175: 2.04757791 | U175: 5.27674744 | V175: 1205.08 | W175: 1127.12 | X175: 1178.132765 | Y175: 1176.085187 | Z175: 1188.831321 | AQ175: 41735700
A176: 144 | B176: =IF(A176>$A$8,"",OFFSET(InputPriceData!B$15,$A176+$A$11,0,1,1)) -> 2015-12-07 | C176: =IF(A176>$A$8,"",OFFSET(InputPriceData!G$15,CalculationsAndCharts!$A176+$A$11,IF($C$5,8,0),1,1)) -> 40438200 | D176: =IF(A176>$A$8,"",OFFSET(InputPriceData!C$15,CalculationsAndCharts!$A176+$A$11,IF($C$5,8,0),1,1)) -> 1183.07 | E176: =IF(A176>$A$8,"",OFFSET(InputPriceData!D$15,CalculationsAndCharts!$A176+$A$11,IF($C$5,8,0),1,1)) -> 1183.07 | F176: =IF(A176>$A$8,"",OFFSET(InputPriceData!E$15,CalculationsAndCharts!$A176+$A$11,IF($C$5,8,0),1,1)) -> 1161.58 | G176: =IF(A176>$A$8,"",OFFSET(InputPriceData!F$15,CalculationsAndCharts!$A176+$A$11,IF($C$5,8,0),1,1)) -> 1164.3 | H176: 1205.08 | I176: 1115.82 | J176: 89.26 | K176: 1181.538723 | L176: 0.7362617373 | M176: 1177.420002 | N176: 0.6901187814 | O176: 4.614295597 | P176: 5.152492908 | Q176: 1189.127113 | R176: 10 | S176: -10 | T176: 4.11872025 | U176: 6.084039823 | V176: 1205.08 | W176: 1115.82 | X176: 1181.538723 | Y176: 1177.420002 | Z176: 1189.127113 | AQ176: 40438200
A177: 145 | B177: =IF(A177>$A$8,"",OFFSET(InputPriceData!B$15,$A177+$A$11,0,1,1)) -> 2015-12-04 | C177: =IF(A177>$A$8,"",OFFSET(InputPriceData!G$15,CalculationsAndCharts!$A177+$A$11,IF($C$5,8,0),1,1)) -> 42149100 | D177: =IF(A177>$A$8,"",OFFSET(InputPriceData!C$15,CalculationsAndCharts!$A177+$A$11,IF($C$5,8,0),1,1)) -> 1170.64 | E177: =IF(A177>$A$8,"",OFFSET(InputPriceData!D$15,CalculationsAndCharts!$A177+$A$11,IF($C$5,8,0),1,1)) -> 1183.82 | F177: =IF(A177>$A$8,"",OFFSET(InputPriceData!E$15,CalculationsAndCharts!$A177+$A$11,IF($C$5,8,0),1,1)) -> 1170.49 | G177: =IF(A177>$A$8,"",OFFSET(InputPriceData!F$15,CalculationsAndCharts!$A177+$A$11,IF($C$5,8,0),1,1)) -> 1183.4 | H177: 1205.08 | I177: 1080.61 | J177: 124.47 | K177: 1184.673036 | L177: 0.8360491354 | M177: 1178.469603 | N177: 0.7862103528 | O177: 4.98387826 | P177: 5.287042235 | Q177: 1189.376632 | R177: 10 | S177: -10 | T177: 6.20343327 | U177: 6.575369716 | V177: 1205.08 | W177: 1080.61 | X177: 1184.673036 | Y177: 1178.469603 | Z177: 1189.376632 | AP177: 42149100
A178: 146 | B178: =IF(A178>$A$8,"",OFFSET(InputPriceData!B$15,$A178+$A$11,0,1,1)) -> 2015-12-03 | C178: =IF(A178>$A$8,"",OFFSET(InputPriceData!G$15,CalculationsAndCharts!$A178+$A$11,IF($C$5,8,0),1,1)) -> 43064900 | D178: =IF(A178>$A$8,"",OFFSET(InputPriceData!C$15,CalculationsAndCharts!$A178+$A$11,IF($C$5,8,0),1,1)) -> 1192.7 | E178: =IF(A178>$A$8,"",OFFSET(InputPriceData!D$15,CalculationsAndCharts!$A178+$A$11,IF($C$5,8,0),1,1)) -> 1196.68 | F178: =IF(A178>$A$8,"",OFFSET(InputPriceData!E$15,CalculationsAndCharts!$A178+$A$11,IF($C$5,8,0),1,1)) -> 1168.15 | G178: =IF(A178>$A$8,"",OFFSET(InputPriceData!F$15,CalculationsAndCharts!$A178+$A$11,IF($C$5,8,0),1,1)) -> 1170.57 | H178: 1205.08 | I178: 1080.61 | J178: 124.47 | K178: 1184.904497 | L178: 0.8379087086 | M178: 1178.075171 | N178: 0.7830414624 | O178: 5.486724617 | P178: 5.362833229 | Q178: 1189.436699 | R178: 10 | S178: -10 | T178: 6.829326131 | U178: 6.668353828 | V178: 1205.08 | W178: 1080.61 | X178: 1184.904497 | Y178: 1178.075171 | Z178: 1189.436699 | AQ178: 43064900
A179: 147 | B179: =IF(A179>$A$8,"",OFFSET(InputPriceData!B$15,$A179+$A$11,0,1,1)) -> 2015-12-02 | C179: =IF(A179>$A$8,"",OFFSET(InputPriceData!G$15,CalculationsAndCharts!$A179+$A$11,IF($C$5,8,0),1,1)) -> 39506400 | D179: =IF(A179>$A$8,"",OFFSET(InputPriceData!C$15,CalculationsAndCharts!$A179+$A$11,IF($C$5,8,0),1,1)) -> 1203.89 | E179: =IF(A179>$A$8,"",OFFSET(InputPriceData!D$15,CalculationsAndCharts!$A179+$A$11,IF($C$5,8,0),1,1)) -> 1205.08 | F179: =IF(A179>$A$8,"",OFFSET(InputPriceData!E$15,CalculationsAndCharts!$A179+$A$11,IF($C$5,8,0),1,1)) -> 1190.85 | G179: =IF(A179>$A$8,"",OFFSET(InputPriceData!F$15,CalculationsAndCharts!$A179+$A$11,IF($C$5,8,0),1,1)) -> 1191.69 | H179: 1205.08 | I179: 1080.61 | J179: 124.47 | K179: 1187.510769 | L179: 0.8588476672 | M179: 1178.675584 | N179: 0.7878652245 | O179: 7.098244267 | P179: 5.331860382 | Q179: 1189.626314 | R179: 10 | S179: -10 | T179: 8.835184639 | U179: 6.628110753 | V179: 1205.08 | W179: 1080.61 | X179: 1187.510769 | Y179: 1178.675584 | Z179: 1189.626314 | AQ179: 39506400
A180: 148 | B180: =IF(A180>$A$8,"",OFFSET(InputPriceData!B$15,$A180+$A$11,0,1,1)) -> 2015-12-01 | C180: =IF(A180>$A$8,"",OFFSET(InputPriceData!G$15,CalculationsAndCharts!$A180+$A$11,IF($C$5,8,0),1,1)) -> 37121200 | D180: =IF(A180>$A$8,"",OFFSET(InputPriceData!C$15,CalculationsAndCharts!$A180+$A$11,IF($C$5,8,0),1,1)) -> 1198.93 | E180: =IF(A180>$A$8,"",OFFSET(InputPriceData!D$15,CalculationsAndCharts!$A180+$A$11,IF($C$5,8,0),1,1)) -> 1204.4 | F180: =IF(A180>$A$8,"",OFFSET(InputPriceData!E$15,CalculationsAndCharts!$A180+$A$11,IF($C$5,8,0),1,1)) -> 1195.69 | G180: =IF(A180>$A$8,"",OFFSET(InputPriceData!F$15,CalculationsAndCharts!$A180+$A$11,IF($C$5,8,0),1,1)) -> 1204.16 | H180: 1204.87 | I180: 1078.63 | J180: 126.24 | K180: 1186.750909 | L180: 0.8564710787 | M180: 1177.634431 | N180: 0.7842556341 | O180: 7.221544457 | P180: 4.890264411 | Q180: 1189.605573 | R180: 10 | S180: -10 | T180: 9.116477722 | U180: 6.076342281 | V180: 1204.87 | W180: 1078.63 | X180: 1186.750909 | Y180: 1177.634431 | Z180: 1189.605573 | AP180: 37121200
A181: 149 | B181: =IF(A181>$A$8,"",OFFSET(InputPriceData!B$15,$A181+$A$11,0,1,1)) -> 2015-11-30 | C181: =IF(A181>$A$8,"",OFFSET(InputPriceData!G$15,CalculationsAndCharts!$A181+$A$11,IF($C$5,8,0),1,1)) -> 42450300 | D181: =IF(A181>$A$8,"",OFFSET(InputPriceData!C$15,CalculationsAndCharts!$A181+$A$11,IF($C$5,8,0),1,1)) -> 1202.77 | E181: =IF(A181>$A$8,"",OFFSET(InputPriceData!D$15,CalculationsAndCharts!$A181+$A$11,IF($C$5,8,0),1,1)) -> 1204.87 | F181: =IF(A181>$A$8,"",OFFSET(InputPriceData!E$15,CalculationsAndCharts!$A181+$A$11,IF($C$5,8,0),1,1)) -> 1197.2 | G181: =IF(A181>$A$8,"",OFFSET(InputPriceData!F$15,CalculationsAndCharts!$A181+$A$11,IF($C$5,8,0),1,1)) -> 1198.11 | H181: 1204.87 | I181: 1078.63 | J181: 126.24 | K181: 1183.58562 | L181: 0.8313974945 | M181: 1175.512386 | N181: 0.7674460215 | O181: 6.395147294 | P181: 4.3074444 | Q181: 1189.459297 | R181: 10 | S181: -10 | T181: 8.073233945 | U181: 5.316308421 | V181: 1204.87 | W181: 1078.63 | X181: 1183.58562 | Y181: 1175.512386 | Z181: 1189.459297 | AQ181: 42450300
A182: 150 | B182: =IF(A182>$A$8,"",OFFSET(InputPriceData!B$15,$A182+$A$11,0,1,1)) -> 2015-11-27 | C182: =IF(A182>$A$8,"",OFFSET(InputPriceData!G$15,CalculationsAndCharts!$A182+$A$11,IF($C$5,8,0),1,1)) -> 14668400 | D182: =IF(A182>$A$8,"",OFFSET(InputPriceData!C$15,CalculationsAndCharts!$A182+$A$11,IF($C$5,8,0),1,1)) -> 1197.91 | E182: =IF(A182>$A$8,"",OFFSET(InputPriceData!D$15,CalculationsAndCharts!$A182+$A$11,IF($C$5,8,0),1,1)) -> 1203.69 | F182: =IF(A182>$A$8,"",OFFSET(InputPriceData!E$15,CalculationsAndCharts!$A182+$A$11,IF($C$5,8,0),1,1)) -> 1195.84 | G182: =IF(A182>$A$8,"",OFFSET(InputPriceData!F$15,CalculationsAndCharts!$A182+$A$11,IF($C$5,8,0),1,1)) -> 1202.38 | H182: 1203.69 | I182: 1078.63 | J182: 125.06 | K182: 1180.944823 | L182: 0.8181258858 | M182: 1173.704577 | N182: 0.7602317017 | O182: 5.789418412 | P182: 3.785518676 | Q182: 1189.372356 | R182: 10 | S182: -10 | T182: 7.240246666 | U182: 4.62707704 | V182: 1203.69 | W182: 1078.63 | X182: 1180.944823 | Y182: 1173.704577 | Z182: 1189.372356 | AP182: 14668400
A183: 151 | B183: =IF(A183>$A$8,"",OFFSET(InputPriceData!B$15,$A183+$A$11,0,1,1)) -> 2015-11-25 | C183: =IF(A183>$A$8,"",OFFSET(InputPriceData!G$15,CalculationsAndCharts!$A183+$A$11,IF($C$5,8,0),1,1)) -> 28529400 | D183: =IF(A183>$A$8,"",OFFSET(InputPriceData!C$15,CalculationsAndCharts!$A183+$A$11,IF($C$5,8,0),1,1)) -> 1188.9 | E183: =IF(A183>$A$8,"",OFFSET(InputPriceData!D$15,CalculationsAndCharts!$A183+$A$11,IF($C$5,8,0),1,1)) -> 1198.53 | F183: =IF(A183>$A$8,"",OFFSET(InputPriceData!E$15,CalculationsAndCharts!$A183+$A$11,IF($C$5,8,0),1,1)) -> 1188.51 | G183: =IF(A183>$A$8,"",OFFSET(InputPriceData!F$15,CalculationsAndCharts!$A183+$A$11,IF($C$5,8,0),1,1)) -> 1198.02 | H183: 1199.96 | I183: 1078.63 | J183: 121.33 | K183: 1177.047518 | L183: 0.8111556781 | M183: 1171.410543 | N183: 0.764695811 | O183: 4.645986713 | P183: 3.284543742 | Q183: 1189.241626 | R183: 10 | S183: -10 | T183: 5.636975679 | U183: 3.973784633 | V183: 1199.96 | W183: 1078.63 | X183: 1177.047518 | Y183: 1171.410543 | Z183: 1189.241626 | AP183: 28529400
A184: 152 | B184: =IF(A184>$A$8,"",OFFSET(InputPriceData!B$15,$A184+$A$11,0,1,1)) -> 2015-11-24 | C184: =IF(A184>$A$8,"",OFFSET(InputPriceData!G$15,CalculationsAndCharts!$A184+$A$11,IF($C$5,8,0),1,1)) -> 38849300 | D184: =IF(A184>$A$8,"",OFFSET(InputPriceData!C$15,CalculationsAndCharts!$A184+$A$11,IF($C$5,8,0),1,1)) -> 1179.23 | E184: =IF(A184>$A$8,"",OFFSET(InputPriceData!D$15,CalculationsAndCharts!$A184+$A$11,IF($C$5,8,0),1,1)) -> 1189.66 | F184: =IF(A184>$A$8,"",OFFSET(InputPriceData!E$15,CalculationsAndCharts!$A184+$A$11,IF($C$5,8,0),1,1)) -> 1172.88 | G184: =IF(A184>$A$8,"",OFFSET(InputPriceData!F$15,CalculationsAndCharts!$A184+$A$11,IF($C$5,8,0),1,1)) -> 1188.81 | H184: 1199.96 | I184: 1078.63 | J184: 121.33 | K184: 1173.23434 | L184: 0.7797275196 | M184: 1169.281786 | N184: 0.7471506319 | O184: 3.257688775 | P184: 2.944182999 | Q184: 1189.153401 | R184: 10 | S184: -10 | T184: 3.952553791 | U184: 3.557986872 | V184: 1199.96 | W184: 1078.63 | X184: 1173.23434 | Y184: 1169.281786 | Z184: 1189.153401 | AP184: 38849300
A185: 153 | B185: =IF(A185>$A$8,"",OFFSET(InputPriceData!B$15,$A185+$A$11,0,1,1)) -> 2015-11-23 | C185: =IF(A185>$A$8,"",OFFSET(InputPriceData!G$15,CalculationsAndCharts!$A185+$A$11,IF($C$5,8,0),1,1)) -> 35879800 | D185: =IF(A185>$A$8,"",OFFSET(InputPriceData!C$15,CalculationsAndCharts!$A185+$A$11,IF($C$5,8,0),1,1)) -> 1174.89 | E185: =IF(A185>$A$8,"",OFFSET(InputPriceData!D$15,CalculationsAndCharts!$A185+$A$11,IF($C$5,8,0),1,1)) -> 1184.41 | F185: =IF(A185>$A$8,"",OFFSET(InputPriceData!E$15,CalculationsAndCharts!$A185+$A$11,IF($C$5,8,0),1,1)) -> 1173.75 | G185: =IF(A185>$A$8,"",OFFSET(InputPriceData!F$15,CalculationsAndCharts!$A185+$A$11,IF($C$5,8,0),1,1)) -> 1180.36 | H185: 1199.96 | I185: 1078.63 | J185: 121.33 | K185: 1170.402402 | L185: 0.7563867285 | M185: 1167.719529 | N185: 0.7342745327 | O185: 2.211219573 | P185: 2.865806556 | Q185: 1189.156852 | R185: 10 | S185: -10 | T185: 2.682872707 | U185: 3.459345142 | V185: 1199.96 | W185: 1078.63 | X185: 1170.402402 | Y185: 1167.719529 | Z185: 1189.156852 | AP185: 35879800
A186: 154 | B186: =IF(A186>$A$8,"",OFFSET(InputPriceData!B$15,$A186+$A$11,0,1,1)) -> 2015-11-20 | C186: =IF(A186>$A$8,"",OFFSET(InputPriceData!G$15,CalculationsAndCharts!$A186+$A$11,IF($C$5,8,0),1,1)) -> 39296000 | D186: =IF(A186>$A$8,"",OFFSET(InputPriceData!C$15,CalculationsAndCharts!$A186+$A$11,IF($C$5,8,0),1,1)) -> 1168.35 | E186: =IF(A186>$A$8,"",OFFSET(InputPriceData!D$15,CalculationsAndCharts!$A186+$A$11,IF($C$5,8,0),1,1)) -> 1178.74 | F186: =IF(A186>$A$8,"",OFFSET(InputPriceData!E$15,CalculationsAndCharts!$A186+$A$11,IF($C$5,8,0),1,1)) -> 1168.35 | G186: =IF(A186>$A$8,"",OFFSET(InputPriceData!F$15,CalculationsAndCharts!$A186+$A$11,IF($C$5,8,0),1,1)) -> 1175.15 | H186: 1199.96 | I186: 1078.63 | J186: 121.33 | K186: 1168.591929 | L186: 0.7414648426 | M186: 1166.708291 | N186: 0.7259399273 | O186: 1.552491532 | P186: 3.029453301 | Q186: 1189.245263 | R186: 10 | S186: -10 | T186: 1.883637976 | U186: 3.653463251 | V186: 1199.96 | W186: 1078.63 | X186: 1168.591929 | Y186: 1166.708291 | Z186: 1189.245263 | AP186: 39296000
A187: 155 | B187: =IF(A187>$A$8,"",OFFSET(InputPriceData!B$15,$A187+$A$11,0,1,1)) -> 2015-11-19 | C187: =IF(A187>$A$8,"",OFFSET(InputPriceData!G$15,CalculationsAndCharts!$A187+$A$11,IF($C$5,8,0),1,1)) -> 36281100 | D187: =IF(A187>$A$8,"",OFFSET(InputPriceData!C$15,CalculationsAndCharts!$A187+$A$11,IF($C$5,8,0),1,1)) -> 1171.7 | E187: =IF(A187>$A$8,"",OFFSET(InputPriceData!D$15,CalculationsAndCharts!$A187+$A$11,IF($C$5,8,0),1,1)) -> 1172.29 | F187: =IF(A187>$A$8,"",OFFSET(InputPriceData!E$15,CalculationsAndCharts!$A187+$A$11,IF($C$5,8,0),1,1)) -> 1164.19 | G187: =IF(A187>$A$8,"",OFFSET(InputPriceData!F$15,CalculationsAndCharts!$A187+$A$11,IF($C$5,8,0),1,1)) -> 1166.73 | H187: 1199.96 | I187: 1078.63 | J187: 121.33 | K187: 1167.399553 | L187: 0.731637294 | M187: 1166.032955 | N187: 0.7203738127 | O187: 1.126348129 | P187: 3.398693744 | Q187: 1189.386924 | R187: 10 | S187: -10 | T187: 1.366598185 | U187: 4.095919569 | V187: 1199.96 | W187: 1078.63 | X187: 1167.399553 | Y187: 1166.032955 | Z187: 1189.386924 | AQ187: 36281100
A188: 156 | B188: =IF(A188>$A$8,"",OFFSET(InputPriceData!B$15,$A188+$A$11,0,1,1)) -> 2015-11-18 | C188: =IF(A188>$A$8,"",OFFSET(InputPriceData!G$15,CalculationsAndCharts!$A188+$A$11,IF($C$5,8,0),1,1)) -> 39263900 | D188: =IF(A188>$A$8,"",OFFSET(InputPriceData!C$15,CalculationsAndCharts!$A188+$A$11,IF($C$5,8,0),1,1)) -> 1153.39 | E188: =IF(A188>$A$8,"",OFFSET(InputPriceData!D$15,CalculationsAndCharts!$A188+$A$11,IF($C$5,8,0),1,1)) -> 1172.02 | F188: =IF(A188>$A$8,"",OFFSET(InputPriceData!E$15,CalculationsAndCharts!$A188+$A$11,IF($C$5,8,0),1,1)) -> 1153.39 | G188: =IF(A188>$A$8,"",OFFSET(InputPriceData!F$15,CalculationsAndCharts!$A188+$A$11,IF($C$5,8,0),1,1)) -> 1171.75 | H188: 1199.96 | I188: 1078.63 | J188: 121.33 | K188: 1167.52129 | L188: 0.7326406475 | M188: 1165.977191 | N188: 0.7199142097 | O188: 1.272643779 | P188: 3.966780147 | Q188: 1189.614631 | R188: 10 | S188: -10 | T188: 1.544098697 | U188: 4.778249915 | V188: 1199.96 | W188: 1078.63 | X188: 1167.52129 | Y188: 1165.977191 | Z188: 1189.614631 | AP188: 39263900
A189: 157 | B189: =IF(A189>$A$8,"",OFFSET(InputPriceData!B$15,$A189+$A$11,0,1,1)) -> 2015-11-17 | C189: =IF(A189>$A$8,"",OFFSET(InputPriceData!G$15,CalculationsAndCharts!$A189+$A$11,IF($C$5,8,0),1,1)) -> 44273500 | D189: =IF(A189>$A$8,"",OFFSET(InputPriceData!C$15,CalculationsAndCharts!$A189+$A$11,IF($C$5,8,0),1,1)) -> 1156.16 | E189: =IF(A189>$A$8,"",OFFSET(InputPriceData!D$15,CalculationsAndCharts!$A189+$A$11,IF($C$5,8,0),1,1)) -> 1166.34 | F189: =IF(A189>$A$8,"",OFFSET(InputPriceData!E$15,CalculationsAndCharts!$A189+$A$11,IF($C$5,8,0),1,1)) -> 1152.49 | G189: =IF(A189>$A$8,"",OFFSET(InputPriceData!F$15,CalculationsAndCharts!$A189+$A$11,IF($C$5,8,0),1,1)) -> 1153.21 | H189: 1199.96 | I189: 1078.63 | J189: 121.33 | K189: 1166.752433 | L189: 0.7263037448 | M189: 1165.515366 | N189: 0.7161078575 | O189: 1.019588729 | P189: 4.640314239 | Q189: 1189.794175 | R189: 10 | S189: -10 | T189: 1.237067005 | U189: 5.58678772 | V189: 1199.96 | W189: 1078.63 | X189: 1166.752433 | Y189: 1165.515366 | Z189: 1189.794175 | AQ189: 44273500
A190: 158 | B190: =IF(A190>$A$8,"",OFFSET(InputPriceData!B$15,$A190+$A$11,0,1,1)) -> 2015-11-16 | C190: =IF(A190>$A$8,"",OFFSET(InputPriceData!G$15,CalculationsAndCharts!$A190+$A$11,IF($C$5,8,0),1,1)) -> 37412400 | D190: =IF(A190>$A$8,"",OFFSET(InputPriceData!C$15,CalculationsAndCharts!$A190+$A$11,IF($C$5,8,0),1,1)) -> 1146.37 | E190: =IF(A190>$A$8,"",OFFSET(InputPriceData!D$15,CalculationsAndCharts!$A190+$A$11,IF($C$5,8,0),1,1)) -> 1156.22 | F190: =IF(A190>$A$8,"",OFFSET(InputPriceData!E$15,CalculationsAndCharts!$A190+$A$11,IF($C$5,8,0),1,1)) -> 1140.76 | G190: =IF(A190>$A$8,"",OFFSET(InputPriceData!F$15,CalculationsAndCharts!$A190+$A$11,IF($C$5,8,0),1,1)) -> 1156.08 | H190: 1199.96 | I190: 1078.63 | J190: 121.33 | K190: 1169.214694 | L190: 0.746597659 | M190: 1166.499796 | N190: 0.7242215088 | O190: 2.237615023 | P190: 5.545495617 | Q190: 1190.161856 | R190: 10 | S190: -10 | T190: 2.714898307 | U190: 6.674217899 | V190: 1199.96 | W190: 1078.63 | X190: 1169.214694 | Y190: 1166.499796 | Z190: 1190.161856 | AP190: 37412400
A191: 159 | B191: =IF(A191>$A$8,"",OFFSET(InputPriceData!B$15,$A191+$A$11,0,1,1)) -> 2015-11-13 | C191: =IF(A191>$A$8,"",OFFSET(InputPriceData!G$15,CalculationsAndCharts!$A191+$A$11,IF($C$5,8,0),1,1)) -> 42787500 | D191: =IF(A191>$A$8,"",OFFSET(InputPriceData!C$15,CalculationsAndCharts!$A191+$A$11,IF($C$5,8,0),1,1)) -> 1154.09 | E191: =IF(A191>$A$8,"",OFFSET(InputPriceData!D$15,CalculationsAndCharts!$A191+$A$11,IF($C$5,8,0),1,1)) -> 1158.43 | F191: =IF(A191>$A$8,"",OFFSET(InputPriceData!E$15,CalculationsAndCharts!$A191+$A$11,IF($C$5,8,0),1,1)) -> 1144.34 | G191: =IF(A191>$A$8,"",OFFSET(InputPriceData!F$15,CalculationsAndCharts!$A191+$A$11,IF($C$5,8,0),1,1)) -> 1146.55 | H191: 1199.96 | I191: 1078.63 | J191: 121.33 | K191: 1171.60282 | L191: 0.7662805584 | M191: 1167.333379 | N191: 0.7310918925 | O191: 3.518866588 | P191: 6.372465765 | Q191: 1190.504387 | R191: 10 | S191: -10 | T191: 4.269440831 | U191: 7.664047796 | V191: 1199.96 | W191: 1078.63 | X191: 1171.60282 | Y191: 1167.333379 | Z191: 1190.504387 | AQ191: 42787500
A192: 160 | B192: =IF(A192>$A$8,"",OFFSET(InputPriceData!B$15,$A192+$A$11,0,1,1)) -> 2015-11-12 | C192: =IF(A192>$A$8,"",OFFSET(InputPriceData!G$15,CalculationsAndCharts!$A192+$A$11,IF($C$5,8,0),1,1)) -> 40163700 | D192: =IF(A192>$A$8,"",OFFSET(InputPriceData!C$15,CalculationsAndCharts!$A192+$A$11,IF($C$5,8,0),1,1)) -> 1177.35 | E192: =IF(A192>$A$8,"",OFFSET(InputPriceData!D$15,CalculationsAndCharts!$A192+$A$11,IF($C$5,8,0),1,1)) -> 1177.35 | F192: =IF(A192>$A$8,"",OFFSET(InputPriceData!E$15,CalculationsAndCharts!$A192+$A$11,IF($C$5,8,0),1,1)) -> 1154.38 | G192: =IF(A192>$A$8,"",OFFSET(InputPriceData!F$15,CalculationsAndCharts!$A192+$A$11,IF($C$5,8,0),1,1)) -> 1154.81 | H192: 1199.96 | I192: 1078.63 | J192: 121.33 | K192: 1176.157878 | L192: 0.8038232783 | M192: 1168.99605 | N192: 0.744795596 | O192: 5.90276823 | P192: 7.08586556 | Q192: 1190.946139 | R192: 10 | S192: -10 | T192: 7.161828694 | U192: 8.512699538 | V192: 1199.96 | W192: 1078.63 | X192: 1176.157878 | Y192: 1168.99605 | Z192: 1190.946139 | AQ192: 40163700
A193: 161 | B193: =IF(A193>$A$8,"",OFFSET(InputPriceData!B$15,$A193+$A$11,0,1,1)) -> 2015-11-11 | C193: =IF(A193>$A$8,"",OFFSET(InputPriceData!G$15,CalculationsAndCharts!$A193+$A$11,IF($C$5,8,0),1,1)) -> 36924100 | D193: =IF(A193>$A$8,"",OFFSET(InputPriceData!C$15,CalculationsAndCharts!$A193+$A$11,IF($C$5,8,0),1,1)) -> 1188.27 | E193: =IF(A193>$A$8,"",OFFSET(InputPriceData!D$15,CalculationsAndCharts!$A193+$A$11,IF($C$5,8,0),1,1)) -> 1189.85 | F193: =IF(A193>$A$8,"",OFFSET(InputPriceData!E$15,CalculationsAndCharts!$A193+$A$11,IF($C$5,8,0),1,1)) -> 1178.06 | G193: =IF(A193>$A$8,"",OFFSET(InputPriceData!F$15,CalculationsAndCharts!$A193+$A$11,IF($C$5,8,0),1,1)) -> 1178.07 | H193: 1199.96 | I193: 1078.63 | J193: 121.33 | K193: 1180.039311 | L193: 0.8358139848 | M193: 1170.130934 | N193: 0.7541492923 | O193: 8.166469256 | P193: 7.381639892 | Q193: 1191.309317 | R193: 10 | S193: -10 | T193: 9.908377149 | U193: 8.850417249 | V193: 1199.96 | W193: 1078.63 | X193: 1180.039311 | Y193: 1170.130934 | Z193: 1191.309317 | AQ193: 36924100
A194: 162 | B194: =IF(A194>$A$8,"",OFFSET(InputPriceData!B$15,$A194+$A$11,0,1,1)) -> 2015-11-10 | C194: =IF(A194>$A$8,"",OFFSET(InputPriceData!G$15,CalculationsAndCharts!$A194+$A$11,IF($C$5,8,0),1,1)) -> 38214400 | D194: =IF(A194>$A$8,"",OFFSET(InputPriceData!C$15,CalculationsAndCharts!$A194+$A$11,IF($C$5,8,0),1,1)) -> 1183.69 | E194: =IF(A194>$A$8,"",OFFSET(InputPriceData!D$15,CalculationsAndCharts!$A194+$A$11,IF($C$5,8,0),1,1)) -> 1187.72 | F194: =IF(A194>$A$8,"",OFFSET(InputPriceData!E$15,CalculationsAndCharts!$A194+$A$11,IF($C$5,8,0),1,1)) -> 1177.43 | G194: =IF(A194>$A$8,"",OFFSET(InputPriceData!F$15,CalculationsAndCharts!$A194+$A$11,IF($C$5,8,0),1,1)) -> 1187.7 | H194: 1199.96 | I194: 1078.63 | J194: 121.33 | K194: 1180.397367 | L194: 0.8387650811 | M194: 1169.495808 | N194: 0.7489145992 | O194: 8.985048186 | P194: 7.185432551 | Q194: 1191.442375 | R194: 10 | S194: -10 | T194: 10.90155896 | U194: 8.585927274 | V194: 1199.96 | W194: 1078.63 | X194: 1180.397367 | Y194: 1169.495808 | Z194: 1191.442375 | AP194: 38214400
A195: 163 | B195: =IF(A195>$A$8,"",OFFSET(InputPriceData!B$15,$A195+$A$11,0,1,1)) -> 2015-11-09 | C195: =IF(A195>$A$8,"",OFFSET(InputPriceData!G$15,CalculationsAndCharts!$A195+$A$11,IF($C$5,8,0),1,1)) -> 38823500 | D195: =IF(A195>$A$8,"",OFFSET(InputPriceData!C$15,CalculationsAndCharts!$A195+$A$11,IF($C$5,8,0),1,1)) -> 1199.58 | E195: =IF(A195>$A$8,"",OFFSET(InputPriceData!D$15,CalculationsAndCharts!$A195+$A$11,IF($C$5,8,0),1,1)) -> 1199.58 | F195: =IF(A195>$A$8,"",OFFSET(InputPriceData!E$15,CalculationsAndCharts!$A195+$A$11,IF($C$5,8,0),1,1)) -> 1180.56 | G195: =IF(A195>$A$8,"",OFFSET(InputPriceData!F$15,CalculationsAndCharts!$A195+$A$11,IF($C$5,8,0),1,1)) -> 1184.43 | H195: 1199.96 | I195: 1078.63 | J195: 121.33 | K195: 1179.069616 | L195: 0.8278217744 | M195: 1168.039473 | N195: 0.7369115057 | O195: 9.091026865 | P195: 6.735528642 | Q195: 1191.479987 | R195: 10 | S195: -10 | T195: 11.0301429 | U195: 8.007019351 | V195: 1199.96 | W195: 1078.63 | X195: 1179.069616 | Y195: 1168.039473 | Z195: 1191.479987 | AQ195: 38823500
A196: 164 | B196: =IF(A196>$A$8,"",OFFSET(InputPriceData!B$15,$A196+$A$11,0,1,1)) -> 2015-11-06 | C196: =IF(A196>$A$8,"",OFFSET(InputPriceData!G$15,CalculationsAndCharts!$A196+$A$11,IF($C$5,8,0),1,1)) -> 43690200 | D196: =IF(A196>$A$8,"",OFFSET(InputPriceData!C$15,CalculationsAndCharts!$A196+$A$11,IF($C$5,8,0),1,1)) -> 1190.03 | E196: =IF(A196>$A$8,"",OFFSET(InputPriceData!D$15,CalculationsAndCharts!$A196+$A$11,IF($C$5,8,0),1,1)) -> 1199.96 | F196: =IF(A196>$A$8,"",OFFSET(InputPriceData!E$15,CalculationsAndCharts!$A196+$A$11,IF($C$5,8,0),1,1)) -> 1181.78 | G196: =IF(A196>$A$8,"",OFFSET(InputPriceData!F$15,CalculationsAndCharts!$A196+$A$11,IF($C$5,8,0),1,1)) -> 1199.75 | H196: 1199.96 | I196: 1078.63 | J196: 121.33 | K196: 1178.095001 | L196: 0.8197890101 | M196: 1166.728231 | N196: 0.7261042679 | O196: 9.368474213 | P196: 6.146654086 | Q196: 1191.550841 | R196: 10 | S196: -10 | T196: 11.36676976 | U196: 7.251238465 | V196: 1199.96 | W196: 1078.63 | X196: 1178.095001 | Y196: 1166.728231 | Z196: 1191.550841 | AP196: 43690200
A197: 165 | B197: =IF(A197>$A$8,"",OFFSET(InputPriceData!B$15,$A197+$A$11,0,1,1)) -> 2015-11-05 | C197: =IF(A197>$A$8,"",OFFSET(InputPriceData!G$15,CalculationsAndCharts!$A197+$A$11,IF($C$5,8,0),1,1)) -> 40518900 | D197: =IF(A197>$A$8,"",OFFSET(InputPriceData!C$15,CalculationsAndCharts!$A197+$A$11,IF($C$5,8,0),1,1)) -> 1190.31 | E197: =IF(A197>$A$8,"",OFFSET(InputPriceData!D$15,CalculationsAndCharts!$A197+$A$11,IF($C$5,8,0),1,1)) -> 1191.93 | F197: =IF(A197>$A$8,"",OFFSET(InputPriceData!E$15,CalculationsAndCharts!$A197+$A$11,IF($C$5,8,0),1,1)) -> 1179.74 | G197: =IF(A197>$A$8,"",OFFSET(InputPriceData!F$15,CalculationsAndCharts!$A197+$A$11,IF($C$5,8,0),1,1)) -> 1190.69 | H197: 1196.56 | I197: 1078.63 | J197: 117.93 | K197: 1174.157728 | L197: 0.8100375474 | M197: 1164.086489 | N197: 0.724637406 | O197: 8.540014141 | P197: 5.341199055 | Q197: 1191.468437 | R197: 10 | S197: -10 | T197: 10.07123868 | U197: 6.22235564 | V197: 1196.56 | W197: 1078.63 | X197: 1174.157728 | Y197: 1164.086489 | Z197: 1191.468437 | AP197: 40518900
A198: 166 | B198: =IF(A198>$A$8,"",OFFSET(InputPriceData!B$15,$A198+$A$11,0,1,1)) -> 2015-11-04 | C198: =IF(A198>$A$8,"",OFFSET(InputPriceData!G$15,CalculationsAndCharts!$A198+$A$11,IF($C$5,8,0),1,1)) -> 40788700 | D198: =IF(A198>$A$8,"",OFFSET(InputPriceData!C$15,CalculationsAndCharts!$A198+$A$11,IF($C$5,8,0),1,1)) -> 1192.28 | E198: =IF(A198>$A$8,"",OFFSET(InputPriceData!D$15,CalculationsAndCharts!$A198+$A$11,IF($C$5,8,0),1,1)) -> 1196.14 | F198: =IF(A198>$A$8,"",OFFSET(InputPriceData!E$15,CalculationsAndCharts!$A198+$A$11,IF($C$5,8,0),1,1)) -> 1185.39 | G198: =IF(A198>$A$8,"",OFFSET(InputPriceData!F$15,CalculationsAndCharts!$A198+$A$11,IF($C$5,8,0),1,1)) -> 1190.38 | H198: 1196.56 | I198: 1078.63 | J198: 117.93 | K198: 1171.15186 | L198: 0.7845489725 | M198: 1161.958208 | N198: 0.7065904218 | O198: 7.795855076 | P198: 4.541495283 | Q198: 1191.476261 | R198: 10 | S198: -10 | T198: 9.193651891 | U198: 5.260134881 | V198: 1196.56 | W198: 1078.63 | X198: 1171.15186 | Y198: 1161.958208 | Z198: 1191.476261 | AQ198: 40788700
A199: 167 | B199: =IF(A199>$A$8,"",OFFSET(InputPriceData!B$15,$A199+$A$11,0,1,1)) -> 2015-11-03 | C199: =IF(A199>$A$8,"",OFFSET(InputPriceData!G$15,CalculationsAndCharts!$A199+$A$11,IF($C$5,8,0),1,1)) -> 42720600 | D199: =IF(A199>$A$8,"",OFFSET(InputPriceData!C$15,CalculationsAndCharts!$A199+$A$11,IF($C$5,8,0),1,1)) -> 1185.78 | E199: =IF(A199>$A$8,"",OFFSET(InputPriceData!D$15,CalculationsAndCharts!$A199+$A$11,IF($C$5,8,0),1,1)) -> 1196.56 | F199: =IF(A199>$A$8,"",OFFSET(InputPriceData!E$15,CalculationsAndCharts!$A199+$A$11,IF($C$5,8,0),1,1)) -> 1182.37 | G199: =IF(A199>$A$8,"",OFFSET(InputPriceData!F$15,CalculationsAndCharts!$A199+$A$11,IF($C$5,8,0),1,1)) -> 1191.58 | H199: 1196.56 | I199: 1078.63 | J199: 117.93 | K199: 1167.655835 | L199: 0.7549040527 | M199: 1159.684465 | N199: 0.687309973 | O199: 6.759407972 | P199: 3.727905335 | Q199: 1191.487279 | R199: 10 | S199: -10 | T199: 7.971369822 | U199: 4.276755629 | V199: 1196.56 | W199: 1078.63 | X199: 1167.655835 | Y199: 1159.684465 | Z199: 1191.487279 | AP199: 42720600
A200: 168 | B200: =IF(A200>$A$8,"",OFFSET(InputPriceData!B$15,$A200+$A$11,0,1,1)) -> 2015-11-02 | C200: =IF(A200>$A$8,"",OFFSET(InputPriceData!G$15,CalculationsAndCharts!$A200+$A$11,IF($C$5,8,0),1,1)) -> 37600200 | D200: =IF(A200>$A$8,"",OFFSET(InputPriceData!C$15,CalculationsAndCharts!$A200+$A$11,IF($C$5,8,0),1,1)) -> 1161.95 | E200: =IF(A200>$A$8,"",OFFSET(InputPriceData!D$15,CalculationsAndCharts!$A200+$A$11,IF($C$5,8,0),1,1)) -> 1187.62 | F200: =IF(A200>$A$8,"",OFFSET(InputPriceData!E$15,CalculationsAndCharts!$A200+$A$11,IF($C$5,8,0),1,1)) -> 1161.95 | G200: =IF(A200>$A$8,"",OFFSET(InputPriceData!F$15,CalculationsAndCharts!$A200+$A$11,IF($C$5,8,0),1,1)) -> 1186.09 | H200: 1193.99 | I200: 1078.63 | J200: 115.36 | K200: 1163.305987 | L200: 0.7340151416 | M200: 1157.132822 | N200: 0.6805029674 | O200: 5.351217423 | P200: 2.970029675 | Q200: 1191.486347 | R200: 10 | S200: -10 | T200: 6.173164419 | U200: 3.35310208 | V200: 1193.99 | W200: 1078.63 | X200: 1163.305987 | Y200: 1157.132822 | Z200: 1191.486347 | AP200: 37600200
A201: 169 | B201: =IF(A201>$A$8,"",OFFSET(InputPriceData!B$15,$A201+$A$11,0,1,1)) -> 2015-10-30 | C201: =IF(A201>$A$8,"",OFFSET(InputPriceData!G$15,CalculationsAndCharts!$A201+$A$11,IF($C$5,8,0),1,1)) -> 42562000 | D201: =IF(A201>$A$8,"",OFFSET(InputPriceData!C$15,CalculationsAndCharts!$A201+$A$11,IF($C$5,8,0),1,1)) -> 1165.48 | E201: =IF(A201>$A$8,"",OFFSET(InputPriceData!D$15,CalculationsAndCharts!$A201+$A$11,IF($C$5,8,0),1,1)) -> 1167.65 | F201: =IF(A201>$A$8,"",OFFSET(InputPriceData!E$15,CalculationsAndCharts!$A201+$A$11,IF($C$5,8,0),1,1)) -> 1159.66 | G201: =IF(A201>$A$8,"",OFFSET(InputPriceData!F$15,CalculationsAndCharts!$A201+$A$11,IF($C$5,8,0),1,1)) -> 1161.86 | H201: 1193.99 | I201: 1078.63 | J201: 115.36 | K201: 1159.163439 | L201: 0.6981053994 | M201: 1154.816248 | N201: 0.6604217069 | O201: 3.768369251 | P201: 2.374732738 | Q201: 1191.540581 | R201: 10 | S201: -10 | T201: 4.347190768 | U201: 2.648086496 | V201: 1193.99 | W201: 1078.63 | X201: 1159.163439 | Y201: 1154.816248 | Z201: 1191.540581 | AQ201: 42562000
A202: 170 | B202: =IF(A202>$A$8,"",OFFSET(InputPriceData!B$15,$A202+$A$11,0,1,1)) -> 2015-10-29 | C202: =IF(A202>$A$8,"",OFFSET(InputPriceData!G$15,CalculationsAndCharts!$A202+$A$11,IF($C$5,8,0),1,1)) -> 40089400 | D202: =IF(A202>$A$8,"",OFFSET(InputPriceData!C$15,CalculationsAndCharts!$A202+$A$11,IF($C$5,8,0),1,1)) -> 1178.36 | E202: =IF(A202>$A$8,"",OFFSET(InputPriceData!D$15,CalculationsAndCharts!$A202+$A$11,IF($C$5,8,0),1,1)) -> 1178.36 | F202: =IF(A202>$A$8,"",OFFSET(InputPriceData!E$15,CalculationsAndCharts!$A202+$A$11,IF($C$5,8,0),1,1)) -> 1164.24 | G202: =IF(A202>$A$8,"",OFFSET(InputPriceData!F$15,CalculationsAndCharts!$A202+$A$11,IF($C$5,8,0),1,1)) -> 1165.63 | H202: 1193.99 | I202: 1078.63 | J202: 115.36 | K202: 1158.673155 | L202: 0.6938553661 | M202: 1154.252748 | N202: 0.6555369968 | O202: 3.831836926 | P202: 2.02632361 | Q202: 1191.838879 | R202: 10 | S202: -10 | T202: 4.420407078 | U202: 2.223310428 | V202: 1193.99 | W202: 1078.63 | X202: 1158.673155 | Y202: 1154.252748 | Z202: 1191.838879 | AQ202: 40089400
A203: 171 | B203: =IF(A203>$A$8,"",OFFSET(InputPriceData!B$15,$A203+$A$11,0,1,1)) -> 2015-10-28 | C203: =IF(A203>$A$8,"",OFFSET(InputPriceData!G$15,CalculationsAndCharts!$A203+$A$11,IF($C$5,8,0),1,1)) -> 46981100 | D203: =IF(A203>$A$8,"",OFFSET(InputPriceData!C$15,CalculationsAndCharts!$A203+$A$11,IF($C$5,8,0),1,1)) -> 1145.48 | E203: =IF(A203>$A$8,"",OFFSET(InputPriceData!D$15,CalculationsAndCharts!$A203+$A$11,IF($C$5,8,0),1,1)) -> 1178.78 | F203: =IF(A203>$A$8,"",OFFSET(InputPriceData!E$15,CalculationsAndCharts!$A203+$A$11,IF($C$5,8,0),1,1)) -> 1145.48 | G203: =IF(A203>$A$8,"",OFFSET(InputPriceData!F$15,CalculationsAndCharts!$A203+$A$11,IF($C$5,8,0),1,1)) -> 1178.72 | H203: 1193.99 | I203: 1078.63 | J203: 115.36 | K203: 1157.408274 | L203: 0.6828907258 | M203: 1153.342568 | N203: 0.6476470856 | O203: 3.524364025 | P203: 1.574945281 | Q203: 1192.102285 | R203: 10 | S203: -10 | T203: 4.065706339 | U203: 1.674036265 | V203: 1193.99 | W203: 1078.63 | X203: 1157.408274 | Y203: 1153.342568 | Z203: 1192.102285 | AP203: 46981100
... 961 more rows

Sheet Follow
A1: Stocks and Indexes I wish to follow
A3: To ease following a stock, enter a Yahoo Finance acceptable symbol in column "A" anywhere below cell "A9".
A4: Thereafter you may doubleclick the cell containing a symbol of interest to initiate data retrieval and charting for that symbol.
A7: Symbol
A8: To | B8: Description | C8: Last Trade as of most recent check
A9: Follow | C9: Date | D9: Time | E9: Open | F9: High | G9: Low | H9: Close | I9: Volume | J9: Change
A10: A | B10: Agilent Technolog (A) -NYSE (Daily) | C10: 2015-02-02 | D10: 16:03:00 | E10: 37.9 | F10: 38.76 | G10: 37.71 | H10: 38.69 | I10: 2508493 | J10: 0.92
A11: AA | B11: Alcoa Corporation (AA) -NYSE (Weekly) | C11: 2018-06-19 | D11: 16:04:00 | E11: 44.630001 | F11: 44.630001 | G11: 43.349998 | H11: 44.470001 | I11: 3190085 | J11: -1.309998
A12: AAL | B12: American Airlines Group Inc. (AAL) -NasdaqGS (Daily) | C12: 2019-07-12 | D12: 16:00:00 | E12: 33.119999 | F12: 33.900002 | G12: 33 | H12: 33.779999 | I12: 5012200 | J12: 0.75
A13: ADM | B13: Archer-Daniels-Midland Company (ADM) -NYSE (Weekly) | C13: 2018-07-13 | D13: 16:00:00 | E13: 47.5 | F13: 47.84 | G13: 47.169998 | H13: 47.57 | I13: 2402809 | J13: 0
A14: AMC | B14: AMC Entertainment Holdings, Inc. (AMC) -NYSE (Weekly) | C14: 2018-07-13 | D14: 16:02:00 | E14: 17.049999 | F14: 17.15 | G14: 16.525 | H14: 17.049999 | I14: 1442776 | J14: 0
A15: BSX | B15: Boston Scientific Corporation C (BSX) -NYQ (Daily) | C15: 2015-03-13 | D15: 16:01:00 | E15: 16.84 | F15: 16.91 | G15: 16.44 | H15: 16.61 | I15: 7262460 | J15: -0.28
A16: CASY | B16: Casey's General Stores, Inc. (CASY) -NasdaqGS (Daily) | C16: 2019-04-10 | D16: 16:00:00 | E16: 128.979996 | F16: 130.330002 | G16: 128.779999 | H16: 130.179993 | I16: 351300 | J16: 1.489991
A17: CAT | B17: Caterpillar Inc. (CAT) -NYSE (Daily) | C17: 2019-09-13 | D17: 16:00:00 | E17: 132.800003 | F17: 133.990005 | G17: 131.130005 | H17: 133.779999 | I17: 3653600 | J17: 2.029999
A18: CSCO | B18: Cisco Systems, In (CSCO) -NasdaqNM (Daily) | C18: 2015-02-19 | D18: 16:00:00 | E18: 29.32 | F18: 29.39 | G18: 29.13 | H18: 29.31 | I18: 21469012 | J18: -0.18
A19: CVS | B19: CVS Health Corpor (CVS) -NYSE (Daily) | C19: 2015-02-02 | D19: 16:01:00 | E19: 98.34 | F19: 99.22 | G19: 97.06 | H19: 99.11 | I19: 4416094 | J19: 0.95
A20: DIS | B20: Walt Disney Compa (DIS) -NYSE (Daily) | C20: 2015-02-26 | D20: 16:00:00 | E20: 105.5 | F20: 105.71 | G20: 104.14 | H20: 104.56 | I20: 5044969 | J20: -1.01
A21: F | B21: Ford Motor Company (F) -NYSE (Daily) | C21: 2019-08-14 | D21: 10:34:00 | E21: 9.13 | F21: 9.15 | G21: 9.02 | H21: 9.12 | I21: 9151483 | J21: -0.17
A22: FAS | B22: Direxion Daily Financial Bull 3X ETF (FAS) -NYSEArca (Daily) | C22: 2017-10-13 | D22: 16:00:00 | E22: 58.099998 | F22: 58.939999 | G22: 57.43 | H22: 58.450001 | I22: 1709300 | J22: 0.07
A23: FB | B23: Facebook, Inc. (FB) -NasdaqGS (Daily) | C23: 2018-07-13 | D23: 16:00:00 | E23: 207.809998 | F23: 208.429993 | G23: 206.449997 | H23: 207.320007 | I23: 11486800 | J23: 0.400009
A24: GSK | B24: GlaxoSmithKline plc (GSK) -NYSE (Daily) | C24: 2019-08-14 | D24: 11:15:00 | E24: 40.060001 | F24: 40.209999 | G24: 39.895 | H24: 39.93 | I24: 941699 | J24: -0.310002
A25: GDX | B25: VanEck Vectors Gold Miners ETF (GDX) -PCX (Daily) | C25: 2017-02-10 | D25: 20:00:00 | E25: 24.67 | F25: 25.36 | G25: 24.6 | H25: 25.29 | I25: 65396107 | J25: 0.38
A26: HD | B26: The Home Depot, Inc. (HD) -NYSE (Daily) | C26: 2019-06-17 | D26: 15:30:00 | E26: 207 | F26: 208.789993 | G26: 206 | H26: 207.610001 | I26: 3491229 | J26: 1.839997
A27: HSY | B27: The Hershey Company (HSY) -NYSE (Daily) | C27: 2019-04-10 | D27: 16:02:00 | E27: 116.099998 | F27: 116.43 | G27: 115.75 | H27: 116.309998 | I27: 574600 | J27: 0.290001
A28: HTLD | B28: Heartland Express, Inc. (HTLD) -NasdaqGS (Daily) | C28: 2018-04-16 | D28: 13:57:00 | E28: 18.17 | F28: 18.620001 | G28: 18.129999 | H28: 18.540001 | I28: 202134 | J28: 0.540001
A29: IBM | B29: International Business Machines Corporation (IBM) -NYSE (Daily) | C29: 2019-08-14 | D29: 11:24:00 | E29: 133.910004 | F29: 134.160004 | G29: 132.130005 | H29: 132.460098 | I29: 1281528 | J29: -1.659897
A30: INTC | B30: Intel Corporation (INTC) -NasdaqGS (Daily) | C30: 2019-06-17 | D30: 15:32:00 | E30: 46.139999 | F30: 46.529999 | G30: 45.799999 | H30: 46.102501 | I30: 7977641 | J30: -0.087498
A31: JAH | B31: Jarden Corporation Common Stock (JAH) -NYQ (Daily) | C31: 2016-01-08 | D31: 16:02:00 | E31: 53.82 | F31: 53.88 | G31: 52.65 | H31: 52.73 | I31: 4519480 | J31: -0.81
A32: JNJ | B32: Johnson & Johnson (JNJ) -NYSE (Daily) | C32: 2019-08-14 | D32: 10:33:00 | E32: 132.529999 | F32: 132.539993 | G32: 131.419998 | H32: 131.759995 | I32: 870520 | J32: -0.169998
A33: KO | B33: The Coca-Cola Company (KO) -NYSE (Daily) | C33: 2019-07-19 | D33: 16:00:00 | E33: 52.139999 | F33: 52.150002 | G33: 51.369999 | H33: 51.389999 | I33: 10355500 | J33: -0.64
A34: LOW | B34: Lowe's Companies, Inc. (LOW) -NYSE (Daily) | C34: 2019-06-17 | D34: 15:29:00 | E34: 99.769997 | F34: 100.735001 | G34: 99.334999 | H34: 100.360001 | I34: 2967215 | J34: 0.730004
A35: LHO | B35: LaSalle Hotel Properties (LHO) -NYSE (Daily) | C35: 2018-07-13 | E35: 35.009998 | F35: 35.07 | G35: 34.82 | H35: 34.880001 | I35: 168400 | J35: -0.09
A36: LINE | B36: Linn Energy, LLC (LINE) -NasdaqNM (Daily) | C36: 2015-02-02 | D36: 16:00:00 | E36: 10.4 | F36: 10.78 | G36: 10.25 | H36: 10.77 | I36: 3766537 | J36: 0.51
A37: LO | B37: Lorillard, Inc Co (LO) -NYSE (Daily) | C37: 2015-02-02 | D37: 16:03:00 | E37: 65.71 | F37: 66.29 | G37: 65.43 | H37: 66.29 | I37: 1563618 | J37: 0.68
A38: MCD | B38: McDonald's Corporation (MCD) -NYSE (Daily) | C38: 2019-08-14 | D38: 10:34:00 | E38: 218.949997 | F38: 219.740005 | G38: 218.509995 | H38: 218.985001 | I38: 534253 | J38: 1.824997
A39: MDT | B39: Medtronic plc. Or (MDT) -NYSE (Daily) | C39: 2015-02-19 | D39: 16:01:00 | E39: 78.59 | F39: 78.59 | G39: 77.85 | H39: 78.13 | I39: 6900528 | J39: -0.37
A40: MGM | B40: MGM Resorts Inter (MGM) -NYSE (Daily) | C40: 2015-02-02 | D40: 16:00:00 | E40: 19.44 | F40: 19.75 | G40: 19.12 | H40: 19.74 | I40: 7570281 | J40: 0.26
A41: MO | B41: Altria Group, Inc (MO) -NYSE (Daily) | C41: 2015-02-02 | D41: 16:01:00 | E41: 53.25 | F41: 53.84 | G41: 52.98 | H41: 53.8 | I41: 9183582 | J41: 0.7
A42: MSFT | B42: Microsoft Corporation (MSFT) -NasdaqGS (Daily) | C42: 2019-04-10 | D42: 16:00:00 | E42: 119.760002 | F42: 120.349998 | G42: 119.540001 | H42: 120.190002 | I42: 16123400 | J42: 0.910003
A43: NFLX | B43: Netflix, Inc. (NFLX) -NasdaqGS (Weekly) | C43: 2018-06-19 | D43: 14:59:00 | E43: 389.5 | F43: 404.390015 | G43: 388.5 | H43: 404.100006 | I43: 13053145 | J43: 13.700012
A44: NUGT | B44: Direxion Daily Gold Miners Inde (NUGT) -PCX (Daily) | C44: 2016-04-13 | D44: 14:18:00 | E44: 81.48 | F44: 84.97 | G44: 79.59 | H44: 80.5352 | I44: 4380827 | J44: -5.6148
A45: NVS | B45: Novartis AG (NVS) -NYSE (Daily) | C45: 2018-04-13 | D45: 16:02:00 | E45: 81.150002 | F45: 81.269997 | G45: 80.699997 | H45: 81.040001 | I45: 1037000 | J45: -0.400001
A46: NVDA | B46: NVIDIA Corporation (NVDA) -NasdaqGS (Daily) | C46: 2019-08-12 | D46: 16:00:00 | E46: 152.080002 | F46: 154.149994 | G46: 150.589996 | H46: 151.449997 | I46: 5997236 | J46: -2.729996
A47: PRU | B47: Prudential Financ (PRU) -NYSE (Daily) | C47: 2015-02-23 | D47: 12:22:00 | E47: 80.25 | F47: 80.4499 | G47: 79.8 | H47: 80.12 | I47: 1604052 | J47: -0.69
A48: PSEC | B48: Prospect Capital Corporation (PSEC) -NasdaqGS (Daily) | C48: 2019-04-10 | D48: 16:00:00 | E48: 6.57 | F48: 6.59 | G48: 6.55 | H48: 6.58 | I48: 887400 | J48: 0.01
A49: RAI | B49: Reynolds American (RAI) -NYSE (Daily) | C49: 2015-02-02 | D49: 16:03:00 | E49: 68.12 | F49: 69.06 | G49: 67.4346 | H49: 69.05 | I49: 1822013 | J49: 1.1
A50: RPM | B50: RPM International Inc. (RPM) -NYSE (Daily) | C50: 2018-04-13 | D50: 16:02:00 | E50: 49.52 | F50: 49.52 | G50: 48.970001 | H50: 49.240002 | I50: 908200 | J50: 0.010002 | K50: Owns the Rust-Oleum brand
A51: RSP | B51: Guggenheim S&P 500 Equal Weight (RSP) -PCX (Daily) | C51: 2016-01-08 | D51: 11:33:00 | E51: 73.24 | F51: 73.47 | G51: 72.41 | H51: 72.41 | I51: 754279 | J51: -0.48
A52: SPR | B52: Spirit Aerosystems Holdings, In (SPR) -NYQ (Daily) | C52: 2017-02-08 | D52: 16:02:00 | E52: 56.31 | F52: 56.53 | G52: 55.13 | H52: 56.41 | I52: 849196 | J52: 0.06
A53: SWKS | B53: Skyworks Solution (SWKS) -NasdaqNM (Daily) | C53: 2015-02-02 | D53: 16:00:00 | E53: 83.07 | F53: 83.73 | G53: 80.15 | H53: 82.02 | I53: 4119001 | J53: -1.03
A54: TOL | B54: Toll Brothers, Inc. (TOL) -NYSE (Daily) | C54: 2019-08-09 | D54: 16:02:00 | E54: 36.259998 | F54: 36.27 | G54: 35.880001 | H54: 35.959999 | I54: 746100 | J54: -0.510002
A55: TSLA | B55: Tesla, Inc. (TSLA) -NasdaqGS (Daily) | C55: 2019-06-14 | D55: 09:56:00 | E55: 211.25 | F55: 214.160004 | G55: 210.399994 | H55: 212.816193 | I55: 1053711 | J55: -1.093811
A56: UNP | B56: Union Pacific Cor (UNP) -NYSE (Daily) | C56: 2015-02-02 | D56: 16:10:00 | E56: 118.13 | F56: 119.06 | G56: 116.7 | H56: 119.01 | I56: 3259594 | J56: 1.8
A57: VZ | B57: Verizon Communications Inc. (VZ) -NYSE (Daily) | C57: 2019-04-10 | D57: 16:00:00 | E57: 58.400002 | F57: 58.700001 | G57: 58.360001 | H57: 58.610001 | I57: 8022000 | J57: 0.209999
A58: WBA | B58: (WBA) -NasdaqNM (Daily) | C58: 2015-02-02 | D58: 16:00:00 | E58: 73.06 | F58: 74.98 | G58: 73 | H58: 74.89 | I58: 4247395 | J58: 1.14
A59: WMT | B59: Walmart Inc. (WMT) -NYSE (Daily) | C59: 2018-07-13 | D59: 16:00:00 | E59: 86.519997 | F59: 87.989998 | G59: 86.5 | H59: 87.699997 | I59: 6388600 | J59: 1.18
A61: ^NDX | B61: NASDAQ 100 (^NDX) -Nasdaq GIDS (Daily) | C61: 2019-08-12 | D61: 17:26:00 | E61: 7597.193848 | F61: 7623.435059 | G61: 7528.95166 | H61: 7561.682617 | I61: 533392657 | J61: -84.587403
A62: ^FTSE | B62: FTSE 100 (^FTSE) -FTSE (Daily) | C62: 2018-02-14 | D62: 15:51:00 | E62: 7168.009766 | F62: 7243.149902 | G62: 7145.72998 | H62: 7222.319824 | I62: 0 | J62: 54.319824
A63: ^DJI | B63: Dow Jones Industrial Average (^DJI) -DJI (Daily) | C63: 2019-09-13 | D63: 16:56:00 | E63: 27216.66992 | F63: 27277.55078 | G63: 27193.94922 | H63: 27219.51953 | I63: 255260000 | J63: 37.070312
A64: ^OEX | B64: S&P 100 INDEX (^OEX) -Chicago Options (Daily) | C64: 2019-09-13 | D64: 16:56:00 | E64: 1332.27002 | F64: 1334.420044 | G64: 1328.73999 | H64: 1330.969971 | I64: 3520060000 | J64: -1.010009
A65: SPY | B65: SPDR S&P 500 ETF (SPY) -NYSEArca (Daily) | C65: 2019-08-12 | D65: 16:00:00 | E65: 289.959991 | F65: 291.605194 | G65: 287.019989 | H65: 287.940002 | I65: 57118534 | J65: -3.679993
A66: ^GSPC | B66: S&P 500 (^GSPC) -SNP (Daily) | C66: 2019-09-13 | D66: 16:56:00 | E66: 3012.209961 | F66: 3017.330078 | G66: 3002.899902 | H66: 3007.389893 | I66: 3520060000 | J66: -2.180175
A67: ^MID | B67: S&P MID CAP 400 INDEX (^MID) -NYSE (Daily) | C67: 2019-09-13 | D67: 16:07:00 | E67: 1970.180054 | F67: 1976.209961 | G67: 1961.310059 | H67: 1963.160034 | I67: 0 | J67: 0.800049
A68: IWM | B68: iShares Russell 2000 ETF (IWM) -NYSEArca (Daily) | C68: 2018-04-13 | D68: 16:00:00 | E68: 155.289993 | F68: 155.330002 | G68: 153.509995 | H68: 153.949997 | I68: 19710100 | J68: -0.809998
A69: QQQ | B69: Invesco QQQ Trust (QQQ) -NasdaqGM (Daily) | C69: 2019-08-12 | D69: 16:00:00 | E69: 185.339996 | F69: 185.889999 | G69: 183.5 | H69: 184.350006 | I69: 23162601 | J69: -2.139999
A70: ^RUT | B70: Russell 2000 (^RUT) -Chicago Options (Daily) | C70: 2019-09-13 | D70: 16:30:00 | E70: 1579.22998 | F70: 1589.449951 | G70: 1577.109985 | H70: 1578.140015 | I70: 35200600 | J70: 3.070069
A71: ^VIX | B71: VOLATILITY S&P 500 (^VIX) -WCB (Daily) | C71: 2015-12-04 | D71: 16:14:00 | E71: 17.43 | F71: 17.65 | G71: 14.69 | H71: 14.81 | I71: 0 | J71: -3.3
A72: ^NYA | B72: NYSE COMPOSITE (DJ) (^NYA) -NYSE (Daily) | C72: 2018-07-13 | D72: 16:15:00 | E72: 12744.79981 | F72: 12783.24023 | G72: 12727.75977 | H72: 12769.5 | I72: 2614000000 | J72: 8.040039
A74: ACAD | B74: ACADIA Pharmaceut (ACAD) -NasdaqNM (Daily) | C74: 2014-07-21 | D74: 16:00:00 | E74: 20.13 | F74: 20.55 | G74: 19.8101 | H74: 20.31 | I74: 691016
A75: CLDX | B75: Celldex Therapeut (CLDX) -NasdaqNM (Daily) | C75: 2015-02-02 | D75: 16:00:00 | E75: 21.47 | F75: 21.69 | G75: 20.11 | H75: 21.02 | I75: 1570418 | J75: -0.4
A76: ICPT | B76: Intercept Pharmac (ICPT) -NasdaqNM (Daily) | C76: 2014-07-21 | D76: 16:00:00 | E76: 215.97 | F76: 218.43 | G76: 213.05 | H76: 218.14 | I76: 191276
A77: INO | B77: Inovio Pharmaceut (INO) -AMEX (Daily) | C77: 2014-07-21 | D77: 16:00:00 | E77: 10.3 | F77: 11.08 | G77: 10.1 | H77: 11.01 | I77: 1800796
A78: JCP | B78: J. C. Penney Company, Inc. (JCP) -NYSE (Daily) | C78: 2017-12-07 | D78: 16:01:00 | E78: 3.34 | F78: 3.4 | G78: 3.25 | H78: 3.27 | I78: 14485464 | J78: -0.07
A79: LCI | B79: Lannett Co Inc Co (LCI) -NYSE (Daily) | C79: 2014-07-21 | D79: 16:02:00 | E79: 38.09 | F79: 38.803 | G79: 36.5101 | H79: 37.76 | I79: 611367
A80: NPSP | B80: NPS Pharmaceutica (NPSP) -NasdaqNM (Daily) | C80: 2014-07-21 | D80: 15:59:00 | E80: 28.75 | F80: 29.43 | G80: 28.31 | H80: 29.29 | I80: 1126758
A81: PBYI | B81: Puma Biotechnolog (PBYI) -NYSE (Daily) | C81: 2014-07-21 | D81: 16:02:00 | E81: 58.27 | F81: 59.46 | G81: 57.39 | H81: 58.98 | I81: 348030
